Body Name,Service Area,Expenses Type,Invoice Payment Date,Transaction Number,Net Amount,Supplier Name
Manchester City Council,Manchester Leisure,Rents,01.05.2019,5101030634,"67,560.00",Wythenshawe Forum Trust Ltd
Manchester City Council,Manchester Leisure,Rents,01.05.2019,5101030632,"7,689.05",Wythenshawe Forum Trust Ltd
Manchester City Council,Manchester Leisure,Rents,01.05.2019,5101030630,574.97,Wythenshawe Forum Trust Ltd
Manchester City Council,Manchester Leisure,Equipment,01.05.2019,5101030574,588.96,SLD Pumps & Power
Manchester City Council,Manchester Leisure,Furniture,01.05.2019,5101030621,690.50,Back Care Solutions Ltd
Manchester City Council,Manchester Leisure,Payments to Sub-Contractors,01.05.2019,5101030631,754.00,Osborne Richardson
Manchester City Council,Manchester Leisure,Payments to Sub-Contractors,01.05.2019,5101030640,630.00,Osborne Richardson
Manchester City Council,Manchester Leisure,Payments to Sub-Contractors,01.05.2019,5101030644,512.00,Osborne Richardson
Manchester City Council,Manchester Leisure,Professional fees,01.05.2019,5101030646,"54,652.00",Walk The Plank Ltd
Manchester City Council,Manchester Leisure,Professional fees,01.05.2019,5101030642,"12,719.20",Walk The Plank Ltd
Manchester City Council,Manchester Leisure,Goods purchased for resale in Council outlets,01.05.2019,1906462946,"1,452.62",Redacted Personal Information
Manchester City Council,Manchester Leisure,Payments for services,01.05.2019,5101030614,"70,974.00",Manchester City Football Club Plc
Manchester City Council,Manchester Leisure,Works and associated costs for Land and Buildings,01.05.2019,5101030676,"42,500.53",Conlon Construction Ltd
Manchester City Council,Hospitality + Trading Services,Vehicle Fuel Costs,01.05.2019,5101030696,"10,316.09",Carlton Fuels Ltd
Manchester City Council,Hospitality + Trading Services,Vehicle Fuel Costs,01.05.2019,5101030699,"10,316.09",Carlton Fuels Ltd
Manchester City Council,Adult Social Care,Training and Development,01.05.2019,5101030607,"2,755.50",Wythenshawe Community Initiative
Manchester City Council,Adult Social Care,Transport Coach Hire,01.05.2019,5101030572,"5,206.98",MCR Blackcab Ltd
Manchester City Council,Adult Social Care,Transport Coach Hire,01.05.2019,5101030575,"3,146.19",MCR Blackcab Ltd
Manchester City Council,Adult Social Care,Equipment,01.05.2019,5101030579,"3,023.40",Drive Devilbiss Healthcare Ltd
Manchester City Council,Adult Social Care,Equipment,01.05.2019,5101030695,"1,260.00",Tiptoes Child Therapy Services Ltd
Manchester City Council,Adult Social Care,Bed and Breakfast Accommodation Expenditure,01.05.2019,5101030656,"7,917.00",Redacted Personal Information
Manchester City Council,Adult Social Care,Bed and Breakfast Accommodation Expenditure,01.05.2019,5101030659,"1,425.00",Redacted Personal Information
Manchester City Council,Adult Social Care,Bed and Breakfast Accommodation Expenditure,01.05.2019,5101030594,"21,735.00",Redacted Personal Information
Manchester City Council,Adult Social Care,Bed and Breakfast Accommodation Expenditure,01.05.2019,5101030653,"15,133.00",Redacted Personal Information
Manchester City Council,Adult Social Care,Third party payments to other Local Authorities,01.05.2019,5101030654,"1,636.00",St Alphonsus RC Primary School
Manchester City Council,Adult Social Care,Third party payments relating to Voluntary Organisations,01.05.2019,5101030582,"7,250.00",The Depaul Trust
Manchester City Council,Adult Social Care,Third party payments relating to Voluntary Organisations,01.05.2019,5101030581,"1,583.33",The Depaul Trust
Manchester City Council,Adult Social Care,Payments for services,01.05.2019,5101030577,708.50,Benchill Community Centre
Manchester City Council,Adult Social Care,Payments for services,01.05.2019,5101030625,"14,301.34",Belmont School Ltd
Manchester City Council,Adult Social Care,Payments for services,01.05.2019,5101030629,"11,528.33",Belmont School Ltd
Manchester City Council,Adult Social Care,Payments for services,01.05.2019,5101030627,"5,853.33",Belmont School Ltd
Manchester City Council,Adult Social Care,Payments for services,01.05.2019,5101030602,"8,955.90",Age Concern Manchester
Manchester City Council,Adult Social Care,Payments for services,01.05.2019,5101030602,"4,806.00",Age Concern Manchester
Manchester City Council,Adult Social Care,Payments for services,01.05.2019,5101030618,833.00,Myerscough College
Manchester City Council,Adult Social Care,Payments for services,01.05.2019,5101030620,"6,311.91",Lakeside School
Manchester City Council,Adult Social Care,Payments for services,01.05.2019,5101030713,"1,013.00",Redacted Personal Information
Manchester City Council,Adult Social Care,Payments for services,01.05.2019,5101030635,"12,683.77",Ramillies Hall School Ltd
Manchester City Council,Adult Social Care,Payments for services,01.05.2019,5101030680,"2,646.00",High Peak School Limited
Manchester City Council,Adult Social Care,Supporting People Payments,01.05.2019,5101030580,"16,666.74",The Depaul Trust
Manchester City Council,Adult Social Care,Supported Accommodation,01.05.2019,5101030647,640.60,Pathways
Manchester City Council,Adult Social Care,Supported Accommodation,01.05.2019,5101030651,675.00,A Consultancy Services Limited
Manchester City Council,Adult Social Care,Childminding Fee Payments,01.05.2019,1906451474,720.00,Rainbows Day Nursery
Manchester City Council,Corporate Services,Usable Capital Receipts Reserve,01.05.2019,1906462994,"638,367.04",DCLG
Manchester City Council,Corporate Services,Travel Season Ticket Loan Scheme,01.05.2019,5101030688,570.00,Stagecoach Manchester
Manchester City Council,Corporate Services,Travel Season Ticket Loan Scheme,01.05.2019,5101030688,570.00,Stagecoach Manchester
Manchester City Council,Corporate Services,Travel Season Ticket Loan Scheme,01.05.2019,5101030688,570.00,Stagecoach Manchester
Manchester City Council,Corporate Services,Travel Season Ticket Loan Scheme,01.05.2019,5101030688,570.00,Stagecoach Manchester
Manchester City Council,Corporate Services,Travel Season Ticket Loan Scheme,01.05.2019,5101030692,570.00,Stagecoach Manchester
Manchester City Council,Corporate Services,Travel Season Ticket Loan Scheme,01.05.2019,5101030692,570.00,Stagecoach Manchester
Manchester City Council,Corporate Services,Professional fees,01.05.2019,5101030571,575.00,The Vinden Partnership
Manchester City Council,Corporate Services,Professional fees,01.05.2019,5101030573,575.00,The Vinden Partnership
Manchester City Council,Corporate Services,Works and associated costs for Land and Buildings,01.05.2019,5101030674,"1,103.50",Virgin Media Limited
Manchester City Council,Housing Revenue Account,Legal Fees,01.05.2019,5101030660,"4,353.00",Eversheds Llp
Manchester City Council,Chief Executives,Agency staff provision,01.05.2019,5101030672,"3,865.20",Ashberry Recruitment Ltd
Manchester City Council,Chief Executives,Catering Provisions,01.05.2019,1906445370,598.50,The Lowry Centre
Manchester City Council,Chief Executives,I T Provision,01.05.2019,5101030624,733.95,Insight Direct (Uk) Ltd
Manchester City Council,Chief Executives,Advertising,01.05.2019,5101030658,"4,595.76",Global Radio Services Ltd
Manchester City Council,Chief Executives,Advertising,01.05.2019,5101030663,"1,247.41",Global Radio Services Ltd
Manchester City Council,Chief Executives,Examination Fees,01.05.2019,5101030567,"1,349.01",ROAR Forensics Ltd
Manchester City Council,Chief Executives,Works and associated costs for Land and Buildings,01.05.2019,5101030612,"10,000.00",Charcoalblue LLP
Manchester City Council,Chief Executives,Legal Fees,01.05.2019,5101030662,875.00,Kings Chambers
Manchester City Council,Regeneration Finance,Electricity,01.05.2019,1906451466,"10,912.88",Savills (UK) Ltd
Manchester City Council,Regeneration Finance,Rents,01.05.2019,1906414432,"30,696.00",Vanguard Holdings Ltd
Manchester City Council,Regeneration Finance,Hire of Premises,01.05.2019,5101030710,"-1,440.00",Levenshulme Inspire
Manchester City Council,Regeneration Finance,Payments to Sub-Contractors,01.05.2019,5101030613,"4,547.05",Custodian Monitoring
Manchester City Council,Regeneration Finance,Payments to Sub-Contractors,01.05.2019,5101030610,506.25,Custodian Monitoring
Manchester City Council,Regeneration Finance,Professional fees,01.05.2019,1906445264,881.28,Maltaward (Barriers) Ltd
Manchester City Council,Regeneration Finance,Grant and subscriptions awarded,01.05.2019,5101030703,"5,000.00",Volition Community
Manchester City Council,Regeneration Finance,Compensation Payments,01.05.2019,1906462988,"8,618.22",H L F Berry & Co
Manchester City Council,Manchester Leisure,Professional fees,02.05.2019,1906463009,597.00,Environment Media Group
Manchester City Council,Manchester Leisure,Professional fees,02.05.2019,1700088249,"-4,000.00",Office of Craig
Manchester City Council,Manchester Leisure,Grant and subscriptions awarded,02.05.2019,5101030759,500.00,New Longsight Housing Co-Op
Manchester City Council,Manchester Leisure,Works and associated costs for Land and Buildings,02.05.2019,5101030819,500.00,WYG Engineering Ltd
Manchester City Council,Hospitality + Trading Services,Professional fees,02.05.2019,5101030733,600.00,Jacobs UK Ltd
Manchester City Council,Adult Social Care,Internal Repairs and Maintenance for buildings,02.05.2019,5101030775,620.00,Fishers Cleaning Services Ltd
Manchester City Council,Adult Social Care,External repairs and maintenance for buildings,02.05.2019,5101030823,"1,042.06",Sibcas Limited
Manchester City Council,Adult Social Care,Gas,02.05.2019,1906464377,686.32,Scottish & Southern Energy Plc
Manchester City Council,Adult Social Care,Gas,02.05.2019,1906464376,639.25,Scottish & Southern Energy Plc
Manchester City Council,Adult Social Care,Gas,02.05.2019,1700088258,-686.32,Scottish & Southern Energy Plc
Manchester City Council,Adult Social Care,Electricity,02.05.2019,1906464378,556.06,E-On
Manchester City Council,Adult Social Care,Electricity,02.05.2019,1906464379,555.88,E-On
Manchester City Council,Adult Social Care,Electricity,02.05.2019,1700088259,-555.88,E-On
Manchester City Council,Adult Social Care,Electricity,02.05.2019,1700088260,-555.88,E-On
Manchester City Council,Adult Social Care,Water Service Charges - Unmetered,02.05.2019,1906464330,816.41,Water Plus Limited
Manchester City Council,Adult Social Care,Transport Coach Hire,02.05.2019,5101030694,"1,530.00",Stagecoach Manchester
Manchester City Council,Adult Social Care,Transport Coach Hire,02.05.2019,5101030609,599.00,The Windmill Special Need Co Ltd
Manchester City Council,Adult Social Care,Equipment,02.05.2019,1906459768,"3,100.00",Grindleton Business Centre
Manchester City Council,Adult Social Care,Furniture,02.05.2019,5101030798,583.32,Moston Lane Appliances
Manchester City Council,Adult Social Care,Professional fees,02.05.2019,5101030746,"4,448.02",Greater Manchester Mental Health
Manchester City Council,Adult Social Care,Professional fees,02.05.2019,5101030785,"1,000.00",Capita Asset Services
Manchester City Council,Adult Social Care,Professional fees,02.05.2019,5101030733,"1,050.00",Jacobs UK Ltd
Manchester City Council,Adult Social Care,Bed and Breakfast Accommodation Expenditure,02.05.2019,5101030786,"8,146.97",K L Properties
Manchester City Council,Adult Social Care,Payments for services,02.05.2019,5101030788,"1,120.00",Randstad Education
Manchester City Council,Adult Social Care,Payments for services,02.05.2019,5101030789,"4,931.79",Rossendale School Priory
Manchester City Council,Adult Social Care,Payments for services,02.05.2019,5101030787,"4,448.19",Rossendale School Priory
Manchester City Council,Adult Social Care,Registered Nursing Homes Permanent Payments,02.05.2019,5101030846,"18,068.57",Ringway Mews Nursing Home
Manchester City Council,Adult Social Care,Registered Nursing Homes Permanent Payments,02.05.2019,5101030843,"-2,720.00",Ringway Mews Nursing Home
Manchester City Council,Adult Social Care,Registered Nursing Homes Permanent Payments,02.05.2019,5101030834,"-9,131.43",Ringway Mews Nursing Home
Manchester City Council,Adult Social Care,Housing Rents Debit,02.05.2019,1700088662,-500.87,Redacted Personal Information
Manchester City Council,Corporate Services,Training and Development,02.05.2019,5101030747,"2,000.00",BPP Professional Education
Manchester City Council,Corporate Services,Postage,02.05.2019,5101030586,"8,242.28",Royal Mail Group Plc
Manchester City Council,Corporate Services,I T Provision,02.05.2019,5101030615,"5,574.40",Winshuttle UK Ltd
Manchester City Council,Corporate Services,Works and associated costs for Land and Buildings,02.05.2019,5101030783,"1,078.36",Manchester Working Ltd
Manchester City Council,Corporate Services,Works and associated costs for Land and Buildings,02.05.2019,5101030733,"2,137.50",Jacobs UK Ltd
Manchester City Council,Corporate Services,Long Term Debtors,02.05.2019,5101030752,"1,958,512.00",Manchester New Square Partnership
Manchester City Council,Housing General Fund,Building Works,02.05.2019,5101030733,"2,872.34",Jacobs UK Ltd
Manchester City Council,Housing Revenue Account,Gas,02.05.2019,1906464347,756.63,Scottish & Southern Energy Plc
Manchester City Council,Housing Revenue Account,Gas,02.05.2019,1906464341,718.17,Scottish & Southern Energy Plc
Manchester City Council,Housing Revenue Account,Gas,02.05.2019,1906464339,708.97,Scottish & Southern Energy Plc
Manchester City Council,Housing Revenue Account,Gas,02.05.2019,1906464372,690.29,Scottish & Southern Energy Plc
Manchester City Council,Housing Revenue Account,Gas,02.05.2019,1906464364,669.44,Scottish & Southern Energy Plc
Manchester City Council,Housing Revenue Account,Gas,02.05.2019,1906464368,651.23,Scottish & Southern Energy Plc
Manchester City Council,Housing Revenue Account,Gas,02.05.2019,1906464340,634.14,Scottish & Southern Energy Plc
Manchester City Council,Housing Revenue Account,Gas,02.05.2019,1906464360,609.93,Scottish & Southern Energy Plc
Manchester City Council,Housing Revenue Account,Gas,02.05.2019,1906464373,594.97,Scottish & Southern Energy Plc
Manchester City Council,Housing Revenue Account,Gas,02.05.2019,1906464363,584.14,Scottish & Southern Energy Plc
Manchester City Council,Housing Revenue Account,Gas,02.05.2019,1906464357,580.73,Scottish & Southern Energy Plc
Manchester City Council,Housing Revenue Account,Gas,02.05.2019,1906464374,550.10,Scottish & Southern Energy Plc
Manchester City Council,Housing Revenue Account,Gas,02.05.2019,1906464334,518.77,Scottish & Southern Energy Plc
Manchester City Council,Housing Revenue Account,Gas,02.05.2019,1700088252,-564.64,Scottish & Southern Energy Plc
Manchester City Council,Housing Revenue Account,Gas,02.05.2019,1700088255,-608.63,Scottish & Southern Energy Plc
Manchester City Council,Housing Revenue Account,Professional fees,02.05.2019,5101030733,"2,000.00",Jacobs UK Ltd
Manchester City Council,Housing Revenue Account,Professional fees,02.05.2019,5101030733,"1,750.00",Jacobs UK Ltd
Manchester City Council,Housing Revenue Account,Professional fees,02.05.2019,5101030733,"1,250.00",Jacobs UK Ltd
Manchester City Council,Housing Revenue Account,Professional fees,02.05.2019,5101030733,"1,000.00",Jacobs UK Ltd
Manchester City Council,Housing Revenue Account,Council Dwelling Adaptations,02.05.2019,5101030795,"4,563.00",Stannah Lift Services Ltd
Manchester City Council,Housing Revenue Account,Council Dwelling Adaptations,02.05.2019,5101030738,"34,871.06",Manchester Working Ltd
Manchester City Council,Housing Revenue Account,Council Dwelling Adaptations,02.05.2019,5101030736,"5,457.71",Manchester Working Ltd
Manchester City Council,Housing Revenue Account,Council Dwelling Adaptations,02.05.2019,5101030736,507.41,Manchester Working Ltd
Manchester City Council,Housing Revenue Account,Council Dwelling Adaptations,02.05.2019,5101030769,"2,143.00",Hoist & Shower Chair Company
Manchester City Council,Housing Revenue Account,Council Dwelling Adaptations,02.05.2019,5101030750,"5,071.96",GTM Fire Protection Ltd
Manchester City Council,Chief Executives,Agency staff provision,02.05.2019,5101030726,"2,300.00",HCL Social Care
Manchester City Council,Chief Executives,Training and Development,02.05.2019,5101030693,850.00,Manchester Mind
Manchester City Council,Chief Executives,Training and Development,02.05.2019,5101030697,850.00,Manchester Mind
Manchester City Council,Chief Executives,Advertising,02.05.2019,5101030830,"6,900.00",Bauer Radio Ltd
Manchester City Council,Chief Executives,Third party payments relating to Voluntary Organisations,02.05.2019,5101030755,"9,169.00",Harpurhey Neighbourhood Project
Manchester City Council,Chief Executives,Third party payments relating to Voluntary Organisations,02.05.2019,5101030756,"5,782.00",Black Health Agency
Manchester City Council,Chief Executives,Third party payments relating to Voluntary Organisations,02.05.2019,5101030754,"20,360.00",LMCP Care Link
Manchester City Council,Chief Executives,Third party payments relating to Voluntary Organisations,02.05.2019,5101030757,"1,877.00",African & Caribbean Mental Health
Manchester City Council,Regeneration Finance,Internal Repairs and Maintenance for buildings,02.05.2019,5101030770,"43,940.47",Manchester Working Ltd
Manchester City Council,Regeneration Finance,"Internal Repairs, Alterations Rechargeable",02.05.2019,5101030772,"29,492.60",Manchester Working Ltd
Manchester City Council,Regeneration Finance,External repairs and maintenance for buildings,02.05.2019,5101030471,"1,706.20",Redgate Holdings Ltd
Manchester City Council,Regeneration Finance,External repairs and maintenance for buildings,02.05.2019,5101030845,"3,744.57",Manchester Working Ltd
Manchester City Council,Regeneration Finance,Preventative Maintenance Work,02.05.2019,5101030771,"11,830.16",Manchester Working Ltd
Manchester City Council,Regeneration Finance,Printing,02.05.2019,5101030745,"1,462.20",VIP-System Ltd
Manchester City Council,Regeneration Finance,Professional fees,02.05.2019,5101030675,"4,986.83",Northwards Housing Limited
Manchester City Council,Regeneration Finance,Professional fees,02.05.2019,5101030716,"4,223.05",Northwards Housing Limited
Manchester City Council,Regeneration Finance,Professional fees,02.05.2019,5101030733,"25,000.00",Jacobs UK Ltd
Manchester City Council,Regeneration Finance,Professional fees,02.05.2019,5101030733,"21,780.00",Jacobs UK Ltd
Manchester City Council,Regeneration Finance,Professional fees,02.05.2019,5101030733,"18,595.50",Jacobs UK Ltd
Manchester City Council,Regeneration Finance,Professional fees,02.05.2019,5101030733,"12,146.00",Jacobs UK Ltd
Manchester City Council,Regeneration Finance,Professional fees,02.05.2019,5101030733,636.00,Jacobs UK Ltd
Manchester City Council,Regeneration Finance,Professional fees,02.05.2019,5101030733,630.00,Jacobs UK Ltd
Manchester City Council,Highways Services,Rents,02.05.2019,5101030773,"15,666.00",National Car Parks Ltd Season Ticke
Manchester City Council,Highways Services,Rents,02.05.2019,5101030774,"15,666.00",National Car Parks Ltd Season Ticke
Manchester City Council,Highways Services,Car Parking Permits,02.05.2019,5101030650,785.00,Quadrant Security Group
Manchester City Council,Highways Services,Hire of Machinery,02.05.2019,5101030728,"1,300.00",Utilities Design & Planning Ltd
Manchester City Council,Highways Services,Hire of Machinery,02.05.2019,5101030729,"1,300.00",Utilities Design & Planning Ltd
Manchester City Council,Highways Services,I T Provision,02.05.2019,5101030768,"13,901.60",Symology Limited
Manchester City Council,Highways Services,Compensation Payments,02.05.2019,1700088248,"-1,091.00",Redacted Personal Information
Manchester City Council,Insurance Fund,Insurance,02.05.2019,1700088247,"-7,707.48",Redacted Personal Information
Manchester City Council,Manchester Leisure,External repairs and maintenance for buildings,03.05.2019,5101030603,"2,000.00",Flowprotect Ltd
Manchester City Council,Manchester Leisure,Equipment,03.05.2019,5101030876,"1,861.14",Failsworth Electrical Ltd
Manchester City Council,Manchester Leisure,Equipment,03.05.2019,5101030566,"1,999.85",Flowprotect Ltd
Manchester City Council,Manchester Leisure,Equipment,03.05.2019,5101030600,"1,895.00",Flowprotect Ltd
Manchester City Council,Manchester Leisure,Equipment,03.05.2019,5101030597,"1,550.00",Flowprotect Ltd
Manchester City Council,Manchester Leisure,Equipment,03.05.2019,5101030598,750.00,Flowprotect Ltd
Manchester City Council,Manchester Leisure,Professional fees,03.05.2019,5101030976,"70,000.00",Cityco
Manchester City Council,Manchester Leisure,Professional fees,03.05.2019,1906465992,"1,680.34",Daedo SL
Manchester City Council,Manchester Leisure,Goods purchased for resale in Council outlets,03.05.2019,1906465995,"1,580.84",Studio Arhoj
Manchester City Council,Manchester Leisure,Goods purchased for resale in Council outlets,03.05.2019,1906465817,"2,445.00",Buiding Link Limited
Manchester City Council,Manchester Leisure,Goods purchased for resale in Council outlets,03.05.2019,1906465730,"1,485.56",KeepCup Limited
Manchester City Council,Manchester Leisure,Special Events,03.05.2019,5101030804,"8,000.00",Beat Bazaar Projects Ltd
Manchester City Council,Hospitality + Trading Services,Rodent and Pest Control,03.05.2019,5101030851,872.80,Killgerm Chemicals Ltd
Manchester City Council,Hospitality + Trading Services,Vehicle Fuel Costs,03.05.2019,5101030912,"10,318.16",Carlton Fuels Ltd
Manchester City Council,Hospitality + Trading Services,Vehicle Fuel Costs,03.05.2019,5101030913,"10,315.06",Carlton Fuels Ltd
Manchester City Council,Hospitality + Trading Services,Funeral and coroner related services,03.05.2019,5101030223,"7,134.26",G E Robinson & Co Ltd
Manchester City Council,Environment and Operations,Equipment,03.05.2019,1906465833,800.00,Tameside Scale Services Ltd
Manchester City Council,Adult Social Care,Goods Received Invoice Received,03.05.2019,5101030858,"-1,800.00",Redacted Personal Information
Manchester City Council,Adult Social Care,Training and Development,03.05.2019,5101030901,750.00,Manchester Metropolitan University
Manchester City Council,Adult Social Care,Training and Development,03.05.2019,5101030902,750.00,Manchester Metropolitan University
Manchester City Council,Adult Social Care,Training and Development,03.05.2019,5101030903,750.00,Manchester Metropolitan University
Manchester City Council,Adult Social Care,Training and Development,03.05.2019,5101030859,"1,800.00",Redacted Personal Information
Manchester City Council,Adult Social Care,Rents,03.05.2019,5101031022,"75,670.14",Accommodation Links Ltd
Manchester City Council,Adult Social Care,Equipment,03.05.2019,5101030857,"1,100.00",Aidapt Bathrooms Ltd
Manchester City Council,Adult Social Care,Professional fees,03.05.2019,5101030870,"5,139.03",Wythenshawe Community Housing Group
Manchester City Council,Adult Social Care,Professional fees,03.05.2019,5101030868,"1,581.24",Wythenshawe Community Housing Group
Manchester City Council,Adult Social Care,Professional fees,03.05.2019,5101030869,"1,581.24",Wythenshawe Community Housing Group
Manchester City Council,Adult Social Care,Professional fees,03.05.2019,5101030863,875.00,RJW Associates Ltd
Manchester City Council,Adult Social Care,Telecoms Equip,03.05.2019,5101030886,"7,971.18",Tunstall Healthcare (UK) Ltd
Manchester City Council,Adult Social Care,I T Provision,03.05.2019,5101030765,"3,175.00",Right 2 Write Ltd
Manchester City Council,Adult Social Care,Removal and Storage of Furniture,03.05.2019,5101030585,"3,538.83",BCL
Manchester City Council,Adult Social Care,Third party payments relating to Voluntary Organisations,03.05.2019,5101030911,"80,000.00",Man. Citizens Advice Bureaux
Manchester City Council,Adult Social Care,Third party payments relating to Voluntary Organisations,03.05.2019,5101030878,"2,537.00",Federation of Jewish Services
Manchester City Council,Adult Social Care,Third party payments relating to Voluntary Organisations,03.05.2019,5101030882,"2,598.75",The Big Life Company
Manchester City Council,Adult Social Care,Payments for services,03.05.2019,5101030893,"5,859.00",National Offender Mgt Services
Manchester City Council,Adult Social Care,Payments for services,03.05.2019,5101030895,"5,859.00",National Offender Mgt Services
Manchester City Council,Adult Social Care,Payments for services,03.05.2019,5101030978,"5,859.00",National Offender Mgt Services
Manchester City Council,Adult Social Care,Payments for services,03.05.2019,5101030892,"5,292.00",National Offender Mgt Services
Manchester City Council,Adult Social Care,Payments for services,03.05.2019,5101030896,"3,780.00",National Offender Mgt Services
Manchester City Council,Adult Social Care,Payments for services,03.05.2019,5101030890,"2,835.00",National Offender Mgt Services
Manchester City Council,Adult Social Care,Supporting People Payments,03.05.2019,5101030879,"3,611.13",Contact Hostel
Manchester City Council,Adult Social Care,Supporting People Payments,03.05.2019,5101030881,991.74,Manchester Settlement
Manchester City Council,Adult Social Care,Supported Accommodation,03.05.2019,5101031013,532.08,Manchester Settlement
Manchester City Council,Adult Social Care,Extra Care Sheltered Housing Payments,03.05.2019,5101030900,"17,567.40",Creative Support Ltd
Manchester City Council,Childrens Services,Works and associated costs for Land and Buildings,03.05.2019,5101030877,"3,828.49",ENGIE Regeneration Ltd
Manchester City Council,Corporate Services,Discounted Car Parking,03.05.2019,1906465917,"1,337.75",National Car Parks Ltd Season Ticke
Manchester City Council,Corporate Services,Professional fees,03.05.2019,5101030872,795.00,Acuma Solutions Ltd
Manchester City Council,Corporate Services,Postage,03.05.2019,5101030861,"1,278.91",Royal Mail Group Plc
Manchester City Council,Corporate Services,Long Term Debtors,03.05.2019,5101031062,"76,966.00",First Step (Ancoats) Ltd
Manchester City Council,Housing Revenue Account,Works and associated costs for Land and Buildings,03.05.2019,5101030910,"19,500.00",Equity Housing Group
Manchester City Council,Chief Executives,Agency staff provision,03.05.2019,5101031023,"48,473.18",Access Computer Consulting plc
Manchester City Council,Chief Executives,Payments to Sub-Contractors,03.05.2019,5101030762,681.55,T/A Janus
Manchester City Council,Chief Executives,Payments to Sub-Contractors,03.05.2019,5101030977,511.25,Redacted Personal Information
Manchester City Council,Chief Executives,Postage,03.05.2019,5101030891,"3,813.00",Royal Mail Group Plc
Manchester City Council,Chief Executives,Telecoms Equip,03.05.2019,5101030824,"3,104.50",Lafone Communications Ltd.
Manchester City Council,Chief Executives,I T Provision,03.05.2019,5101030856,"3,756.00",GS Systems Ltd
Manchester City Council,Chief Executives,Grant and subscriptions awarded,03.05.2019,5101030794,"17,500.00",Central Mcr Uni Hospital t/a
Manchester City Council,Chief Executives,Grant and subscriptions awarded,03.05.2019,5101030889,"2,099.00",The Manchester Law Society
Manchester City Council,Chief Executives,Works and associated costs for Land and Buildings,03.05.2019,5101031019,"115,561.83",Building Design Partnership Limited
Manchester City Council,Chief Executives,Works and associated costs for Land and Buildings,03.05.2019,5101031018,"-115,561.83",Building Design Partnership Limited
Manchester City Council,Chief Executives,Building Works,03.05.2019,1906465823,"2,935,605.00",Vital Energi Solutions Ltd
Manchester City Council,Chief Executives,Compensation Payments,03.05.2019,1906465740,550.00,Redacted Personal Information
Manchester City Council,Chief Executives,Compensation Payments,03.05.2019,1906462950,850.00,Redacted Personal Information
Manchester City Council,Regeneration Finance,Stationery,03.05.2019,5101030854,"2,149.50",Digital ID Ltd
Manchester City Council,Regeneration Finance,I T Provision,03.05.2019,5101030865,"1,475.00",GMCVO Databases
Manchester City Council,Regeneration Finance,Removal and Storage of Furniture,03.05.2019,5101030590,"1,074.32",BCL
Manchester City Council,Regeneration Finance,Third party payments to other Local Authorities,03.05.2019,5101030753,"1,475.00",GMCVO Databases
Manchester City Council,Regeneration Finance,Third party payments to other Local Authorities,03.05.2019,5101030862,"-1,475.00",GMCVO Databases
Manchester City Council,Highways Services,Building Materials for direct delivery,03.05.2019,5101030931,726.00,Signpost Solutions Ltd T/A Signfix
Manchester City Council,Highways Services,Compensation Payments,03.05.2019,1906465750,"1,091.00",Redacted Personal Information
Manchester City Council,Highways Services,Compensation Payments,03.05.2019,1906465754,"1,900.00",Redacted Personal Information
Manchester City Council,Highways Services,Compensation Payments,03.05.2019,1906464221,688.00,Department For Work & Pensions
Manchester City Council,Highways Services,Compensation Payments,03.05.2019,1906464248,"1,140.00",Irwin Mitchell Solicitors
Manchester City Council,Manchester Leisure,Agency staff provision,07.05.2019,5101030897,"15,000.00",HOME
Manchester City Council,Manchester Leisure,Refuse Collection,07.05.2019,5101030828,"87,994.56",Biffa Municipal Limited
Manchester City Council,Manchester Leisure,Equipment,07.05.2019,5101030810,575.75,Flowprotect Ltd
Manchester City Council,Manchester Leisure,Catering,07.05.2019,5101030803,"6,500.00",Vermilon & Cinnabar
Manchester City Council,Manchester Leisure,Professional fees,07.05.2019,5101031175,"8,100.00",Axis Graphic Design Ltd
Manchester City Council,Manchester Leisure,Professional fees,07.05.2019,5101031153,"55,000.00",Biffa Municipal Limited
Manchester City Council,Manchester Leisure,Professional fees,07.05.2019,5101030803,"5,300.00",Vermilon & Cinnabar
Manchester City Council,Manchester Leisure,Compensation Payments,07.05.2019,1906462910,"6,090.00",CFG Law
Manchester City Council,Manchester Leisure,Grant and subscriptions awarded,07.05.2019,5101031092,"1,200.00",Indian Association (Manchester)
Manchester City Council,Hospitality + Trading Services,External repairs and maintenance for buildings,07.05.2019,5101031168,"36,844.37",Manchester Working Ltd
Manchester City Council,Hospitality + Trading Services,Vehicle Hire Costs,07.05.2019,5101031101,"68,424.40",Winners Contract Hire Ltd
Manchester City Council,Hospitality + Trading Services,Hire of Machinery,07.05.2019,5101030945,830.80,R & M Developments Ltd
Manchester City Council,Hospitality + Trading Services,Hire of Machinery,07.05.2019,5101030950,830.80,R & M Developments Ltd
Manchester City Council,Hospitality + Trading Services,Hire of Machinery,07.05.2019,5101030944,810.00,R & M Developments Ltd
Manchester City Council,Hospitality + Trading Services,Hire of Machinery,07.05.2019,5101030952,810.00,R & M Developments Ltd
Manchester City Council,Hospitality + Trading Services,Professional fees,07.05.2019,1906465816,"11,000.00",Redacted Personal Information
Manchester City Council,Hospitality + Trading Services,Compensation Payments,07.05.2019,1906457009,"6,678.40",Wixted & Co
Manchester City Council,Hospitality + Trading Services,Compensation Payments,07.05.2019,1906465728,"9,000.00",Jiva Solicitors
Manchester City Council,Hospitality + Trading Services,Funeral and coroner related services,07.05.2019,1906465819,"27,225.00",Crematoria Abatement Of
Manchester City Council,Hospitality + Trading Services,Compensation Payments,07.05.2019,1906465727,"1,070.00",Jiva Solicitors
Manchester City Council,Hospitality + Trading Services,Compensation Payments,07.05.2019,1906463936,"1,573.20",Thompsons Solicitors
Manchester City Council,Hospitality + Trading Services,Compensation Payments,07.05.2019,1906457003,"9,182.80",Wixted & Co
Manchester City Council,Environment and Operations,Construction Works,07.05.2019,5101031010,"10,950.00",Manchester Breakdown Services Ltd
Manchester City Council,Adult Social Care,Training and Development,07.05.2019,5101031071,750.00,University Of Salford
Manchester City Council,Adult Social Care,Training and Development,07.05.2019,5101031085,800.00,"TLC: Talk, Listen, Change"
Manchester City Council,Adult Social Care,Rents,07.05.2019,1906464214,"1,400.00",Glenthorpe Homes
Manchester City Council,Adult Social Care,Rents,07.05.2019,1906464211,"1,071.00",Redacted Personal Information
Manchester City Council,Adult Social Care,Rents,07.05.2019,5101030873,"6,076.62",Eeven Homes Ltd.
Manchester City Council,Adult Social Care,Rents,07.05.2019,1906465721,900.00,Redacted Personal Information
Manchester City Council,Adult Social Care,Rents,07.05.2019,1906465741,"1,071.00",Casement Ventures
Manchester City Council,Adult Social Care,Rents,07.05.2019,1906465732,"1,040.00",Casement Ventures
Manchester City Council,Adult Social Care,Rents,07.05.2019,1906463947,"1,100.00",NPP Lettings
Manchester City Council,Adult Social Care,Rents,07.05.2019,1906465824,800.00,Pearson Ferrier Middleton Ltd
Manchester City Council,Adult Social Care,Transport Taxis,07.05.2019,1906463945,638.00,Cresta Car Hire
Manchester City Council,Adult Social Care,Equipment,07.05.2019,5101031070,"1,500.00",Tunstall Healthcare (UK) Ltd
Manchester City Council,Adult Social Care,Grant Payments,07.05.2019,5101031109,"1,230.00",Telecare Services Association
Manchester City Council,Adult Social Care,Signers/Interpreters Fees,07.05.2019,5101031183,586.40,Language Line Ltd
Manchester City Council,Adult Social Care,Professional fees,07.05.2019,5101031076,"4,222.00",Central Mcr Uni Hospital t/a
Manchester City Council,Adult Social Care,Compensation Payments,07.05.2019,1906459028,750.00,Accountant General
Manchester City Council,Adult Social Care,Bed and Breakfast Accommodation Expenditure,07.05.2019,5101031066,"58,664.98",Cromwood Ltd
Manchester City Council,Adult Social Care,Third party payments to other Local Authorities,07.05.2019,5101030939,"345,932.54",Refugee Action
Manchester City Council,Adult Social Care,Third party payments to other Local Authorities,07.05.2019,5101031154,"2,450.00",Pennine Care In Patient Services
Manchester City Council,Adult Social Care,Third party payments to other Local Authorities,07.05.2019,5101031155,"2,718.00",Cygnet (NW) Ltd
Manchester City Council,Adult Social Care,Third party payments to other Local Authorities,07.05.2019,5101031157,"1,359.00",Cygnet (NW) Ltd
Manchester City Council,Adult Social Care,Third party payments to Health Authority,07.05.2019,5101031174,"8,455.50",Central Mcr Uni Hospital t/a
Manchester City Council,Adult Social Care,Third party payments to Health Authority,07.05.2019,5101031176,"8,455.50",Central Mcr Uni Hospital t/a
Manchester City Council,Adult Social Care,Third party payments to Health Authority,07.05.2019,5101031184,"8,455.50",Central Mcr Uni Hospital t/a
Manchester City Council,Adult Social Care,Third party payments relating to Voluntary Organisations,07.05.2019,5101031069,"22,798.00",Federation of Jewish Services
Manchester City Council,Adult Social Care,Third party payments relating to Voluntary Organisations,07.05.2019,5101031087,"4,244.75",The Big Life Company
Manchester City Council,Adult Social Care,Third party payments relating to Voluntary Organisations,07.05.2019,5101031079,691.75,The Big Life Company
Manchester City Council,Adult Social Care,Third party payments relating to Voluntary Organisations,07.05.2019,5101031080,"30,363.25",The Booth Centre
Manchester City Council,Adult Social Care,Payments for services,07.05.2019,5101030984,"16,560.00",Greater Manchester Mental Health
Manchester City Council,Adult Social Care,Payments for services,07.05.2019,5101030665,"2,140.00",Cheshire College South and West
Manchester City Council,Adult Social Care,Payments for services,07.05.2019,5101030793,"8,099.05",Liverpool Progressive School
Manchester City Council,Adult Social Care,Payments for services,07.05.2019,5101030791,"2,000.00",Carrington Riding Centre
Manchester City Council,Adult Social Care,Payments for services,07.05.2019,5101031177,718.59,Jane Lewis Health and Social Care
Manchester City Council,Adult Social Care,Payments for services,07.05.2019,5101031179,619.84,Jane Lewis Health and Social Care
Manchester City Council,Adult Social Care,Supporting People Payments,07.05.2019,5101031165,"1,255.41",Anchor Trust
Manchester City Council,Adult Social Care,Supporting People Payments,07.05.2019,5101031165,930.00,Anchor Trust
Manchester City Council,Adult Social Care,Foster Payments,07.05.2019,1906468411,"1,247.11",Redacted Personal Information
Manchester City Council,Adult Social Care,Foster Payments,07.05.2019,1906468408,639.40,Redacted Personal Information
Manchester City Council,Adult Social Care,Foster Payments,07.05.2019,1906468409,"2,168.00",Redacted Personal Information
Manchester City Council,Adult Social Care,Foster Payments,07.05.2019,1906468410,517.20,Redacted Personal Information
Manchester City Council,Adult Social Care,Foster Payments,07.05.2019,1906468404,572.00,Redacted Personal Information
Manchester City Council,Adult Social Care,Extra Care Sheltered Housing Payments,07.05.2019,5101031128,"13,870.64",Independent Living Alliance
Manchester City Council,Adult Social Care,Extra Care Sheltered Housing Payments,07.05.2019,5101031129,"13,870.64",Independent Living Alliance
Manchester City Council,Adult Social Care,Housing Rents Debit,07.05.2019,1906465791,"1,283.59",Redacted Personal Information
Manchester City Council,Adult Social Care,Compensation Payments,07.05.2019,1906462956,"2,972.00",Tranter Cleere & Co
Manchester City Council,Corporate Services,Training and Development,07.05.2019,5101030849,"9,500.00",Me Learning Limited
Manchester City Council,Corporate Services,Long Term Debtors,07.05.2019,5101031300,"301,009.68",New Little Mill Developments Ltd
Manchester City Council,Housing General Fund,Vehicle Plant Furniture and Equipment,07.05.2019,5101030816,998.91,Insight Direct (Uk) Ltd
Manchester City Council,Housing Revenue Account,Northwards Repairs Fee,07.05.2019,5101031117,"1,659,676.33",Northwards Housing Limited
Manchester City Council,Housing Revenue Account,Northwards Management Fee,07.05.2019,5101031120,"26,916.66",Northwards Housing Limited
Manchester City Council,Housing Revenue Account,I T Provision,07.05.2019,5101030742,"5,950.00",Aareon UK Ltd
Manchester City Council,Chief Executives,Agency staff provision,07.05.2019,5101030682,"3,958.78",Deekay Technical Recruitment Ltd
Manchester City Council,Chief Executives,Payments to Sub-Contractors,07.05.2019,5101031025,628.50,Redacted Personal Information
Manchester City Council,Chief Executives,Hire of Equipment,07.05.2019,1906465821,640.00,Mantra Learning
Manchester City Council,Chief Executives,Printing,07.05.2019,5101031185,904.00,Mail Solutions
Manchester City Council,Chief Executives,Printing,07.05.2019,5101030839,"1,930.00",Browns CTP Ltd
Manchester City Council,Chief Executives,Printing,07.05.2019,5101030826,579.00,NB Colour Print Limited
Manchester City Council,Chief Executives,Professional fees,07.05.2019,1906462913,500.00,Redacted Personal Information
Manchester City Council,Chief Executives,Professional fees,07.05.2019,1906468413,750.00,THE CS PARTNERSHIP
Manchester City Council,Chief Executives,ICT Support & Maintenance,07.05.2019,5101031158,985.48,Siteimprove Ltd
Manchester City Council,Chief Executives,Grant and subscriptions awarded,07.05.2019,5101030848,"120,833.33",National Football Museum
Manchester City Council,Chief Executives,Grant and subscriptions awarded,07.05.2019,5101031110,"20,000.00",Design Manchester Ltd
Manchester City Council,Chief Executives,Advertising,07.05.2019,5101031159,700.00,Exterion Media
Manchester City Council,Chief Executives,Advertising,07.05.2019,5101031125,"1,709.05",TES Global Ltd
Manchester City Council,Chief Executives,Advertising,07.05.2019,5101031123,949.05,TES Global Ltd
Manchester City Council,Chief Executives,Advertising,07.05.2019,5101031149,"6,260.70",Bauer Radio Ltd
Manchester City Council,Chief Executives,Payments for services,07.05.2019,5101031137,"15,158.00",Central Mcr Uni Hospital t/a
Manchester City Council,Chief Executives,Compensation Payments,07.05.2019,1906465950,950.00,Kenworthy's Chambers
Manchester City Council,Chief Executives,Compensation Payments,07.05.2019,1906465953,"1,950.00",Kenworthy's Chambers
Manchester City Council,Chief Executives,Compensation Payments,07.05.2019,1906465939,750.00,Redacted Personal Information
Manchester City Council,Chief Executives,Compensation Payments,07.05.2019,1906462918,"1,600.00",Redacted Personal Information
Manchester City Council,Chief Executives,Compensation Payments,07.05.2019,1906465938,"6,300.00",Redacted Personal Information
Manchester City Council,Chief Executives,Compensation Payments,07.05.2019,1906465936,803.20,Stockport Psychology Services
Manchester City Council,Regeneration Finance,Training and Development,07.05.2019,5101030982,"1,500.00",The Education and Training Foundati
Manchester City Council,Regeneration Finance,Internal Repairs and Maintenance for buildings,07.05.2019,5101031162,"15,524.78",Manchester Working Ltd
Manchester City Council,Regeneration Finance,"Internal Repairs, Alterations Rechargeable",07.05.2019,5101031164,"20,797.70",Manchester Working Ltd
Manchester City Council,Regeneration Finance,External repairs and maintenance for buildings,07.05.2019,5101031061,"1,495.00",BAT Fabrications
Manchester City Council,Regeneration Finance,Preventative Maintenance Work,07.05.2019,5101031166,"1,837.61",Manchester Working Ltd
Manchester City Council,Regeneration Finance,Rents,07.05.2019,1906463944,"81,180.00",Regus Management (UK) Ltd
Manchester City Council,Regeneration Finance,Rents,07.05.2019,1906463950,"6,350.83",Regus Management (UK) Ltd
Manchester City Council,Regeneration Finance,Grounds Maintenance Costs,07.05.2019,5101030727,"1,300.00",Invasive Weeds Agency Ltd
Manchester City Council,Regeneration Finance,Taxi Vehicle Materials,07.05.2019,5101031114,608.50,New Auto Ltd T/A Mogo (Uk)
Manchester City Council,Regeneration Finance,Furniture,07.05.2019,5101031028,-502.20,Yorkshire Purchasing
Manchester City Council,Regeneration Finance,Grant Payments,07.05.2019,5101031094,"3,490.00",Haymarket Publishing Services Ltd
Manchester City Council,Regeneration Finance,Printing,07.05.2019,5101031103,"2,135.40",VIP-System Ltd
Manchester City Council,Regeneration Finance,Stationery,07.05.2019,5101031075,595.00,Cardentity Ltd
Manchester City Council,Regeneration Finance,Grant and subscriptions awarded,07.05.2019,5101031150,"6,750.00",North Manchester Community
Manchester City Council,Regeneration Finance,Planning Application Fees,07.05.2019,1906462989,924.00,PortalPlanQuest Ltd
Manchester City Council,Highways Services,Payments to Sub-Contractors,07.05.2019,5101031112,"8,384.31",Steer Davies & Geave Limited
Manchester City Council,Highways Services,Compensation Payments,07.05.2019,1906465979,665.00,Department For Work & Pensions
Manchester City Council,Highways Services,Compensation Payments,07.05.2019,1906465968,678.00,Department For Work & Pensions
Manchester City Council,Highways Services,Compensation Payments,07.05.2019,1906465980,672.00,Irwin Mitchell Solicitors
Manchester City Council,Insurance Fund,Insurance,07.05.2019,1906465736,"3,082.99",Redacted Personal Information
Manchester City Council,Insurance Fund,Insurance,07.05.2019,1906465738,"22,909.67",Redacted Personal Information
Manchester City Council,Insurance Fund,Insurance,07.05.2019,1906462966,"22,938.81",CFG Law
Manchester City Council,Insurance Fund,Insurance,07.05.2019,1906462909,971.19,Department For Work & Pensions
Manchester City Council,Insurance Fund,Insurance,07.05.2019,1906465945,750.00,Weightmans LLP Solicitors
Manchester City Council,Manchester Leisure,Training and Development,08.05.2019,5101031182,"1,415.50",ESRI (Uk) Ltd
Manchester City Council,Manchester Leisure,External repairs and maintenance for buildings,08.05.2019,5101030999,"6,691.48",Clearview Event Services Limited
Manchester City Council,Manchester Leisure,External repairs and maintenance for buildings,08.05.2019,5101031006,"6,591.33",Clearview Event Services Limited
Manchester City Council,Manchester Leisure,External repairs and maintenance for buildings,08.05.2019,5101031005,762.70,Clearview Event Services Limited
Manchester City Council,Manchester Leisure,External repairs and maintenance for buildings,08.05.2019,5101031003,678.95,Clearview Event Services Limited
Manchester City Council,Manchester Leisure,External repairs and maintenance for buildings,08.05.2019,5101031140,"2,666.67",Tivoli Group Ltd
Manchester City Council,Manchester Leisure,Relet Building Repairs,08.05.2019,5101031001,"3,696.00",Groundwork & Leisure Services Ltd
Manchester City Council,Manchester Leisure,Equipment,08.05.2019,5101031102,598.30,Preservation Equipment Ltd
Manchester City Council,Manchester Leisure,Payments to Sub-Contractors,08.05.2019,5101030761,"7,800.00",Groundwork & Leisure Services Ltd
Manchester City Council,Manchester Leisure,Payments to Sub-Contractors,08.05.2019,5101030737,"2,600.00",Groundwork & Leisure Services Ltd
Manchester City Council,Manchester Leisure,Payments to Sub-Contractors,08.05.2019,5101030735,"1,400.00",Groundwork & Leisure Services Ltd
Manchester City Council,Manchester Leisure,Payments to Sub-Contractors,08.05.2019,5101030740,890.00,Groundwork & Leisure Services Ltd
Manchester City Council,Manchester Leisure,Publications,08.05.2019,5101031370,"1,120.00",Thompson Reuters
Manchester City Council,Manchester Leisure,Professional fees,08.05.2019,5101031422,"3,000.00",One Education Ltd
Manchester City Council,Manchester Leisure,Professional fees,08.05.2019,5101031302,870.00,County Scientific Services
Manchester City Council,Manchester Leisure,Professional fees,08.05.2019,5101031304,870.00,County Scientific Services
Manchester City Council,Manchester Leisure,Professional fees,08.05.2019,5101031306,870.00,County Scientific Services
Manchester City Council,Manchester Leisure,Professional fees,08.05.2019,5101031250,"1,800.00",Redacted Personal Information
Manchester City Council,Manchester Leisure,Third party payments relating to Voluntary Organisations,08.05.2019,5101031037,"3,750.00",Carol Bartram Associates Ltd
Manchester City Council,Manchester Leisure,Payments for services,08.05.2019,5101030790,"10,000.00",Greenwich Leisure Limited
Manchester City Council,Manchester Leisure,Payments for services,08.05.2019,5101030724,"1,950.00",Dance and Fitness Agency Ltd
Manchester City Council,Hospitality + Trading Services,Vehicle Fuel Costs,08.05.2019,5101031374,"10,352.04",Carlton Fuels Ltd
Manchester City Council,Hospitality + Trading Services,Vehicle Hire Costs,08.05.2019,5101031236,"2,750.00",TIP Trailer Services UK Ltd
Manchester City Council,Hospitality + Trading Services,Vehicle Hire Costs,08.05.2019,5101031276,"2,750.00",TIP Trailer Services UK Ltd
Manchester City Council,Hospitality + Trading Services,Vehicle Hire Costs,08.05.2019,5101031273,"2,715.77",TIP Trailer Services UK Ltd
Manchester City Council,Hospitality + Trading Services,Vehicle Hire Costs,08.05.2019,5101031312,"2,715.77",TIP Trailer Services UK Ltd
Manchester City Council,Hospitality + Trading Services,Vehicle Hire Costs,08.05.2019,5101031278,916.70,TIP Trailer Services UK Ltd
Manchester City Council,Hospitality + Trading Services,Catering Provisions,08.05.2019,1906472361,"1,032.30",Brake Bros Foodservice Ltd
Manchester City Council,Hospitality + Trading Services,Catering Provisions,08.05.2019,1906472202,903.43,Brake Bros Foodservice Ltd
Manchester City Council,Hospitality + Trading Services,Catering Provisions,08.05.2019,1906472267,775.91,Brake Bros Foodservice Ltd
Manchester City Council,Hospitality + Trading Services,Catering Provisions,08.05.2019,1906472231,763.01,Brake Bros Foodservice Ltd
Manchester City Council,Hospitality + Trading Services,Catering Provisions,08.05.2019,1906472269,734.11,Brake Bros Foodservice Ltd
Manchester City Council,Hospitality + Trading Services,Catering Provisions,08.05.2019,1906472351,661.66,Brake Bros Foodservice Ltd
Manchester City Council,Hospitality + Trading Services,Catering Provisions,08.05.2019,1906472253,654.00,Brake Bros Foodservice Ltd
Manchester City Council,Hospitality + Trading Services,Catering Provisions,08.05.2019,1906472212,628.36,Brake Bros Foodservice Ltd
Manchester City Council,Hospitality + Trading Services,Catering Provisions,08.05.2019,1906472265,617.17,Brake Bros Foodservice Ltd
Manchester City Council,Hospitality + Trading Services,Catering Provisions,08.05.2019,1906472239,609.07,Brake Bros Foodservice Ltd
Manchester City Council,Hospitality + Trading Services,Catering Provisions,08.05.2019,1906472318,579.92,Brake Bros Foodservice Ltd
Manchester City Council,Hospitality + Trading Services,Catering Provisions,08.05.2019,1906472241,567.64,Brake Bros Foodservice Ltd
Manchester City Council,Hospitality + Trading Services,Catering Provisions,08.05.2019,1906472275,567.45,Brake Bros Foodservice Ltd
Manchester City Council,Hospitality + Trading Services,Catering Provisions,08.05.2019,1906472368,545.54,Brake Bros Foodservice Ltd
Manchester City Council,Hospitality + Trading Services,Catering Provisions,08.05.2019,1906472342,525.51,Brake Bros Foodservice Ltd
Manchester City Council,Hospitality + Trading Services,Catering Provisions,08.05.2019,1906472331,515.26,Brake Bros Foodservice Ltd
Manchester City Council,Hospitality + Trading Services,Catering Provisions,08.05.2019,1906472314,513.95,Brake Bros Foodservice Ltd
Manchester City Council,Hospitality + Trading Services,Catering Provisions,08.05.2019,1906471919,"1,207.23",BRAKE BROS LTD
Manchester City Council,Hospitality + Trading Services,Catering Provisions,08.05.2019,1906471975,"1,026.94",BRAKE BROS LTD
Manchester City Council,Hospitality + Trading Services,Catering Provisions,08.05.2019,1906471974,"1,017.99",BRAKE BROS LTD
Manchester City Council,Hospitality + Trading Services,Catering Provisions,08.05.2019,1906472056,901.44,BRAKE BROS LTD
Manchester City Council,Hospitality + Trading Services,Catering Provisions,08.05.2019,1906471977,839.54,BRAKE BROS LTD
Manchester City Council,Hospitality + Trading Services,Catering Provisions,08.05.2019,1906471925,833.48,BRAKE BROS LTD
Manchester City Council,Hospitality + Trading Services,Catering Provisions,08.05.2019,1906471857,764.62,BRAKE BROS LTD
Manchester City Council,Hospitality + Trading Services,Catering Provisions,08.05.2019,1906472199,703.89,BRAKE BROS LTD
Manchester City Council,Hospitality + Trading Services,Catering Provisions,08.05.2019,1906472153,685.26,BRAKE BROS LTD
Manchester City Council,Hospitality + Trading Services,Catering Provisions,08.05.2019,1906471852,665.07,BRAKE BROS LTD
Manchester City Council,Hospitality + Trading Services,Catering Provisions,08.05.2019,1906471887,662.48,BRAKE BROS LTD
Manchester City Council,Hospitality + Trading Services,Catering Provisions,08.05.2019,1906471856,660.67,BRAKE BROS LTD
Manchester City Council,Hospitality + Trading Services,Catering Provisions,08.05.2019,1906471968,657.94,BRAKE BROS LTD
Manchester City Council,Hospitality + Trading Services,Catering Provisions,08.05.2019,1906471888,655.32,BRAKE BROS LTD
Manchester City Council,Hospitality + Trading Services,Catering Provisions,08.05.2019,1906471882,651.98,BRAKE BROS LTD
Manchester City Council,Hospitality + Trading Services,Catering Provisions,08.05.2019,1906472009,644.72,BRAKE BROS LTD
Manchester City Council,Hospitality + Trading Services,Catering Provisions,08.05.2019,1906471865,640.17,BRAKE BROS LTD
Manchester City Council,Hospitality + Trading Services,Catering Provisions,08.05.2019,1906472200,629.90,BRAKE BROS LTD
Manchester City Council,Hospitality + Trading Services,Catering Provisions,08.05.2019,1906472176,614.97,BRAKE BROS LTD
Manchester City Council,Hospitality + Trading Services,Catering Provisions,08.05.2019,1906471862,580.96,BRAKE BROS LTD
Manchester City Council,Hospitality + Trading Services,Catering Provisions,08.05.2019,1906472023,578.76,BRAKE BROS LTD
Manchester City Council,Hospitality + Trading Services,Catering Provisions,08.05.2019,1906471905,565.61,BRAKE BROS LTD
Manchester City Council,Hospitality + Trading Services,Catering Provisions,08.05.2019,1906472192,557.40,BRAKE BROS LTD
Manchester City Council,Hospitality + Trading Services,Catering Provisions,08.05.2019,1906472015,536.66,BRAKE BROS LTD
Manchester City Council,Hospitality + Trading Services,Catering Provisions,08.05.2019,1906471894,535.83,BRAKE BROS LTD
Manchester City Council,Hospitality + Trading Services,Catering Provisions,08.05.2019,1906472010,531.60,BRAKE BROS LTD
Manchester City Council,Hospitality + Trading Services,Catering Provisions,08.05.2019,1906471881,524.47,BRAKE BROS LTD
Manchester City Council,Hospitality + Trading Services,Catering Provisions,08.05.2019,1906471874,523.29,BRAKE BROS LTD
Manchester City Council,Hospitality + Trading Services,Catering Provisions,08.05.2019,1906471943,516.37,BRAKE BROS LTD
Manchester City Council,Hospitality + Trading Services,Catering Provisions,08.05.2019,1906472190,508.92,BRAKE BROS LTD
Manchester City Council,Hospitality + Trading Services,Catering Provisions,08.05.2019,1906472078,"1,052.95",RALPH LIVESEY LTD
Manchester City Council,Hospitality + Trading Services,Catering Provisions,08.05.2019,1906471772,758.20,RALPH LIVESEY LTD
Manchester City Council,Hospitality + Trading Services,Catering Provisions,08.05.2019,1906471713,736.75,RALPH LIVESEY LTD
Manchester City Council,Hospitality + Trading Services,Catering Provisions,08.05.2019,1906471716,723.08,RALPH LIVESEY LTD
Manchester City Council,Hospitality + Trading Services,Catering Provisions,08.05.2019,1906471781,687.43,RALPH LIVESEY LTD
Manchester City Council,Hospitality + Trading Services,Catering Provisions,08.05.2019,1906471715,672.69,RALPH LIVESEY LTD
Manchester City Council,Hospitality + Trading Services,Catering Provisions,08.05.2019,1906472043,657.84,RALPH LIVESEY LTD
Manchester City Council,Hospitality + Trading Services,Catering Provisions,08.05.2019,1906471771,643.35,RALPH LIVESEY LTD
Manchester City Council,Hospitality + Trading Services,Catering Provisions,08.05.2019,1906471681,621.60,RALPH LIVESEY LTD
Manchester City Council,Hospitality + Trading Services,Catering Provisions,08.05.2019,1906472140,582.38,RALPH LIVESEY LTD
Manchester City Council,Hospitality + Trading Services,Catering Provisions,08.05.2019,1906471829,581.09,RALPH LIVESEY LTD
Manchester City Council,Hospitality + Trading Services,Catering Provisions,08.05.2019,1906472093,576.25,RALPH LIVESEY LTD
Manchester City Council,Hospitality + Trading Services,Catering Provisions,08.05.2019,1906471753,557.89,RALPH LIVESEY LTD
Manchester City Council,Hospitality + Trading Services,Catering Provisions,08.05.2019,1906471725,552.36,RALPH LIVESEY LTD
Manchester City Council,Hospitality + Trading Services,Catering Provisions,08.05.2019,1906471729,524.32,RALPH LIVESEY LTD
Manchester City Council,Hospitality + Trading Services,Catering Provisions,08.05.2019,1906471678,519.73,RALPH LIVESEY LTD
Manchester City Council,Hospitality + Trading Services,Catering Provisions,08.05.2019,1906472070,507.21,RALPH LIVESEY LTD
Manchester City Council,Environment and Operations,Professional fees,08.05.2019,5101031349,595.00,Solution Talk LLP
Manchester City Council,Environment and Operations,Professional fees,08.05.2019,5101031350,595.00,Solution Talk LLP
Manchester City Council,Environment and Operations,Construction Works,08.05.2019,5101031131,"12,560.00",Building Software Ltd
Manchester City Council,Adult Social Care,Training and Development,08.05.2019,1906442508,692.30,Learning Unlimited
Manchester City Council,Adult Social Care,Rents,08.05.2019,5101031342,"3,376.56",Mosscare Housing Ltd
Manchester City Council,Adult Social Care,Rents,08.05.2019,5101031227,"2,940.60",Mosscare Housing Ltd
Manchester City Council,Adult Social Care,Rents,08.05.2019,5101031335,844.14,Mosscare Housing Ltd
Manchester City Council,Adult Social Care,Rents,08.05.2019,5101031338,844.14,Mosscare Housing Ltd
Manchester City Council,Adult Social Care,Rents,08.05.2019,5101031336,815.79,Mosscare Housing Ltd
Manchester City Council,Adult Social Care,Rents,08.05.2019,5101031337,815.79,Mosscare Housing Ltd
Manchester City Council,Adult Social Care,Equipment,08.05.2019,5101031200,"2,700.00",Invacare Limited
Manchester City Council,Adult Social Care,Equipment,08.05.2019,5101031258,708.40,Drive Devilbiss Healthcare Ltd
Manchester City Council,Adult Social Care,Equipment,08.05.2019,5101031264,708.40,Drive Devilbiss Healthcare Ltd
Manchester City Council,Adult Social Care,Building Materials for direct delivery,08.05.2019,1906465811,"2,610.00",GCC Decorators
Manchester City Council,Adult Social Care,Professional fees,08.05.2019,5101031324,"100,000.00",Moss Side Millennium Powerhouse Ltd
Manchester City Council,Adult Social Care,Professional fees,08.05.2019,5101031265,699.00,Cellmark
Manchester City Council,Adult Social Care,Professional fees,08.05.2019,5101031421,693.00,Cellmark
Manchester City Council,Adult Social Care,Professional fees,08.05.2019,5101031407,624.00,Cellmark
Manchester City Council,Adult Social Care,Professional fees,08.05.2019,1906462915,"2,100.00",Central Chambers
Manchester City Council,Adult Social Care,Professional fees,08.05.2019,1906468381,837.00,Redacted Personal Information
Manchester City Council,Adult Social Care,Professional fees,08.05.2019,1906462942,"1,187.50",Redacted Personal Information
Manchester City Council,Adult Social Care,Professional fees,08.05.2019,1906462953,550.00,Redacted Personal Information
Manchester City Council,Adult Social Care,Bed and Breakfast Accommodation Expenditure,08.05.2019,5101031460,"11,298.00",Redacted Personal Information
Manchester City Council,Adult Social Care,Bed and Breakfast Accommodation Expenditure,08.05.2019,5101031463,"7,857.00",Redacted Personal Information
Manchester City Council,Adult Social Care,Bed and Breakfast Accommodation Expenditure,08.05.2019,5101031334,"21,740.50",Redacted Personal Information
Manchester City Council,Adult Social Care,Bed and Breakfast Accommodation Expenditure,08.05.2019,5101031459,"15,597.00",Redacted Personal Information
Manchester City Council,Adult Social Care,Bed and Breakfast Accommodation Expenditure,08.05.2019,5101031461,"8,146.97",K L Properties
Manchester City Council,Adult Social Care,Bed and Breakfast Accommodation Expenditure,08.05.2019,5101031021,"2,465.00",Redacted Personal Information
Manchester City Council,Adult Social Care,Third party payments to other Local Authorities,08.05.2019,5101031240,"4,196.50",Marlborough Road Academy
Manchester City Council,Adult Social Care,Third party payments to Health Authority,08.05.2019,5101031188,"8,455.50",Central Mcr Uni Hospital t/a
Manchester City Council,Adult Social Care,Third party payments relating to Voluntary Organisations,08.05.2019,5101031204,"8,780.00",Independent Choices Gtr Manchester
Manchester City Council,Adult Social Care,Third party payments relating to Voluntary Organisations,08.05.2019,5101031456,"6,010.20",Talbot House Support Centre
Manchester City Council,Adult Social Care,Payments for services,08.05.2019,5101031248,"65,781.25",The Together Trust
Manchester City Council,Adult Social Care,Payments for services,08.05.2019,5101031309,"5,851.56",The Together Trust
Manchester City Council,Adult Social Care,Payments for services,08.05.2019,5101031263,"1,525.00",The Together Trust
Manchester City Council,Adult Social Care,Payments for services,08.05.2019,5101031256,"-5,851.56",The Together Trust
Manchester City Council,Adult Social Care,Payments for services,08.05.2019,5101031190,"45,471.67",Belmont School Ltd
Manchester City Council,Adult Social Care,Payments for services,08.05.2019,5101031217,"5,427.00",Chaigeley Education Foundation
Manchester City Council,Adult Social Care,Payments for services,08.05.2019,5101031279,"24,654.67",David Lewis Organisation
Manchester City Council,Adult Social Care,Payments for services,08.05.2019,5101031290,"22,624.00",David Lewis Organisation
Manchester City Council,Adult Social Care,Payments for services,08.05.2019,5101031283,"22,333.33",David Lewis Organisation
Manchester City Council,Adult Social Care,Payments for services,08.05.2019,5101031280,"21,297.67",David Lewis Organisation
Manchester City Council,Adult Social Care,Payments for services,08.05.2019,5101031285,"19,586.67",David Lewis Organisation
Manchester City Council,Adult Social Care,Payments for services,08.05.2019,5101031287,"19,032.18",David Lewis Organisation
Manchester City Council,Adult Social Care,Payments for services,08.05.2019,5101031282,"16,898.67",David Lewis Organisation
Manchester City Council,Adult Social Care,Payments for services,08.05.2019,5101031288,"15,753.79",David Lewis Organisation
Manchester City Council,Adult Social Care,Payments for services,08.05.2019,5101031262,"15,747.80",David Lewis Organisation
Manchester City Council,Adult Social Care,Payments for services,08.05.2019,5101031218,"5,981.00",Enhance EHC Ltd
Manchester City Council,Adult Social Care,Payments for services,08.05.2019,5101031189,"3,666.66",NISAI Virtual Academy
Manchester City Council,Adult Social Care,Payments for services,08.05.2019,5101031192,"6,767.25",Cedar House School
Manchester City Council,Adult Social Care,Payments for services,08.05.2019,5101031454,"45,864.00",Potensial Ltd (T/A Potens)
Manchester City Council,Adult Social Care,Payments for services,08.05.2019,5101031466,"1,006.49",Jane Lewis Health and Social Care
Manchester City Council,Adult Social Care,Payments for services,08.05.2019,1906465704,"13,800.00",Redacted Personal Information
Manchester City Council,Adult Social Care,Supporting People Payments,08.05.2019,5101031107,"2,309.22",Copperdale Trust
Manchester City Council,Adult Social Care,Supporting People Payments,08.05.2019,5101031178,"12,500.00",Riverside ECHG
Manchester City Council,Adult Social Care,Supporting People Payments,08.05.2019,5101031180,"5,833.37",Riverside ECHG
Manchester City Council,Adult Social Care,Supporting People Payments,08.05.2019,5101031400,942.74,Riverside ECHG
Manchester City Council,Adult Social Care,Supporting People Payments,08.05.2019,5101031400,912.43,Riverside ECHG
Manchester City Council,Adult Social Care,Supporting People Payments,08.05.2019,5101031400,790.60,Riverside ECHG
Manchester City Council,Adult Social Care,Supporting People Payments,08.05.2019,5101031400,547.74,Riverside ECHG
Manchester City Council,Adult Social Care,Supporting People Payments,08.05.2019,5101031284,881.79,Arawak Walton Housing Association
Manchester City Council,Adult Social Care,Supporting People Payments,08.05.2019,5101031284,577.88,Arawak Walton Housing Association
Manchester City Council,Adult Social Care,Supporting People Payments,08.05.2019,5101031284,557.80,Arawak Walton Housing Association
Manchester City Council,Adult Social Care,Supporting People Payments,08.05.2019,5101031432,"2,312.89",Great Places Housing Association
Manchester City Council,Adult Social Care,Supported Accommodation,08.05.2019,5101031486,"6,420.00",Bedspace Resource Ltd
Manchester City Council,Adult Social Care,Childminding Fee Payments,08.05.2019,5101031220,705.00,Redacted Personal Information
Manchester City Council,Adult Social Care,Extra Care Sheltered Housing Payments,08.05.2019,5101031439,"18,854.39",Creative Support Ltd
Manchester City Council,Adult Social Care,Extra Care Sheltered Housing Payments,08.05.2019,5101031368,"13,870.64",Independent Living Alliance
Manchester City Council,Childrens Services,Building Works,08.05.2019,5101031343,"96,407.65",The Co-op Academy of Manchester
Manchester City Council,Corporate Services,Audit Commission Fees,08.05.2019,5101031275,"39,879.00",Mazars LLP
Manchester City Council,Corporate Services,Professional fees,08.05.2019,5101031243,"9,906.75",Faithful & Gould Ltd
Manchester City Council,Corporate Services,Heart of Manchester Bid,08.05.2019,5101031073,"18,000.00",Heart of Manchester BID Co Ltd
Manchester City Council,Corporate Services,Heart of Manchester Bid,08.05.2019,5101031388,"-18,000.00",Heart of Manchester BID Co Ltd
Manchester City Council,Corporate Services,Works and associated costs for Land and Buildings,08.05.2019,5101031042,"1,007,162.99",Lend Lease Construction (EMEA)
Manchester City Council,Corporate Services,Works and associated costs for Land and Buildings,08.05.2019,5101031315,"10,612.54",Conlon Construction Ltd
Manchester City Council,Corporate Services,Legal Fees,08.05.2019,5101031364,"2,000.00",Squire Patton Boggs (UK) LLP
Manchester City Council,Corporate Services,Legal Fees,08.05.2019,5101031446,"10,143.98",Squire Patton Boggs (UK) LLP
Manchester City Council,Housing Revenue Account,Licences Purchase,08.05.2019,5101030739,"12,875.00",Aareon UK Ltd
Manchester City Council,Housing Revenue Account,Non Housing Rent Receipts,08.05.2019,1906465933,"3,680.28",Vodafone Limited
Manchester City Council,Housing Revenue Account,Council Dwelling Adaptations,08.05.2019,5101031440,"2,051.83",Vista Panels Ltd
Manchester City Council,Housing Revenue Account,Council Dwelling Adaptations,08.05.2019,5101031449,"19,019.85",GTM Fire Protection Ltd
Manchester City Council,Housing Revenue Account,Council Dwelling Adaptations,08.05.2019,5101031444,"8,687.79",TP Manufacturing t/a Pendock
Manchester City Council,Chief Executives,Training and Development,08.05.2019,5101030689,850.00,Manchester Mind
Manchester City Council,Chief Executives,Training and Development,08.05.2019,5101030690,850.00,Manchester Mind
Manchester City Council,Chief Executives,Training and Development,08.05.2019,5101030691,850.00,Manchester Mind
Manchester City Council,Chief Executives,Training and Development,08.05.2019,5101030698,850.00,Manchester Mind
Manchester City Council,Chief Executives,Training and Development,08.05.2019,5101030700,850.00,Manchester Mind
Manchester City Council,Chief Executives,Payments to Sub-Contractors,08.05.2019,5101031057,584.85,Redacted Personal Information
Manchester City Council,Chief Executives,Grant Payments,08.05.2019,5101031202,"5,000.00",Manchester Camerata
Manchester City Council,Chief Executives,Grant Payments,08.05.2019,5101031352,"7,225.00",Access Intelligence Media and Comms
Manchester City Council,Chief Executives,Landline Telephone Charges,08.05.2019,1906465889,"1,444.68",Vodafone (Ex C&W)
Manchester City Council,Chief Executives,Advertising,08.05.2019,5101031347,"8,300.00",Exterion Media
Manchester City Council,Chief Executives,Advertising,08.05.2019,5101031393,"1,234.05",TES Global Ltd
Manchester City Council,Chief Executives,Advertising,08.05.2019,5101031395,949.05,TES Global Ltd
Manchester City Council,Chief Executives,Advertising,08.05.2019,5101031397,949.05,TES Global Ltd
Manchester City Council,Chief Executives,Advertising,08.05.2019,5101031399,949.05,TES Global Ltd
Manchester City Council,Chief Executives,Advertising,08.05.2019,5101031404,949.05,TES Global Ltd
Manchester City Council,Chief Executives,Advertising,08.05.2019,5101031405,949.05,TES Global Ltd
Manchester City Council,Chief Executives,Advertising,08.05.2019,5101031419,949.05,TES Global Ltd
Manchester City Council,Chief Executives,Advertising,08.05.2019,5101031413,759.05,TES Global Ltd
Manchester City Council,Chief Executives,Advertising,08.05.2019,5101031416,759.05,TES Global Ltd
Manchester City Council,Chief Executives,Third party payments relating to Voluntary Organisations,08.05.2019,5101031436,"105,708.37",HOME
Manchester City Council,Chief Executives,Works and associated costs for Land and Buildings,08.05.2019,5101031348,"72,811.00",Office for Metropolitan Architectur
Manchester City Council,Chief Executives,Works and associated costs for Land and Buildings,08.05.2019,5101031496,"72,811.00",Office for Metropolitan Architectur
Manchester City Council,Chief Executives,Works and associated costs for Land and Buildings,08.05.2019,5101031502,"-72,811.00",Office for Metropolitan Architectur
Manchester City Council,Chief Executives,Compensation Payments,08.05.2019,1906465976,550.00,Redacted Personal Information
Manchester City Council,Regeneration Finance,External repairs and maintenance for buildings,08.05.2019,5101031098,"1,623.50",Fairway Landscapes Ltd
Manchester City Council,Regeneration Finance,Preventative Maintenance Work,08.05.2019,5101031434,"90,276.70",Manchester Working Ltd
Manchester City Council,Regeneration Finance,Electricity,08.05.2019,5101031478,"5,502.83",Wythenshawe Forum Trust Ltd
Manchester City Council,Regeneration Finance,Electricity,08.05.2019,5101031372,"1,671.22",APAM Limited
Manchester City Council,Regeneration Finance,Rents,08.05.2019,5101031420,"38,204.78",Wythenshawe Forum Trust Ltd
Manchester City Council,Regeneration Finance,Water Service Charges - Metered,08.05.2019,5101031458,838.73,Wythenshawe Forum Trust Ltd
Manchester City Council,Regeneration Finance,Refuse Collection,08.05.2019,1906459778,"4,121.55",Shred-It Ltd
Manchester City Council,Regeneration Finance,Hire of Premises,08.05.2019,5101031430,"1,440.00",Levenshulme Inspire
Manchester City Council,Regeneration Finance,"Clothes, Uniform and Laundry",08.05.2019,5101031008,"9,888.48",Slater Menswear
Manchester City Council,Regeneration Finance,Professional fees,08.05.2019,5101031322,"13,000.00",Manchester Care & Repair Ltd
Manchester City Council,Regeneration Finance,Grant and subscriptions awarded,08.05.2019,5101031237,"7,500.00",Community Minded Ltd
Manchester City Council,Regeneration Finance,Removal and Storage of Furniture,08.05.2019,5101031091,669.95,Master Moves Ltd
Manchester City Council,Regeneration Finance,Legal Fees,08.05.2019,5101031333,"12,516.00",Browne Jacobson
Manchester City Council,Highways Services,Building Materials for direct delivery,08.05.2019,5101031464,987.91,TARMAC
Manchester City Council,Highways Services,Building Materials for direct delivery,08.05.2019,5101031480,885.55,TARMAC
Manchester City Council,Highways Services,Building Materials for direct delivery,08.05.2019,5101031465,643.03,TARMAC
Manchester City Council,Highways Services,Building Materials for direct delivery,08.05.2019,5101030678,"2,352.50",Fabrikat (Nottingham) Limited
Manchester City Council,Highways Services,Payments to Sub-Contractors,08.05.2019,5101030782,"6,329.35",Northern Marking Limited
Manchester City Council,Highways Services,Payments to Sub-Contractors,08.05.2019,5101031142,"2,550.00",Northern Marking Limited
Manchester City Council,Highways Services,Compensation Payments,08.05.2019,1906468328,"7,500.00",Quays Solicitors
Manchester City Council,Highways Services,Compensation Payments,08.05.2019,1906467242,688.00,Department For Work & Pensions
Manchester City Council,Insurance Fund,Balance of Risks Insurance Premium,08.05.2019,5101031187,"2,119.00",Urban Green Space Limited
Manchester City Council,GMIST (Greater Mcr Integrated),Equipment,08.05.2019,5101030595,995.00,Micrographic Engineering Services
Manchester City Council,Manchester Leisure,Gas,09.05.2019,1906473269,"3,270.25",Gazprom Energy
Manchester City Council,Manchester Leisure,Gas,09.05.2019,1906473271,"3,203.78",Gazprom Energy
Manchester City Council,Manchester Leisure,Gas,09.05.2019,1906473272,"3,099.12",Gazprom Energy
Manchester City Council,Manchester Leisure,Gas,09.05.2019,1906473436,"1,851.95",Gazprom Energy
Manchester City Council,Manchester Leisure,Gas,09.05.2019,1906473259,"1,458.66",Gazprom Energy
Manchester City Council,Manchester Leisure,Gas,09.05.2019,1906473243,"1,415.42",Gazprom Energy
Manchester City Council,Manchester Leisure,Gas,09.05.2019,1906473221,"1,082.94",Gazprom Energy
Manchester City Council,Manchester Leisure,Gas,09.05.2019,1906473214,840.85,Gazprom Energy
Manchester City Council,Manchester Leisure,Gas,09.05.2019,1906473233,666.91,Gazprom Energy
Manchester City Council,Manchester Leisure,Gas,09.05.2019,1906473228,501.10,Gazprom Energy
Manchester City Council,Manchester Leisure,Gas,09.05.2019,1700088681,"-2,427.92",Gazprom Energy
Manchester City Council,Manchester Leisure,Water Service Charges - Metered,09.05.2019,1906473508,"2,775.85",Water Plus Limited
Manchester City Council,Manchester Leisure,Water Service Charges - Metered,09.05.2019,1906473659,671.45,Water Plus Limited
Manchester City Council,Manchester Leisure,Water Service Charges - Metered,09.05.2019,1906473469,654.94,Water Plus Limited
Manchester City Council,Manchester Leisure,Water Service Charges - Metered,09.05.2019,1906473573,513.05,Water Plus Limited
Manchester City Council,Manchester Leisure,Water Service Charges - Metered,09.05.2019,1700088689,-836.51,Water Plus Limited
Manchester City Council,Manchester Leisure,Water Service Charges - Metered,09.05.2019,1700088698,"-2,759.22",Water Plus Limited
Manchester City Council,Manchester Leisure,Water Service Charges - Metered,09.05.2019,1700088691,"-3,577.72",Water Plus Limited
Manchester City Council,Manchester Leisure,Cleaning Equipment and Materials,09.05.2019,1906474029,825.22,WWW.SIMPLYPLASTICS.COM
Manchester City Council,Manchester Leisure,Security,09.05.2019,5101031329,"2,479.75",Showsec International Ltd
Manchester City Council,Manchester Leisure,Equipment,09.05.2019,1906474036,552.00,FOAMS 4 SPORTS LTD
Manchester City Council,Manchester Leisure,Equipment,09.05.2019,1906474028,625.20,WWW.PROAV.CO.UK
Manchester City Council,Manchester Leisure,Furniture,09.05.2019,5101031135,"1,911.60",Yorkshire Purchasing
Manchester City Council,Manchester Leisure,Building Materials for direct delivery,09.05.2019,5101031563,"5,791.80",Fencelines Ltd
Manchester City Council,Manchester Leisure,Building Materials for direct delivery,09.05.2019,5101031557,950.00,Invasive Weeds Agency Ltd
Manchester City Council,Manchester Leisure,Building Materials for direct delivery,09.05.2019,1906474040,716.40,HOWARTH TIMBER BURY
Manchester City Council,Manchester Leisure,Professional fees,09.05.2019,5101031525,525.00,Redacted Personal Information
Manchester City Council,Manchester Leisure,Professional fees,09.05.2019,5101031156,795.00,The Knowledge Academy Limited
Manchester City Council,Manchester Leisure,Professional fees,09.05.2019,1906465725,"3,000.00",Caytoo Limited
Manchester City Council,Manchester Leisure,Payments for services,09.05.2019,5101030990,"1,218,806.00",Manchester Active
Manchester City Council,Manchester Leisure,Compensation Payments,09.05.2019,1906474035,536.00,UKBA9374961582
Manchester City Council,Hospitality + Trading Services,Gas,09.05.2019,1906473267,"2,966.40",Gazprom Energy
Manchester City Council,Hospitality + Trading Services,Gas,09.05.2019,1906473282,"1,735.63",Gazprom Energy
Manchester City Council,Hospitality + Trading Services,Water Service Charges - Metered,09.05.2019,1906473516,"8,625.95",Water Plus Limited
Manchester City Council,Hospitality + Trading Services,Water Service Charges - Metered,09.05.2019,1906473639,"2,601.72",Water Plus Limited
Manchester City Council,Hospitality + Trading Services,Water Service Charges - Metered,09.05.2019,1906473635,658.76,Water Plus Limited
Manchester City Council,Hospitality + Trading Services,Water Service Charges - Metered,09.05.2019,1906473667,589.98,Water Plus Limited
Manchester City Council,Hospitality + Trading Services,Vehicle Fuel Costs,09.05.2019,5101031511,"11,126.29",Carlton Fuels Ltd
Manchester City Council,Hospitality + Trading Services,Vehicle Parts and Spares,09.05.2019,1906474060,"1,029.30",W GTON TRUCK PARTS LTD
Manchester City Council,Hospitality + Trading Services,Vehicle Hire Costs,09.05.2019,5101031310,777.92,LDS Motor Bodies Ltd
Manchester City Council,Hospitality + Trading Services,Professional fees,09.05.2019,5101031617,500.00,C & W (U.K.) LLP
Manchester City Council,Adult Social Care,Training and Development,09.05.2019,5101030606,"3,242.25",Wythenshawe Community Initiative
Manchester City Council,Adult Social Care,Gas,09.05.2019,1906473306,972.17,Gazprom Energy
Manchester City Council,Adult Social Care,Gas,09.05.2019,1906473341,933.10,Gazprom Energy
Manchester City Council,Adult Social Care,Gas,09.05.2019,1906473264,822.43,Gazprom Energy
Manchester City Council,Adult Social Care,Gas,09.05.2019,1906473353,794.54,Gazprom Energy
Manchester City Council,Adult Social Care,Gas,09.05.2019,1906473293,532.22,Gazprom Energy
Manchester City Council,Adult Social Care,Rents,09.05.2019,5101031509,"18,665.64",Mosscare Housing Ltd
Manchester City Council,Adult Social Care,Rents,09.05.2019,5101031508,"4,666.41",Mosscare Housing Ltd
Manchester City Council,Adult Social Care,Rents,09.05.2019,5101031503,"3,110.60",Mosscare Housing Ltd
Manchester City Council,Adult Social Care,Rents,09.05.2019,5101031506,751.57,Mosscare Housing Ltd
Manchester City Council,Adult Social Care,Rents,09.05.2019,5101031584,"2,536.01",Mack Residential Letting Ltd
Manchester City Council,Adult Social Care,Water Service Charges - Metered,09.05.2019,1906473678,797.81,Water Plus Limited
Manchester City Council,Adult Social Care,Water Service Charges - Metered,09.05.2019,1906473461,752.62,Water Plus Limited
Manchester City Council,Adult Social Care,Water Service Charges - Metered,09.05.2019,1906473630,641.34,Water Plus Limited
Manchester City Council,Adult Social Care,Water Service Charges - Metered,09.05.2019,1700088710,-737.80,Water Plus Limited
Manchester City Council,Adult Social Care,Refuse Collection,09.05.2019,5101031583,"5,198.41",Initial Medical Services
Manchester City Council,Adult Social Care,Transport Coach Hire,09.05.2019,5101031346,"1,100.00",T/A Beresford Travel
Manchester City Council,Adult Social Care,Signers/Interpreters Fees,09.05.2019,5101031568,"1,172.00",Language Line Ltd
Manchester City Council,Adult Social Care,Professional fees,09.05.2019,1906471654,545.53,Target Psychology Ltd
Manchester City Council,Adult Social Care,I T Provision,09.05.2019,5101030813,"1,632.00",Insight Direct (Uk) Ltd
Manchester City Council,Adult Social Care,I T Provision,09.05.2019,5101030814,510.00,Insight Direct (Uk) Ltd
Manchester City Council,Adult Social Care,I T Provision,09.05.2019,5101031041,510.00,Insight Direct (Uk) Ltd
Manchester City Council,Adult Social Care,Funeral and coroner related services,09.05.2019,5101031195,"2,379.00",Greater Manchester Funeral Service
Manchester City Council,Adult Social Care,Funeral and coroner related services,09.05.2019,5101031194,"2,359.00",Greater Manchester Funeral Service
Manchester City Council,Adult Social Care,Funeral and coroner related services,09.05.2019,5101031170,"1,518.00",Greater Manchester Funeral Service
Manchester City Council,Adult Social Care,Third party payments to other Local Authorities,09.05.2019,5101031571,"135,225.70",Bolton Mbc
Manchester City Council,Adult Social Care,Third party payments to Health Authority,09.05.2019,5101031181,"8,455.50",Central Mcr Uni Hospital t/a
Manchester City Council,Adult Social Care,Third party payments to Health Authority,09.05.2019,5101031554,"4,389.38",Central Mcr Uni Hospital t/a
Manchester City Council,Adult Social Care,Third party payments relating to Voluntary Organisations,09.05.2019,5101031553,"80,000.00",Man. Citizens Advice Bureaux
Manchester City Council,Adult Social Care,Third party payments relating to Voluntary Organisations,09.05.2019,5101031546,"16,011.50",Man. Citizens Advice Bureaux
Manchester City Council,Adult Social Care,Third party payments relating to Voluntary Organisations,09.05.2019,5101031357,"20,000.00",Healthwatch Manchester
Manchester City Council,Adult Social Care,Payments for services,09.05.2019,5101031186,"3,626.34",Myerscough College
Manchester City Council,Adult Social Care,Payments for services,09.05.2019,5101031497,"41,715.33",Brook
Manchester City Council,Adult Social Care,Payments for services,09.05.2019,5101031197,"1,760.00",Keys Childcare Ltd
Manchester City Council,Adult Social Care,Payments for services,09.05.2019,5101031213,"1,760.00",Keys Childcare Ltd
Manchester City Council,Adult Social Care,Payments for services,09.05.2019,5101031141,"2,143.57",Penarth Group School
Manchester City Council,Adult Social Care,Legal Fees,09.05.2019,5101031625,"5,726.87",Redacted Personal Information
Manchester City Council,Corporate Services,Gas,09.05.2019,1906473308,641.13,Gazprom Energy
Manchester City Council,Corporate Services,Gas,09.05.2019,1906473285,548.06,Gazprom Energy
Manchester City Council,Corporate Services,Water Service Charges - Metered,09.05.2019,1906473644,"1,922.98",Water Plus Limited
Manchester City Council,Corporate Services,Professional fees,09.05.2019,5101031507,650.00,Naismiths Ltd
Manchester City Council,Corporate Services,Postage,09.05.2019,5101031078,"7,126.56",Royal Mail Group Plc
Manchester City Council,Corporate Services,Licences Purchase,09.05.2019,5101031167,"7,195.89",NTT Data
Manchester City Council,Corporate Services,Heart of Manchester Bid,09.05.2019,5101031396,"18,000.00",Heart of Manchester BID Co Ltd
Manchester City Council,Corporate Services,Works and associated costs for Land and Buildings,09.05.2019,5101031238,887.60,T.I.S. Limited
Manchester City Council,Corporate Services,Works and associated costs for Land and Buildings,09.05.2019,5101031351,"27,271.37",ENGIE Regeneration Ltd
Manchester City Council,Corporate Services,Works and associated costs for Land and Buildings,09.05.2019,5101031122,"166,220.56",Engie Regeration Limited t/a
Manchester City Council,Corporate Services,Works and associated costs for Land and Buildings,09.05.2019,5101031122,"10,981.44",Engie Regeration Limited t/a
Manchester City Council,Corporate Services,Legal Fees,09.05.2019,5101031530,"9,780.47",Squire Patton Boggs (UK) LLP
Manchester City Council,Housing Revenue Account,Gas,09.05.2019,1906473266,"6,403.07",Gazprom Energy
Manchester City Council,Housing Revenue Account,Gas,09.05.2019,1906473265,"5,345.79",Gazprom Energy
Manchester City Council,Housing Revenue Account,Gas,09.05.2019,1906473247,"1,119.20",Gazprom Energy
Manchester City Council,Housing Revenue Account,Gas,09.05.2019,1906473237,"1,041.39",Gazprom Energy
Manchester City Council,Housing Revenue Account,Gas,09.05.2019,1906473218,"1,021.20",Gazprom Energy
Manchester City Council,Housing Revenue Account,Gas,09.05.2019,1906473230,"1,008.72",Gazprom Energy
Manchester City Council,Housing Revenue Account,Gas,09.05.2019,1906473254,995.84,Gazprom Energy
Manchester City Council,Housing Revenue Account,Gas,09.05.2019,1906473258,943.44,Gazprom Energy
Manchester City Council,Housing Revenue Account,Gas,09.05.2019,1906473260,934.19,Gazprom Energy
Manchester City Council,Housing Revenue Account,Gas,09.05.2019,1906473227,901.07,Gazprom Energy
Manchester City Council,Housing Revenue Account,Gas,09.05.2019,1906473231,889.33,Gazprom Energy
Manchester City Council,Housing Revenue Account,Gas,09.05.2019,1906473257,870.28,Gazprom Energy
Manchester City Council,Housing Revenue Account,Gas,09.05.2019,1906473226,868.91,Gazprom Energy
Manchester City Council,Housing Revenue Account,Gas,09.05.2019,1906473309,866.55,Gazprom Energy
Manchester City Council,Housing Revenue Account,Gas,09.05.2019,1906473356,846.00,Gazprom Energy
Manchester City Council,Housing Revenue Account,Gas,09.05.2019,1906473220,817.44,Gazprom Energy
Manchester City Council,Chief Executives,Agency staff provision,09.05.2019,5101031624,"1,332.00",Reed Employment Plc
Manchester City Council,Chief Executives,Rents,09.05.2019,5101031619,800.00,Manchester Cathedral Hire Ltd
Manchester City Council,Chief Executives,Payments to Sub-Contractors,09.05.2019,5101031052,584.13,Redacted Personal Information
Manchester City Council,Chief Executives,Hire of Equipment,09.05.2019,5101030808,"2,525.00",Jigsaw Systems Limited
Manchester City Council,Chief Executives,Hire of Equipment,09.05.2019,5101031242,"1,000.00",Jigsaw Systems Limited
Manchester City Council,Chief Executives,Grant Payments,09.05.2019,5101031578,"4,500.00",Reform Radio CIC
Manchester City Council,Chief Executives,Printing,09.05.2019,5101031539,700.00,Contact Photographic Services Ltd
Manchester City Council,Chief Executives,Printing,09.05.2019,5101031633,-700.00,Contact Photographic Services Ltd
Manchester City Council,Chief Executives,Funeral and coroner related services,09.05.2019,5101031597,"7,358.00",Kane Funeral Services
Manchester City Council,Chief Executives,I T Provision,09.05.2019,5101031134,"3,000.00",Pilat Europe Ltd
Manchester City Council,Chief Executives,I T Provision,09.05.2019,5101031196,"12,000.00",Spacecraft Creative Limited
Manchester City Council,Chief Executives,ICT Support & Maintenance,09.05.2019,5101031038,590.00,Finastra
Manchester City Council,Chief Executives,ICT Support & Maintenance,09.05.2019,5101030669,"49,500.00",Softcat
Manchester City Council,Chief Executives,Examination Fees,09.05.2019,5101031590,"1,945.14",ROAR Forensics Ltd
Manchester City Council,Chief Executives,Examination Fees,09.05.2019,5101031589,"1,330.00",ROAR Forensics Ltd
Manchester City Council,Chief Executives,Examination Fees,09.05.2019,5101031592,855.00,ROAR Forensics Ltd
Manchester City Council,Chief Executives,Examination Fees,09.05.2019,5101031593,667.38,ROAR Forensics Ltd
Manchester City Council,Chief Executives,Works and associated costs for Land and Buildings,09.05.2019,5101031552,"3,200.00",Building Design Partnership Limited
Manchester City Council,Chief Executives,Compensation Payments,09.05.2019,5101031614,"1,000.00",Landmark Chambers
Manchester City Council,Regeneration Finance,Gas,09.05.2019,1906473252,"19,415.79",Gazprom Energy
Manchester City Council,Regeneration Finance,Gas,09.05.2019,1906473253,"13,816.15",Gazprom Energy
Manchester City Council,Regeneration Finance,Gas,09.05.2019,1906473216,"3,603.60",Gazprom Energy
Manchester City Council,Regeneration Finance,Gas,09.05.2019,1906473245,"2,762.05",Gazprom Energy
Manchester City Council,Regeneration Finance,Gas,09.05.2019,1906473348,"2,457.71",Gazprom Energy
Manchester City Council,Regeneration Finance,Gas,09.05.2019,1906473217,"2,306.49",Gazprom Energy
Manchester City Council,Regeneration Finance,Gas,09.05.2019,1906473387,"2,149.12",Gazprom Energy
Manchester City Council,Regeneration Finance,Gas,09.05.2019,1906473299,"2,020.73",Gazprom Energy
Manchester City Council,Regeneration Finance,Gas,09.05.2019,1906473208,"1,738.63",Gazprom Energy
Manchester City Council,Regeneration Finance,Gas,09.05.2019,1906473263,"1,673.73",Gazprom Energy
Manchester City Council,Regeneration Finance,Gas,09.05.2019,1906473388,"1,588.70",Gazprom Energy
Manchester City Council,Regeneration Finance,Gas,09.05.2019,1906473262,"1,327.03",Gazprom Energy
Manchester City Council,Regeneration Finance,Gas,09.05.2019,1906473261,"1,282.44",Gazprom Energy
Manchester City Council,Regeneration Finance,Gas,09.05.2019,1906473255,"1,070.22",Gazprom Energy
Manchester City Council,Regeneration Finance,Gas,09.05.2019,1906473298,929.99,Gazprom Energy
Manchester City Council,Regeneration Finance,Gas,09.05.2019,1906473328,898.46,Gazprom Energy
Manchester City Council,Regeneration Finance,Gas,09.05.2019,1906473219,857.16,Gazprom Energy
Manchester City Council,Regeneration Finance,Gas,09.05.2019,1906473215,851.76,Gazprom Energy
Manchester City Council,Regeneration Finance,Gas,09.05.2019,1906473344,837.19,Gazprom Energy
Manchester City Council,Regeneration Finance,Gas,09.05.2019,1906473304,813.08,Gazprom Energy
Manchester City Council,Regeneration Finance,Gas,09.05.2019,1906473249,762.06,Gazprom Energy
Manchester City Council,Regeneration Finance,Gas,09.05.2019,1906473240,745.16,Gazprom Energy
Manchester City Council,Regeneration Finance,Gas,09.05.2019,1906473251,738.35,Gazprom Energy
Manchester City Council,Regeneration Finance,Gas,09.05.2019,1906473225,688.79,Gazprom Energy
Manchester City Council,Regeneration Finance,Gas,09.05.2019,1906473248,664.98,Gazprom Energy
Manchester City Council,Regeneration Finance,Gas,09.05.2019,1906473346,646.35,Gazprom Energy
Manchester City Council,Regeneration Finance,Gas,09.05.2019,1906473222,627.57,Gazprom Energy
Manchester City Council,Regeneration Finance,Gas,09.05.2019,1906473284,610.66,Gazprom Energy
Manchester City Council,Regeneration Finance,Gas,09.05.2019,1906473326,589.38,Gazprom Energy
Manchester City Council,Regeneration Finance,Gas,09.05.2019,1906473224,585.86,Gazprom Energy
Manchester City Council,Regeneration Finance,Gas,09.05.2019,1906473235,545.33,Gazprom Energy
Manchester City Council,Regeneration Finance,Gas,09.05.2019,1906473223,533.97,Gazprom Energy
Manchester City Council,Regeneration Finance,Gas,09.05.2019,1906473236,519.56,Gazprom Energy
Manchester City Council,Regeneration Finance,Gas,09.05.2019,1906473397,518.89,Gazprom Energy
Manchester City Council,Regeneration Finance,Gas,09.05.2019,1906473395,503.24,Gazprom Energy
Manchester City Council,Regeneration Finance,Gas,09.05.2019,1700088674,-658.73,Gazprom Energy
Manchester City Council,Regeneration Finance,Gas,09.05.2019,1700088680,-671.44,Gazprom Energy
Manchester City Council,Regeneration Finance,Gas,09.05.2019,1700088679,-697.79,Gazprom Energy
Manchester City Council,Regeneration Finance,Gas,09.05.2019,1700088673,-734.61,Gazprom Energy
Manchester City Council,Regeneration Finance,Gas,09.05.2019,1700088677,-802.82,Gazprom Energy
Manchester City Council,Regeneration Finance,Gas,09.05.2019,1700088675,-811.97,Gazprom Energy
Manchester City Council,Regeneration Finance,Gas,09.05.2019,1700088678,-842.43,Gazprom Energy
Manchester City Council,Regeneration Finance,Gas,09.05.2019,1700088676,"-1,110.77",Gazprom Energy
Manchester City Council,Regeneration Finance,Rents,09.05.2019,1906464226,800.00,Savills (UK) Ltd
Manchester City Council,Regeneration Finance,Water Service Charges - Metered,09.05.2019,1906473570,"35,299.94",Water Plus Limited
Manchester City Council,Regeneration Finance,Water Service Charges - Metered,09.05.2019,1906473514,"26,248.55",Water Plus Limited
Manchester City Council,Regeneration Finance,Water Service Charges - Metered,09.05.2019,1906473681,"9,974.47",Water Plus Limited
Manchester City Council,Regeneration Finance,Water Service Charges - Metered,09.05.2019,1906473627,"8,790.30",Water Plus Limited
Manchester City Council,Regeneration Finance,Water Service Charges - Metered,09.05.2019,1906473610,"8,221.21",Water Plus Limited
Manchester City Council,Regeneration Finance,Water Service Charges - Metered,09.05.2019,1906473512,"7,130.04",Water Plus Limited
Manchester City Council,Regeneration Finance,Water Service Charges - Metered,09.05.2019,1906473513,"5,535.21",Water Plus Limited
Manchester City Council,Regeneration Finance,Water Service Charges - Metered,09.05.2019,1906473581,"4,936.39",Water Plus Limited
Manchester City Council,Regeneration Finance,Water Service Charges - Metered,09.05.2019,1906473519,"2,469.84",Water Plus Limited
Manchester City Council,Regeneration Finance,Water Service Charges - Metered,09.05.2019,1906473583,"2,265.41",Water Plus Limited
Manchester City Council,Regeneration Finance,Water Service Charges - Metered,09.05.2019,1906473531,"1,935.21",Water Plus Limited
Manchester City Council,Regeneration Finance,Water Service Charges - Metered,09.05.2019,1906473576,"1,453.74",Water Plus Limited
Manchester City Council,Regeneration Finance,Water Service Charges - Metered,09.05.2019,1906473572,"1,354.36",Water Plus Limited
Manchester City Council,Regeneration Finance,Water Service Charges - Metered,09.05.2019,1906473619,"1,141.44",Water Plus Limited
Manchester City Council,Regeneration Finance,Water Service Charges - Metered,09.05.2019,1906473645,"1,128.75",Water Plus Limited
Manchester City Council,Regeneration Finance,Water Service Charges - Metered,09.05.2019,1906473511,"1,104.86",Water Plus Limited
Manchester City Council,Regeneration Finance,Water Service Charges - Metered,09.05.2019,1906473608,"1,084.73",Water Plus Limited
Manchester City Council,Regeneration Finance,Water Service Charges - Metered,09.05.2019,1906473517,943.43,Water Plus Limited
Manchester City Council,Regeneration Finance,Water Service Charges - Metered,09.05.2019,1906473479,933.50,Water Plus Limited
Manchester City Council,Regeneration Finance,Water Service Charges - Metered,09.05.2019,1906473634,926.85,Water Plus Limited
Manchester City Council,Regeneration Finance,Water Service Charges - Metered,09.05.2019,1906473669,857.02,Water Plus Limited
Manchester City Council,Regeneration Finance,Water Service Charges - Metered,09.05.2019,1906473559,843.61,Water Plus Limited
Manchester City Council,Regeneration Finance,Water Service Charges - Metered,09.05.2019,1906473484,840.43,Water Plus Limited
Manchester City Council,Regeneration Finance,Water Service Charges - Metered,09.05.2019,1906473625,796.06,Water Plus Limited
Manchester City Council,Regeneration Finance,Water Service Charges - Metered,09.05.2019,1906473456,777.24,Water Plus Limited
Manchester City Council,Regeneration Finance,Water Service Charges - Metered,09.05.2019,1906473600,719.40,Water Plus Limited
Manchester City Council,Regeneration Finance,Water Service Charges - Metered,09.05.2019,1906473502,718.51,Water Plus Limited
Manchester City Council,Regeneration Finance,Water Service Charges - Metered,09.05.2019,1906473457,692.40,Water Plus Limited
Manchester City Council,Regeneration Finance,Water Service Charges - Metered,09.05.2019,1906473540,684.89,Water Plus Limited
Manchester City Council,Regeneration Finance,Water Service Charges - Metered,09.05.2019,1906473647,681.69,Water Plus Limited
Manchester City Council,Regeneration Finance,Water Service Charges - Metered,09.05.2019,1906473574,681.61,Water Plus Limited
Manchester City Council,Regeneration Finance,Water Service Charges - Metered,09.05.2019,1906473444,656.86,Water Plus Limited
Manchester City Council,Regeneration Finance,Water Service Charges - Metered,09.05.2019,1906473536,652.89,Water Plus Limited
Manchester City Council,Regeneration Finance,Water Service Charges - Metered,09.05.2019,1906473523,635.00,Water Plus Limited
Manchester City Council,Regeneration Finance,Water Service Charges - Metered,09.05.2019,1906473658,534.22,Water Plus Limited
Manchester City Council,Regeneration Finance,Water Service Charges - Metered,09.05.2019,1700088704,-698.35,Water Plus Limited
Manchester City Council,Regeneration Finance,Water Service Charges - Metered,09.05.2019,1700088697,"-1,302.97",Water Plus Limited
Manchester City Council,Regeneration Finance,Water Service Charges - Metered,09.05.2019,1700088700,"-1,377.61",Water Plus Limited
Manchester City Council,Regeneration Finance,Water Service Charges - Metered,09.05.2019,1700088690,"-1,492.67",Water Plus Limited
Manchester City Council,Regeneration Finance,Water Service Charges - Metered,09.05.2019,1700088707,"-7,368.51",Water Plus Limited
Manchester City Council,Regeneration Finance,Water Service Charges - Metered,09.05.2019,1700088706,"-68,473.22",Water Plus Limited
Manchester City Council,Regeneration Finance,Cleaning Equipment,09.05.2019,5101031493,"7,623.96",Arrow County Supplies
Manchester City Council,Regeneration Finance,Grounds Maintenance Costs,09.05.2019,5101031119,"1,850.00",Arboricultural Services Treework
Manchester City Council,Regeneration Finance,Professional fees,09.05.2019,5101031528,"3,025.00",P Mcguinness & Co Ltd
Manchester City Council,Regeneration Finance,Professional fees,09.05.2019,5101031527,"2,310.00",P Mcguinness & Co Ltd
Manchester City Council,Regeneration Finance,Compensation Payments,09.05.2019,1906468320,"3,000.00",Thompsons Solicitors
Manchester City Council,Regeneration Finance,Grant and subscriptions awarded,09.05.2019,5101031582,"7,500.00",GAYDIO Community Interest Company
Manchester City Council,Regeneration Finance,Legal Fees,09.05.2019,5101031498,"3,500.00",Kings Chambers
Manchester City Council,Regeneration Finance,Compensation Payments,09.05.2019,1906468320,"2,744.00",Thompsons Solicitors
Manchester City Council,Highways Services,Water Service Charges - Metered,09.05.2019,1906473578,"1,354.71",Water Plus Limited
Manchester City Council,Highways Services,Building Materials for direct delivery,09.05.2019,5101030929,"1,404.00",Kloeckner Metals UK
Manchester City Council,Highways Services,Building Materials for direct delivery,09.05.2019,5101031487,"1,479.63",TARMAC
Manchester City Council,Highways Services,Building Materials for direct delivery,09.05.2019,5101031485,738.71,TARMAC
Manchester City Council,Highways Services,Payments to Sub-Contractors,09.05.2019,5101031532,"-4,250.00",Northern Marking Limited
Manchester City Council,Highways Services,Professional fees,09.05.2019,5101031376,"6,153.25",Waterman Aspen Ltd
Manchester City Council,Highways Services,Professional fees,09.05.2019,5101031363,"1,145.50",Waterman Aspen Ltd
Manchester City Council,Manchester Leisure,Building Materials for direct delivery,10.05.2019,5101031761,990.00,Groundwork Landscapes Ltd
Manchester City Council,Manchester Leisure,Payments to Sub-Contractors,10.05.2019,5101031501,"8,430.00",Scrutiny Cleaning Services
Manchester City Council,Manchester Leisure,Payments to Sub-Contractors,10.05.2019,5101031504,"5,131.50",Scrutiny Cleaning Services
Manchester City Council,Manchester Leisure,Publications,10.05.2019,1906459762,"1,970.00",Euro Visual Media Limited
Manchester City Council,Manchester Leisure,Grant and subscriptions awarded,10.05.2019,5101031536,"13,602.89",Greater Manchester Police
Manchester City Council,Manchester Leisure,Grant and subscriptions awarded,10.05.2019,5101031719,"4,500.00",Friends of Herristone Park
Manchester City Council,Manchester Leisure,Library Materials Acquisition,10.05.2019,1906471291,755.80,Askews and Holts
Manchester City Council,Manchester Leisure,Library Materials Acquisition,10.05.2019,1906471240,573.87,Askews and Holts
Manchester City Council,Manchester Leisure,Special Events,10.05.2019,5101031515,"3,484.00",Utilities Design & Planning Ltd
Manchester City Council,Hospitality + Trading Services,Vehicle Costs,10.05.2019,5101031759,"2,112.00",Verizon Connect UK Ltd
Manchester City Council,Hospitality + Trading Services,Vehicle Hire Costs,10.05.2019,5101031607,"1,808.40",Enterprise Flex-E-Rent
Manchester City Council,Hospitality + Trading Services,Vehicle Hire Costs,10.05.2019,5101031657,"1,700.00",Peter Douglass Platforms
Manchester City Council,Hospitality + Trading Services,Vehicle Hire Costs,10.05.2019,5101031659,"1,200.00",Peter Douglass Platforms
Manchester City Council,Hospitality + Trading Services,Vehicle Hire Costs,10.05.2019,5101031661,700.00,Peter Douglass Platforms
Manchester City Council,Hospitality + Trading Services,Hire of Machinery,10.05.2019,5101031629,"1,344.00",Gibsons Garden Machinery Limited
Manchester City Council,Hospitality + Trading Services,Hire of Machinery,10.05.2019,5101031630,"1,152.80",Gibsons Garden Machinery Limited
Manchester City Council,Hospitality + Trading Services,Hire of Machinery,10.05.2019,5101031641,"1,101.20",Gibsons Garden Machinery Limited
Manchester City Council,Hospitality + Trading Services,Hire of Machinery,10.05.2019,5101031637,992.00,Gibsons Garden Machinery Limited
Manchester City Council,Hospitality + Trading Services,Hire of Machinery,10.05.2019,5101031628,730.40,Gibsons Garden Machinery Limited
Manchester City Council,Hospitality + Trading Services,Catering Provisions,10.05.2019,1906474557,604.02,BRAKE BROS LTD
Manchester City Council,Hospitality + Trading Services,Catering Provisions,10.05.2019,1906474609,952.59,RALPH LIVESEY LTD
Manchester City Council,Hospitality + Trading Services,Catering Provisions,10.05.2019,1906474527,763.95,RALPH LIVESEY LTD
Manchester City Council,Hospitality + Trading Services,Catering Provisions,10.05.2019,1906474545,739.11,RALPH LIVESEY LTD
Manchester City Council,Hospitality + Trading Services,Catering Provisions,10.05.2019,1906474567,727.65,RALPH LIVESEY LTD
Manchester City Council,Hospitality + Trading Services,Catering Provisions,10.05.2019,1906474556,696.00,RALPH LIVESEY LTD
Manchester City Council,Hospitality + Trading Services,Catering Provisions,10.05.2019,1906474542,664.19,RALPH LIVESEY LTD
Manchester City Council,Hospitality + Trading Services,Catering Provisions,10.05.2019,1906474564,634.73,RALPH LIVESEY LTD
Manchester City Council,Hospitality + Trading Services,Catering Provisions,10.05.2019,1906474590,610.30,RALPH LIVESEY LTD
Manchester City Council,Hospitality + Trading Services,Catering Provisions,10.05.2019,1906474659,606.37,RALPH LIVESEY LTD
Manchester City Council,Hospitality + Trading Services,Catering Provisions,10.05.2019,1906474547,576.20,RALPH LIVESEY LTD
Manchester City Council,Hospitality + Trading Services,Catering Provisions,10.05.2019,1906474559,572.16,RALPH LIVESEY LTD
Manchester City Council,Hospitality + Trading Services,Catering Provisions,10.05.2019,1906474566,566.78,RALPH LIVESEY LTD
Manchester City Council,Hospitality + Trading Services,Catering Provisions,10.05.2019,1906474618,532.73,RALPH LIVESEY LTD
Manchester City Council,Hospitality + Trading Services,Catering Provisions,10.05.2019,1906474654,527.36,RALPH LIVESEY LTD
Manchester City Council,Hospitality + Trading Services,Catering Provisions,10.05.2019,1906474635,523.80,RALPH LIVESEY LTD
Manchester City Council,Hospitality + Trading Services,Catering Provisions,10.05.2019,1906474600,520.00,RALPH LIVESEY LTD
Manchester City Council,Hospitality + Trading Services,Catering Provisions,10.05.2019,1906474638,502.85,RALPH LIVESEY LTD
Manchester City Council,Adult Social Care,Internal Repairs and Maintenance for buildings,10.05.2019,5101031090,"1,000.00",Manchester School Services Limited
Manchester City Council,Adult Social Care,Rents,10.05.2019,5101031711,"28,943.72",Housing Social Ltd
Manchester City Council,Adult Social Care,Rents,10.05.2019,5101031648,"6,076.62",Eeven Homes Ltd.
Manchester City Council,Adult Social Care,Transport Coach Hire,10.05.2019,5101030961,990.00,Redacted Personal Information
Manchester City Council,Adult Social Care,Transport Coach Hire,10.05.2019,5101031682,"10,793.75",Lancashire County Council
Manchester City Council,Adult Social Care,Transport Coach Hire,10.05.2019,5101030959,"1,980.00",Ricks Travel
Manchester City Council,Adult Social Care,Transport Coach Hire,10.05.2019,5101030955,"3,795.00",Royton Minibuses Ltd
Manchester City Council,Adult Social Care,Transport Coach Hire,10.05.2019,5101030958,"1,045.00",JKR Travel
Manchester City Council,Adult Social Care,Transport Coach Hire,10.05.2019,5101031457,"6,033.93",Redacted Personal Information
Manchester City Council,Adult Social Care,Transport Coach Hire,10.05.2019,5101031059,"1,844.00",T/a K Travel
Manchester City Council,Adult Social Care,Transport Coach Hire,10.05.2019,5101031462,"3,014.00",Sumi Travel Ltd.
Manchester City Council,Adult Social Care,Training and Development,10.05.2019,5101031640,656.50,Kay Pictures Limited
Manchester City Council,Adult Social Care,Training and Development,10.05.2019,5101031638,-686.50,Kay Pictures Limited
Manchester City Council,Adult Social Care,Professional fees,10.05.2019,1906471571,566.00,Otten Penna Solicitors
Manchester City Council,Adult Social Care,Professional fees,10.05.2019,5101031752,"3,300.00",JBS-R Associates
Manchester City Council,Adult Social Care,Professional fees,10.05.2019,1906465973,800.00,Redacted Personal Information
Manchester City Council,Adult Social Care,Professional fees,10.05.2019,1906465934,783.30,Target Psychology Ltd
Manchester City Council,Adult Social Care,Professional fees,10.05.2019,1906471572,835.41,Pickering Psychology Services Ltd
Manchester City Council,Adult Social Care,Professional fees,10.05.2019,1906462917,"1,000.00",Redacted Personal Information
Manchester City Council,Adult Social Care,Professional fees,10.05.2019,1906465987,500.00,Redacted Personal Information
Manchester City Council,Adult Social Care,Professional fees,10.05.2019,1906468378,650.00,Redacted Personal Information
Manchester City Council,Adult Social Care,Professional fees,10.05.2019,1906459755,"3,820.00",Audacious Church
Manchester City Council,Adult Social Care,Professional fees,10.05.2019,1906465930,550.00,Redacted Personal Information
Manchester City Council,Adult Social Care,Grant and subscriptions awarded,10.05.2019,5101031548,"28,382.00",Bury M.B.C.
Manchester City Council,Adult Social Care,Third party payments to other Local Authorities,10.05.2019,5101031730,"9,915.15",Oldham Borough Council
Manchester City Council,Adult Social Care,Third party payments to other Local Authorities,10.05.2019,5101031690,"16,716.65",City Of Salford
Manchester City Council,Adult Social Care,Third party payments to other Local Authorities,10.05.2019,5101031731,"44,269.52",Bury M.B.C.
Manchester City Council,Adult Social Care,Third party payments to other Local Authorities,10.05.2019,5101031686,"13,959.00",Longford Park School
Manchester City Council,Adult Social Care,Third party payments relating to Voluntary Organisations,10.05.2019,5101031575,"3,750.00",Safe Families for Children
Manchester City Council,Adult Social Care,Payments for services,10.05.2019,5101031695,"37,081.20",The Together Trust
Manchester City Council,Adult Social Care,Payments for services,10.05.2019,5101031694,"33,481.60",The Together Trust
Manchester City Council,Adult Social Care,Payments for services,10.05.2019,5101031700,"30,951.62",The Together Trust
Manchester City Council,Adult Social Care,Payments for services,10.05.2019,5101031698,"4,811.06",The Together Trust
Manchester City Council,Adult Social Care,Payments for services,10.05.2019,5101031699,"4,811.06",The Together Trust
Manchester City Council,Adult Social Care,Payments for services,10.05.2019,5101031611,875.00,The Together Trust
Manchester City Council,Adult Social Care,Payments for services,10.05.2019,5101031702,"-4,811.06",The Together Trust
Manchester City Council,Adult Social Care,Payments for services,10.05.2019,5101030604,"8,955.90",Age Concern Manchester
Manchester City Council,Adult Social Care,Payments for services,10.05.2019,5101030604,"4,806.00",Age Concern Manchester
Manchester City Council,Adult Social Care,Payments for services,10.05.2019,5101031697,"12,491.00",Royal Nat. College for the Blind
Manchester City Council,Adult Social Care,Payments for services,10.05.2019,5101031253,"5,632.50",Enhance EHC Ltd
Manchester City Council,Adult Social Care,Payments for services,10.05.2019,5101031543,"27,500.00",ABL Health Ltd
Manchester City Council,Adult Social Care,Payments for services,10.05.2019,5101031645,"-27,500.00",ABL Health Ltd
Manchester City Council,Adult Social Care,Payments for services,10.05.2019,5101031692,"7,062.00",Hulme Hall Grammar School
Manchester City Council,Adult Social Care,Payments for services,10.05.2019,5101031064,"2,475.00",FoodSync CIC
Manchester City Council,Adult Social Care,Supporting People Payments,10.05.2019,5101031683,912.14,Places for People Living +
Manchester City Council,Adult Social Care,Supporting People Payments,10.05.2019,5101031685,699.60,Places for People Living +
Manchester City Council,Adult Social Care,Supported Accommodation,10.05.2019,5101031680,"2,140.00",Bedspace Resource Ltd
Manchester City Council,Adult Social Care,Supported Accommodation,10.05.2019,5101031681,"2,140.00",Bedspace Resource Ltd
Manchester City Council,Adult Social Care,Legal Fees,10.05.2019,5101031483,500.00,Redacted Personal Information
Manchester City Council,Corporate Services,Professional fees,10.05.2019,5101031362,"9,660.00",Turner & Townsend Cost
Manchester City Council,Corporate Services,Professional fees,10.05.2019,5101031540,"9,660.00",Turner & Townsend Cost
Manchester City Council,Corporate Services,Professional fees,10.05.2019,5101031365,"9,240.00",Turner & Townsend Cost
Manchester City Council,Corporate Services,Professional fees,10.05.2019,5101031367,"7,417.50",Turner & Townsend Cost
Manchester City Council,Housing General Fund,Building Works,10.05.2019,1906474713,"70,606.24",Abensons Solicitors
Manchester City Council,Housing Revenue Account,Council Dwelling Fees,10.05.2019,5101031747,"194,428.00",Northwards Housing Limited
Manchester City Council,Housing Revenue Account,Council Dwelling Adaptations,10.05.2019,5101031744,"65,776.12",A Connolly Limited
Manchester City Council,Housing Revenue Account,Council Dwelling Adaptations,10.05.2019,5101031655,"8,159.52",Countrywide Envrntal Services Ltd
Manchester City Council,Chief Executives,Agency staff provision,10.05.2019,5101031547,"2,300.00",HCL Social Care
Manchester City Council,Chief Executives,Agency staff provision,10.05.2019,5101031473,"4,117.48",Deekay Technical Recruitment Ltd
Manchester City Council,Chief Executives,Agency staff provision,10.05.2019,5101031386,"22,518.00",Triad Resourcing
Manchester City Council,Chief Executives,Rents,10.05.2019,5101030751,947.00,Regus Management (UK) Ltd
Manchester City Council,Chief Executives,Printing,10.05.2019,5101031664,757.00,Leeds Graphic Press Ltd
Manchester City Council,Chief Executives,Postage,10.05.2019,5101031074,"1,232.51",Royal Mail Group Plc
Manchester City Council,Chief Executives,Advertising,10.05.2019,5101031735,"1,170.00",Bauer Radio Ltd
Manchester City Council,Chief Executives,Third party payments relating to Voluntary Organisations,10.05.2019,5101031714,"4,839.00",GMCVO
Manchester City Council,Chief Executives,Third party payments relating to Voluntary Organisations,10.05.2019,5101031718,"9,750.00",Ladybarn Community Association
Manchester City Council,Chief Executives,Third party payments relating to Voluntary Organisations,10.05.2019,5101031716,"9,850.00",Manchester Refugee Support Network
Manchester City Council,Chief Executives,Third party payments relating to Voluntary Organisations,10.05.2019,5101031721,"7,076.00",Manchester Black Health Forum
Manchester City Council,Chief Executives,Works and associated costs for Land and Buildings,10.05.2019,5101031428,"2,048.00",Turner & Townsend Cost
Manchester City Council,Chief Executives,Works and associated costs for Land and Buildings,10.05.2019,5101031746,"1,000.00",Keelagher Okey Associates Ltd t/a
Manchester City Council,Chief Executives,Works and associated costs for Land and Buildings,10.05.2019,5101031792,"5,767.00",Office for Metropolitan Architectur
Manchester City Council,Chief Executives,Works and associated costs for Land and Buildings,10.05.2019,5101031725,"1,763.00",Gardiner & Theobald LLP
Manchester City Council,Chief Executives,Works and associated costs for Land and Buildings,10.05.2019,5101031389,"2,880.00",Sandy Brown Associates Ltd
Manchester City Council,Chief Executives,Legal Fees,10.05.2019,5101031618,"1,500.00",Redacted Personal Information
Manchester City Council,Chief Executives,Compensation Payments,10.05.2019,1906465944,650.00,18 St John Street Chambers
Manchester City Council,Chief Executives,Compensation Payments,10.05.2019,5101031643,900.00,Landmark Chambers
Manchester City Council,Regeneration Finance,External repairs and maintenance for buildings,10.05.2019,5101031447,915.20,Cheshire Scaffolds Ltd
Manchester City Council,Regeneration Finance,Rents,10.05.2019,1906473781,"6,031.65",Regus Management (UK) Ltd
Manchester City Council,Regeneration Finance,Refuse Collection,10.05.2019,5101031358,603.00,Emerge 3Rs
Manchester City Council,Regeneration Finance,Car Parking Expenses,10.05.2019,1906459041,"7,303.31",National Car Parks Ltd Season Ticke
Manchester City Council,Regeneration Finance,Catering,10.05.2019,5101031713,682.00,Islington Council
Manchester City Council,Regeneration Finance,Consultants Fees,10.05.2019,5101031442,"24,882.00",Kpmg Llp
Manchester City Council,Regeneration Finance,Professional fees,10.05.2019,5101031749,"4,675.00",Lambert Smith Hampton
Manchester City Council,Regeneration Finance,Professional fees,10.05.2019,5101031712,"3,448.50",P Mcguinness & Co Ltd
Manchester City Council,Regeneration Finance,I T Provision,10.05.2019,5101031229,"1,396.27",Data Space Limited
Manchester City Council,Regeneration Finance,I T Provision,10.05.2019,5101031228,"1,389.19",Data Space Limited
Manchester City Council,Regeneration Finance,I T Provision,10.05.2019,5101031224,"1,336.94",Data Space Limited
Manchester City Council,Regeneration Finance,Grant and subscriptions awarded,10.05.2019,5101031549,"7,500.00",Manchester Deaf Centre Ltd
Manchester City Council,Regeneration Finance,Grant and subscriptions awarded,10.05.2019,5101031591,"-7,750.00",Manchester Deaf Centre Ltd
Manchester City Council,Regeneration Finance,Removal and Storage of Furniture,10.05.2019,5101031235,679.81,BCL
Manchester City Council,Regeneration Finance,Third party payments to other Local Authorities,10.05.2019,5101031402,"6,300.00",Hamara Health Living Centre
Manchester City Council,Regeneration Finance,Third party payments to other Local Authorities,10.05.2019,5101031668,"3,937.50",Barnet and Southgate College
Manchester City Council,Regeneration Finance,Planning Application Fees,10.05.2019,1906464220,"3,696.00",PortalPlanQuest Ltd
Manchester City Council,Highways Services,Grounds Maintenance Costs,10.05.2019,5101031533,"1,973.00",A T G Access Ltd
Manchester City Council,Highways Services,Payments to Sub-Contractors,10.05.2019,5101031665,"1,542.29",Utilities Design & Planning Ltd
Manchester City Council,Highways Services,Payments to Sub-Contractors,10.05.2019,5101031667,"1,199.60",Utilities Design & Planning Ltd
Manchester City Council,Highways Services,Payments to Sub-Contractors,10.05.2019,5101031727,"5,829.54",Northern Marking Limited
Manchester City Council,Highways Services,Payments to Sub-Contractors,10.05.2019,5101031688,"3,675.51",Northern Marking Limited
Manchester City Council,Highways Services,Payments to Sub-Contractors,10.05.2019,5101031728,"2,550.00",Northern Marking Limited
Manchester City Council,Highways Services,Payments to Sub-Contractors,10.05.2019,5101031729,"1,736.64",Northern Marking Limited
Manchester City Council,Highways Services,Payments to Sub-Contractors,10.05.2019,5101031684,"-3,675.51",Northern Marking Limited
Manchester City Council,Highways Services,Professional fees,10.05.2019,5101031670,"76,376.24",Sapphire Utility Solutions
Manchester City Council,Highways Services,Professional fees,10.05.2019,5101031369,708.00,Waterman Aspen Ltd
Manchester City Council,Insurance Fund,Insurance,10.05.2019,1906464241,"1,759.50",Clyde & Co Claims LLP
Manchester City Council,Insurance Fund,Insurance,10.05.2019,1906464242,"1,000.50",Clyde & Co Claims LLP
Manchester City Council,Manchester Leisure,Vehicle Fuel Costs,13.05.2019,5101031853,957.67,Carlton Fuels Ltd
Manchester City Council,Manchester Leisure,"Consumable items eg Toilet rolls, soap etc",13.05.2019,5101031834,"5,544.00",Craemer Uk Ltd
Manchester City Council,Manchester Leisure,Payments to Sub-Contractors,13.05.2019,5101031550,"1,500.00",Groundwork & Leisure Services Ltd
Manchester City Council,Manchester Leisure,Professional fees,13.05.2019,5101031772,"1,500.00",Redacted Personal Information
Manchester City Council,Hospitality + Trading Services,External repairs and maintenance for buildings,13.05.2019,5101030796,828.50,Dante Fire & Security Ltd
Manchester City Council,Hospitality + Trading Services,Refuse Collection,13.05.2019,5101030701,"72,862.33",Fairfield Environmental Serv Ltd
Manchester City Council,Hospitality + Trading Services,Vehicle Fuel Costs,13.05.2019,5101031848,"18,783.29",Carlton Fuels Ltd
Manchester City Council,Hospitality + Trading Services,Vehicle Fuel Costs,13.05.2019,5101031856,584.30,Carlton Fuels Ltd
Manchester City Council,Hospitality + Trading Services,I T Provision,13.05.2019,5101031808,995.00,Odlings MCR Ltd
Manchester City Council,Environment and Operations,Construction Works,13.05.2019,5101030852,"50,783.73",Bethell Construction Ltd
Manchester City Council,Environment and Operations,Construction Works,13.05.2019,5101031798,"49,736.05",Bethell Construction Ltd
Manchester City Council,Environment and Operations,Construction Works,13.05.2019,5101031172,"46,663.13",Bethell Construction Ltd
Manchester City Council,Environment and Operations,Construction Works,13.05.2019,5101031017,"19,278.13",Bethell Construction Ltd
Manchester City Council,Environment and Operations,Construction Works,13.05.2019,5101031171,"1,361.14",Bethell Construction Ltd
Manchester City Council,Environment and Operations,Construction Works,13.05.2019,5101031260,"-50,783.73",Bethell Construction Ltd
Manchester City Council,Environment and Operations,Construction Works,13.05.2019,5101031295,"-1,410.00",Rosgal Ltd
Manchester City Council,Environment and Operations,Construction Works,13.05.2019,5101030850,"60,440.82",Bt Repayments And Claims Group
Manchester City Council,Environment and Operations,Construction Works,13.05.2019,5101030797,"13,140.27",Instalcom Limited
Manchester City Council,Environment and Operations,Construction Works,13.05.2019,5101030943,"1,260.00",Urban Green Space Limited
Manchester City Council,Adult Social Care,Rents,13.05.2019,5101031960,"34,332.50",M & Q Properties Management Ltd
Manchester City Council,Adult Social Care,Rents,13.05.2019,1906467252,"1,400.00",Glenthorpe Homes
Manchester City Council,Adult Social Care,Rents,13.05.2019,5101031874,"7,792.72",AJD Property Limited
Manchester City Council,Adult Social Care,Rents,13.05.2019,5101031880,"3,779.40",AJD Property Limited
Manchester City Council,Adult Social Care,Rents,13.05.2019,1906474721,500.00,Redacted Personal Information
Manchester City Council,Adult Social Care,Rents,13.05.2019,1906468372,600.00,Kings Lettings
Manchester City Council,Adult Social Care,Rents,13.05.2019,1906468330,"1,200.00",Main & Main Estate Agent
Manchester City Council,Adult Social Care,Hire of Premises,13.05.2019,5101031862,868.00,Big Life Centres
Manchester City Council,Adult Social Care,Transport Coach Hire,13.05.2019,5101031653,525.00,Hastings Private Hire
Manchester City Council,Adult Social Care,Transport Coach Hire,13.05.2019,5101031778,525.00,Hastings Private Hire
Manchester City Council,Adult Social Care,Transport Coach Hire,13.05.2019,5101031771,-525.00,Hastings Private Hire
Manchester City Council,Adult Social Care,Transport Coach Hire,13.05.2019,5101030953,"3,125.00",D.J. Minibus Travel
Manchester City Council,Adult Social Care,Transport Coach Hire,13.05.2019,5101031952,"6,284.50",Taxi Team Limited
Manchester City Council,Adult Social Care,Transport Coach Hire,13.05.2019,5101031956,"3,000.00",Redacted Personal Information
Manchester City Council,Adult Social Care,Transport Coach Hire,13.05.2019,5101031958,"2,100.00",Redacted Personal Information
Manchester City Council,Adult Social Care,Equipment,13.05.2019,5101031917,"2,475.00",Mangar International Ltd
Manchester City Council,Adult Social Care,Equipment,13.05.2019,5101031907,850.80,Drive Devilbiss Healthcare Ltd
Manchester City Council,Adult Social Care,Furniture,13.05.2019,5101031766,566.00,Back Care Solutions Ltd
Manchester City Council,Adult Social Care,Catering,13.05.2019,5101031777,"8,560.30",Spie Limited
Manchester City Council,Adult Social Care,Professional fees,13.05.2019,5101031852,"18,848.50",Manchester Metropolitan University
Manchester City Council,Adult Social Care,Professional fees,13.05.2019,1906457195,600.00,Redacted Personal Information
Manchester City Council,Adult Social Care,Professional fees,13.05.2019,1906465983,550.00,18 St John Street Chambers
Manchester City Council,Adult Social Care,Professional fees,13.05.2019,5101031658,"14,711.60",Independent Life Solutions
Manchester City Council,Adult Social Care,Professional fees,13.05.2019,5101031660,"6,000.00",Independent Life Solutions
Manchester City Council,Adult Social Care,Professional fees,13.05.2019,5101031656,"1,586.00",Independent Life Solutions
Manchester City Council,Adult Social Care,Professional fees,13.05.2019,1906456904,"1,250.00",Kenworthy's Chambers
Manchester City Council,Adult Social Care,Professional fees,13.05.2019,5101031555,"6,600.00",AJM Robertson Consulting Ltd
Manchester City Council,Adult Social Care,Professional fees,13.05.2019,1906465951,"1,000.00",Redacted Personal Information
Manchester City Council,Adult Social Care,Professional fees,13.05.2019,1906465949,525.00,Redacted Personal Information
Manchester City Council,Adult Social Care,Professional fees,13.05.2019,1906457006,"4,441.12",Waddington & Son Solicitors
Manchester City Council,Adult Social Care,Professional fees,13.05.2019,1906456996,"1,514.84",Waddington & Son Solicitors
Manchester City Council,Adult Social Care,Professional fees,13.05.2019,1906456994,"1,033.67",Waddington & Son Solicitors
Manchester City Council,Adult Social Care,Professional fees,13.05.2019,1906456993,812.50,Waddington & Son Solicitors
Manchester City Council,Adult Social Care,Professional fees,13.05.2019,1906451703,675.00,Redacted Personal Information
Manchester City Council,Adult Social Care,Professional fees,13.05.2019,1906459739,800.00,Redacted Personal Information
Manchester City Council,Adult Social Care,Professional fees,13.05.2019,1906457198,525.00,Redacted Personal Information
Manchester City Council,Adult Social Care,Professional fees,13.05.2019,1906474621,800.00,MEWA LLP
Manchester City Council,Adult Social Care,Bed and Breakfast Accommodation Expenditure,13.05.2019,5101031847,"11,565.00",Redacted Personal Information
Manchester City Council,Adult Social Care,Bed and Breakfast Accommodation Expenditure,13.05.2019,5101031851,"7,884.00",Redacted Personal Information
Manchester City Council,Adult Social Care,Bed and Breakfast Accommodation Expenditure,13.05.2019,5101031919,"24,739.50",Redacted Personal Information
Manchester City Council,Adult Social Care,Bed and Breakfast Accommodation Expenditure,13.05.2019,5101031654,"16,761.00",Redacted Personal Information
Manchester City Council,Adult Social Care,Bed and Breakfast Accommodation Expenditure,13.05.2019,5101031450,"8,630.00",Redacted Personal Information
Manchester City Council,Adult Social Care,Bed and Breakfast Accommodation Expenditure,13.05.2019,5101031964,"8,171.61",K L Properties
Manchester City Council,Adult Social Care,Third party payments to other Local Authorities,13.05.2019,5101031972,"39,871.00",Manor Academy
Manchester City Council,Adult Social Care,Third party payments to other Local Authorities,13.05.2019,5101031975,"5,756.00",Sale Grammar School
Manchester City Council,Adult Social Care,Third party payments to other Local Authorities,13.05.2019,5101031963,"5,433.75",Greenacre School
Manchester City Council,Adult Social Care,Third party payments to Health Authority,13.05.2019,1906467247,764.00,South Tyneside NHS FT
Manchester City Council,Adult Social Care,Third party payments to Health Authority,13.05.2019,1906468401,"2,377.00",Virgin Care Servs Ltd
Manchester City Council,Adult Social Care,Third party payments to Health Authority,13.05.2019,1906473992,"2,012.00",Virgin Care Servs Ltd
Manchester City Council,Adult Social Care,Third party payments to Health Authority,13.05.2019,1906468399,524.00,Virgin Care Servs Ltd
Manchester City Council,Adult Social Care,Third party payments to Health Authority,13.05.2019,1906462952,530.00,University Hosp Birmingham NHS FT
Manchester City Council,Adult Social Care,Third party payments relating to Voluntary Organisations,13.05.2019,5101031839,"13,656.80",Breakthrough Uk Ltd
Manchester City Council,Adult Social Care,Third party payments relating to Voluntary Organisations,13.05.2019,5101031839,"3,414.20",Breakthrough Uk Ltd
Manchester City Council,Adult Social Care,Third party payments relating to Voluntary Organisations,13.05.2019,5101031887,"2,400.00",Just Psychology CIC
Manchester City Council,Adult Social Care,Third party payments relating to Voluntary Organisations,13.05.2019,5101031840,"1,350.00",Just Psychology CIC
Manchester City Council,Adult Social Care,Third party payments relating to Voluntary Organisations,13.05.2019,5101031959,"37,570.00",We Mind the Gap
Manchester City Council,Adult Social Care,Payments for services,13.05.2019,5101031914,"3,307.20",The Together Trust
Manchester City Council,Adult Social Care,Payments for services,13.05.2019,5101031944,"3,209.61",The Together Trust
Manchester City Council,Adult Social Care,Payments for services,13.05.2019,5101031949,"3,072.61",The Together Trust
Manchester City Council,Adult Social Care,Payments for services,13.05.2019,5101031932,"2,445.64",The Together Trust
Manchester City Council,Adult Social Care,Payments for services,13.05.2019,5101031947,"1,808.84",The Together Trust
Manchester City Council,Adult Social Care,Payments for services,13.05.2019,5101031916,"1,787.00",The Together Trust
Manchester City Council,Adult Social Care,Payments for services,13.05.2019,5101031936,"1,560.04",The Together Trust
Manchester City Council,Adult Social Care,Payments for services,13.05.2019,5101031912,"1,182.14",The Together Trust
Manchester City Council,Adult Social Care,Payments for services,13.05.2019,5101031946,"1,182.14",The Together Trust
Manchester City Council,Adult Social Care,Payments for services,13.05.2019,5101031927,"1,045.59",The Together Trust
Manchester City Council,Adult Social Care,Payments for services,13.05.2019,5101031934,780.02,The Together Trust
Manchester City Council,Adult Social Care,Payments for services,13.05.2019,5101031929,589.00,The Together Trust
Manchester City Council,Adult Social Care,Payments for services,13.05.2019,5101031836,"254,908.03",Standwalk Ltd
Manchester City Council,Adult Social Care,Payments for services,13.05.2019,5101031969,"254,908.03",Standwalk Ltd
Manchester City Council,Adult Social Care,Payments for services,13.05.2019,5101031567,"41,715.33",Brook
Manchester City Council,Adult Social Care,Payments for services,13.05.2019,5101031551,"97,784.83",ABL Health Ltd
Manchester City Council,Adult Social Care,Payments for services,13.05.2019,5101031649,"27,500.00",ABL Health Ltd
Manchester City Council,Adult Social Care,Payments for services,13.05.2019,5101031924,"1,110.29",Access to Music Ltd
Manchester City Council,Adult Social Care,Payments for services,13.05.2019,5101031837,"11,575.21",Carlton House Care Ltd
Manchester City Council,Adult Social Care,Payments for services,13.05.2019,5101031937,"2,640.00",BDT Care Solutions Ltd
Manchester City Council,Adult Social Care,Payments for services,13.05.2019,5101031451,"1,071.27",Fairfield Care Ltd
Manchester City Council,Adult Social Care,Supporting People Payments,13.05.2019,5101031871,817.84,Mosscare St Vincent's Housing
Manchester City Council,Adult Social Care,Day Care Payments,13.05.2019,5101031802,"1,012.50",Village Nursery & Pre-School
Manchester City Council,Adult Social Care,Supported Accommodation,13.05.2019,5101031776,"22,322.42",Creative Support Ltd
Manchester City Council,Adult Social Care,Legal Fees,13.05.2019,5101031481,500.00,Kings Chambers
Manchester City Council,Childrens Services,Works and associated costs for Land and Buildings,13.05.2019,5101031104,"1,725.00",Building Design Partnership Limited
Manchester City Council,Corporate Services,Travel Season Ticket Loan Scheme,13.05.2019,5101031775,570.00,Stagecoach Manchester
Manchester City Council,Corporate Services,Travel Season Ticket Loan Scheme,13.05.2019,5101031775,570.00,Stagecoach Manchester
Manchester City Council,Corporate Services,Travel Season Ticket Loan Scheme,13.05.2019,5101031775,570.00,Stagecoach Manchester
Manchester City Council,Corporate Services,Payments to Sub-Contractors,13.05.2019,5101031564,"4,445.22",Utilities Design & Planning Ltd
Manchester City Council,Corporate Services,Signers/Interpreters Fees,13.05.2019,5101031701,"1,000.00",Interpreting Solutions Ltd
Manchester City Council,Corporate Services,Professional fees,13.05.2019,5101031821,723.20,Redacted Personal Information
Manchester City Council,Corporate Services,Professional fees,13.05.2019,5101031819,"1,186.80",Redacted Personal Information
Manchester City Council,Corporate Services,Fees,13.05.2019,5101031786,"1,880.00",Pannone Corporate LLP
Manchester City Council,Corporate Services,Tele Conferencing,13.05.2019,1906474699,"1,320.72",BT Conferencing Services
Manchester City Council,Corporate Services,Removal and Storage of Furniture,13.05.2019,5101031384,"1,416.63",BCL
Manchester City Council,Corporate Services,Works and associated costs for Land and Buildings,13.05.2019,5101031841,"10,000.00",Deloitte & Touche Llp
Manchester City Council,Corporate Services,Works and associated costs for Land and Buildings,13.05.2019,5101031845,700.00,Strata Consulting Ltd
Manchester City Council,Corporate Services,Works and associated costs for Land and Buildings,13.05.2019,5101031622,"51,638.00",Kier Construction Limited
Manchester City Council,Corporate Services,Long Term Debtors,13.05.2019,5101032038,"462,300.14",Capital and Centric (Cinnamon2) Ltd
Manchester City Council,Housing Revenue Account,Private Finance and Public Private partnership initiatives,13.05.2019,5101031838,"472,789.71",Grove Village Ltd
Manchester City Council,Housing Revenue Account,Council Dwelling Adaptations,13.05.2019,5101031945,"12,567.00",Quartzelec Ltd
Manchester City Council,Housing Revenue Account,Council Dwelling Adaptations,13.05.2019,5101031955,"16,001.07",Manchester Working Ltd
Manchester City Council,Housing Revenue Account,Council Dwelling Adaptations,13.05.2019,5101031918,"13,810.95",Manchester Working Ltd
Manchester City Council,Housing Revenue Account,Council Dwelling Adaptations,13.05.2019,5101031935,"10,674.84",Manchester Working Ltd
Manchester City Council,Housing Revenue Account,Council Dwelling Adaptations,13.05.2019,5101031950,"9,248.08",Manchester Working Ltd
Manchester City Council,Housing Revenue Account,Council Dwelling Adaptations,13.05.2019,5101031913,"5,891.04",Manchester Working Ltd
Manchester City Council,Housing Revenue Account,Council Dwelling Adaptations,13.05.2019,5101031920,"4,400.34",Manchester Working Ltd
Manchester City Council,Housing Revenue Account,Council Dwelling Adaptations,13.05.2019,5101031922,"4,400.34",Manchester Working Ltd
Manchester City Council,Housing Revenue Account,Council Dwelling Adaptations,13.05.2019,5101031915,"3,798.77",Manchester Working Ltd
Manchester City Council,Housing Revenue Account,Council Dwelling Adaptations,13.05.2019,5101031899,"3,411.16",Manchester Working Ltd
Manchester City Council,Housing Revenue Account,Council Dwelling Adaptations,13.05.2019,5101031940,"2,933.56",Manchester Working Ltd
Manchester City Council,Housing Revenue Account,Council Dwelling Adaptations,13.05.2019,5101031910,"2,616.00",Manchester Working Ltd
Manchester City Council,Housing Revenue Account,Council Dwelling Adaptations,13.05.2019,5101031955,807.16,Manchester Working Ltd
Manchester City Council,Housing Revenue Account,Council Dwelling Adaptations,13.05.2019,5101031899,552.98,Manchester Working Ltd
Manchester City Council,Chief Executives,Agency staff provision,13.05.2019,5101031378,"34,606.04",Access Computer Consulting plc
Manchester City Council,Chief Executives,Rents,13.05.2019,5101031579,"3,252.75",Manchester Creative Digital Assets
Manchester City Council,Chief Executives,Rents,13.05.2019,5101031580,"1,177.83",Manchester Creative Digital Assets
Manchester City Council,Chief Executives,Storage Costs,13.05.2019,5101031933,540.64,Data Space Limited
Manchester City Council,Chief Executives,Storage Costs,13.05.2019,5101031931,517.60,Data Space Limited
Manchester City Council,Chief Executives,Payments to Sub-Contractors,13.05.2019,5101031954,"1,219.50",Redacted Personal Information
Manchester City Council,Chief Executives,Printing,13.05.2019,5101031739,"2,057.00",Mcr:Music Limited
Manchester City Council,Chief Executives,Printing,13.05.2019,5101031635,700.00,Contact Photographic Services Ltd
Manchester City Council,Chief Executives,CRB Fees,13.05.2019,5101031896,"20,636.00",Disclosure & Barring Service
Manchester City Council,Chief Executives,Telecoms Maintenance,13.05.2019,5101031790,972.00,T.I.S. Limited
Manchester City Council,Chief Executives,I T Provision,13.05.2019,5101031803,"6,230.52",Capita IT Services Ltd
Manchester City Council,Chief Executives,ICT Support & Maintenance,13.05.2019,5101031574,"15,887.06",Esteem
Manchester City Council,Chief Executives,Grant and subscriptions awarded,13.05.2019,1906457134,"100,000.00",Manchester Credit Union
Manchester City Council,Chief Executives,Advertising,13.05.2019,5101031764,"3,501.00",Clear Channel Uk Ltd
Manchester City Council,Chief Executives,Advertising,13.05.2019,5101031765,"1,950.75",Clear Channel Uk Ltd
Manchester City Council,Chief Executives,Third party payments relating to Voluntary Organisations,13.05.2019,5101031313,"4,624.00",St Georges Community Centre.
Manchester City Council,Chief Executives,Works and associated costs for Land and Buildings,13.05.2019,5101031732,"14,636.00",Manchester Quays Limited
Manchester City Council,Chief Executives,Works and associated costs for Land and Buildings,13.05.2019,5101031734,"14,636.00",Manchester Quays Limited
Manchester City Council,Chief Executives,Works and associated costs for Land and Buildings,13.05.2019,5101031843,"250,586.51",BMM JV Limited
Manchester City Council,Chief Executives,Works and associated costs for Land and Buildings,13.05.2019,5101031876,"250,586.51",BMM JV Limited
Manchester City Council,Chief Executives,Works and associated costs for Land and Buildings,13.05.2019,5101031878,"250,586.51",BMM JV Limited
Manchester City Council,Chief Executives,Works and associated costs for Land and Buildings,13.05.2019,5101031868,"-250,586.51",BMM JV Limited
Manchester City Council,Chief Executives,Compensation Payments,13.05.2019,1906474676,508.33,Redacted Personal Information
Manchester City Council,Chief Executives,Compensation Payments,13.05.2019,5101031623,750.00,Redacted Personal Information
Manchester City Council,Chief Executives,Compensation Payments,13.05.2019,1906474678,800.57,Redacted Personal Information
Manchester City Council,Chief Executives,Compensation Payments,13.05.2019,1906474078,900.00,Redacted Personal Information
Manchester City Council,Chief Executives,Compensation Payments,13.05.2019,1906465958,"1,100.00",Redacted Personal Information
Manchester City Council,Chief Executives,Compensation Payments,13.05.2019,1906468407,"1,202.25",Slater & Gordon (UK) LLP
Manchester City Council,Regeneration Finance,Preventative Maintenance Work,13.05.2019,5101031779,"108,903.91",Manchester Working Ltd
Manchester City Council,Regeneration Finance,Storage Costs,13.05.2019,5101031783,916.14,Data Space Limited
Manchester City Council,Regeneration Finance,Storage Costs,13.05.2019,5101031788,738.51,Data Space Limited
Manchester City Council,Regeneration Finance,Professional fees,13.05.2019,5101031835,"2,750.00",Lambert Smith Hampton
Manchester City Council,Regeneration Finance,Professional fees,13.05.2019,5101031894,"9,000.00",C & W (U.K.) LLP
Manchester City Council,Regeneration Finance,Professional fees,13.05.2019,5101031879,"12,388.89",Manchester Working Ltd
Manchester City Council,Regeneration Finance,I T Provision,13.05.2019,5101031864,"1,416.10",Data Space Limited
Manchester City Council,Regeneration Finance,Third party payments to other Local Authorities,13.05.2019,5101031722,"1,950.00",Rochdale MBC
Manchester City Council,Regeneration Finance,Third party payments to other Local Authorities,13.05.2019,5101031750,"39,375.00",Shipley College
Manchester City Council,Regeneration Finance,Third party payments to other Local Authorities,13.05.2019,5101031800,"11,812.50",Fircroft College of Adult Education
Manchester City Council,Regeneration Finance,Third party payments relating to Voluntary Organisations,13.05.2019,5101031953,"18,778.00",Pure Innovations Ltd
Manchester City Council,Regeneration Finance,Legal Fees,13.05.2019,5101031673,"7,500.00",18 St John Street Chambers
Manchester City Council,Highways Services,Building Materials for direct delivery,13.05.2019,5101031895,802.64,TARMAC
Manchester City Council,Highways Services,Building Materials for direct delivery,13.05.2019,5101031900,707.84,TARMAC
Manchester City Council,Highways Services,Building Materials for direct delivery,13.05.2019,5101031904,608.30,TARMAC
Manchester City Council,Highways Services,Building Materials for direct delivery,13.05.2019,5101031893,507.30,TARMAC
Manchester City Council,Highways Services,Payments to Sub-Contractors,13.05.2019,5101031401,"3,193.00",Utilities Design & Planning Ltd
Manchester City Council,Highways Services,Payments to Sub-Contractors,13.05.2019,5101031403,"2,250.00",Utilities Design & Planning Ltd
Manchester City Council,Highways Services,Payments to Sub-Contractors,13.05.2019,5101031863,"8,960.09",Northern Marking Limited
Manchester City Council,Highways Services,Professional fees,13.05.2019,5101031371,"11,094.25",Waterman Aspen Ltd
Manchester City Council,Highways Services,Professional fees,13.05.2019,5101031373,"1,501.50",Waterman Aspen Ltd
Manchester City Council,Highways Services,Professional fees,13.05.2019,5101028859,"1,485.48",Waterman Aspen Ltd
Manchester City Council,Highways Services,Professional fees,13.05.2019,5101031381,"1,458.00",Waterman Aspen Ltd
Manchester City Council,Highways Services,Professional fees,13.05.2019,5101031375,"1,008.00",Waterman Aspen Ltd
Manchester City Council,Highways Services,Professional fees,13.05.2019,5101028859,883.32,Waterman Aspen Ltd
Manchester City Council,Highways Services,Compensation Payments,13.05.2019,1906466047,"2,200.00",Express Solicitors
Manchester City Council,Highways Services,Compensation Payments,13.05.2019,1906474720,"3,500.00",TPC Solicitors
Manchester City Council,Highways Services,Compensation Payments,13.05.2019,1906474715,688.00,Department For Work & Pensions
Manchester City Council,Highways Services,Compensation Payments,13.05.2019,1906466047,"2,254.00",Express Solicitors
Manchester City Council,Highways Services,Compensation Payments,13.05.2019,1906473990,"5,000.00",Keoghs LLP
Manchester City Council,Highways Services,Compensation Payments,13.05.2019,1906474720,"2,211.00",TPC Solicitors
Manchester City Council,General Fund,Levies,13.05.2019,1906443690,"3,815,721.22",GMCA
Manchester City Council,Manchester Leisure,Contract Cleaning External,14.05.2019,5101031801,"10,000.00",Manchester Working Ltd
Manchester City Council,Manchester Leisure,Building Materials for direct delivery,14.05.2019,5101031391,"7,200.00",Eastlands Trust Limited
Manchester City Council,Manchester Leisure,Payments to Sub-Contractors,14.05.2019,5101031799,"1,848.00",Rigby Taylor Ltd
Manchester City Council,Manchester Leisure,Professional fees,14.05.2019,5101031435,"116,800.00",Wythenshawe Forum Trust Ltd
Manchester City Council,Manchester Leisure,Professional fees,14.05.2019,5101031394,"5,000.00",Manchester Active
Manchester City Council,Manchester Leisure,Payments for services,14.05.2019,5101031770,662.50,Broughton Park Football Club
Manchester City Council,Manchester Leisure,Payments for services,14.05.2019,5101031328,720.00,Dance and Fitness Agency Ltd
Manchester City Council,Hospitality + Trading Services,Vehicle Hire Costs,14.05.2019,5101032085,"24,804.00",Winners Contract Hire Ltd
Manchester City Council,Hospitality + Trading Services,Catering Provisions,14.05.2019,1906477213,832.55,Brake Bros Foodservice Ltd
Manchester City Council,Hospitality + Trading Services,Catering Provisions,14.05.2019,1906477226,664.90,Brake Bros Foodservice Ltd
Manchester City Council,Hospitality + Trading Services,Catering Provisions,14.05.2019,1906477218,662.94,Brake Bros Foodservice Ltd
Manchester City Council,Hospitality + Trading Services,Catering Provisions,14.05.2019,1906477257,624.55,Brake Bros Foodservice Ltd
Manchester City Council,Hospitality + Trading Services,Catering Provisions,14.05.2019,1906477241,533.98,Brake Bros Foodservice Ltd
Manchester City Council,Hospitality + Trading Services,Catering Provisions,14.05.2019,1906477235,532.98,Brake Bros Foodservice Ltd
Manchester City Council,Hospitality + Trading Services,Catering Provisions,14.05.2019,1906477238,509.06,Brake Bros Foodservice Ltd
Manchester City Council,Hospitality + Trading Services,Catering Provisions,14.05.2019,1906477333,"1,169.59",BRAKE BROS LTD
Manchester City Council,Hospitality + Trading Services,Catering Provisions,14.05.2019,1906477332,"1,029.92",BRAKE BROS LTD
Manchester City Council,Hospitality + Trading Services,Catering Provisions,14.05.2019,1906477314,745.44,BRAKE BROS LTD
Manchester City Council,Hospitality + Trading Services,Catering Provisions,14.05.2019,1906477299,672.92,BRAKE BROS LTD
Manchester City Council,Hospitality + Trading Services,Catering Provisions,14.05.2019,1906477317,602.42,BRAKE BROS LTD
Manchester City Council,Hospitality + Trading Services,Catering Provisions,14.05.2019,1906477265,531.58,BRAKE BROS LTD
Manchester City Council,Hospitality + Trading Services,Catering Provisions,14.05.2019,1906477302,515.41,BRAKE BROS LTD
Manchester City Council,Environment and Operations,Publicity,14.05.2019,5101032020,885.00,ITSA Ltd
Manchester City Council,Environment and Operations,Professional fees,14.05.2019,5101032003,"2,970.00",Smile Mediation
Manchester City Council,Adult Social Care,Training and Development,14.05.2019,5101032078,750.00,University Of Salford
Manchester City Council,Adult Social Care,Rents,14.05.2019,5101032109,"31,683.95",United Property Management Ltd
Manchester City Council,Adult Social Care,Rents,14.05.2019,5101031986,"1,651.65",Georgie Porgie's Network Nursey Ltd
Manchester City Council,Adult Social Care,Rents,14.05.2019,1906476720,650.00,L4A Lettings
Manchester City Council,Adult Social Care,Contract Cleaning External,14.05.2019,5101031984,"2,464.00",Kids Start Ltd
Manchester City Council,Adult Social Care,Refuse Collection,14.05.2019,5101031982,"1,728.60",Barnardo's
Manchester City Council,Adult Social Care,Transport Coach Hire,14.05.2019,5101031425,"1,536.00",Connect Cars Ltd
Manchester City Council,Adult Social Care,Transport Coach Hire,14.05.2019,5101031426,500.00,Connect Cars Ltd
Manchester City Council,Adult Social Care,Transport Coach Hire,14.05.2019,5101031490,"5,235.00",Galaxy Transport (Manchester) Ltd
Manchester City Council,Adult Social Care,Transport Coach Hire,14.05.2019,5101031475,"2,099.00",Nelson Transport
Manchester City Council,Adult Social Care,Transport Coach Hire,14.05.2019,5101031437,"14,462.00",JCT Travel Ltd
Manchester City Council,Adult Social Care,Professional fees,14.05.2019,1906465986,"1,200.00",Redacted Personal Information
Manchester City Council,Adult Social Care,Professional fees,14.05.2019,1906475292,551.20,Target Psychology Ltd
Manchester City Council,Adult Social Care,Professional fees,14.05.2019,1906472406,"3,400.00",KBW Barristers Chambers
Manchester City Council,Adult Social Care,Professional fees,14.05.2019,1906472408,600.00,KBW Barristers Chambers
Manchester City Council,Adult Social Care,Professional fees,14.05.2019,5101032018,950.00,Angela Westington Consulting Ltd
Manchester City Council,Adult Social Care,Professional fees,14.05.2019,1906473991,"1,298.67",Waddington & Son Solicitors
Manchester City Council,Adult Social Care,Professional fees,14.05.2019,1906468377,616.67,Redacted Personal Information
Manchester City Council,Adult Social Care,Professional fees,14.05.2019,1906468390,576.00,Youth Support
Manchester City Council,Adult Social Care,Grant and subscriptions awarded,14.05.2019,5101032033,"70,954.00",Bolton Mbc
Manchester City Council,Adult Social Care,Third party payments to other Local Authorities,14.05.2019,5101032102,"3,256.00",Cheadle Hulme High School
Manchester City Council,Adult Social Care,Third party payments relating to Voluntary Organisations,14.05.2019,5101032074,"7,250.00",The Depaul Trust
Manchester City Council,Adult Social Care,Third party payments relating to Voluntary Organisations,14.05.2019,5101032073,"1,583.33",The Depaul Trust
Manchester City Council,Adult Social Care,Third party payments relating to Voluntary Organisations,14.05.2019,5101032005,"1,800.00",Just Psychology CIC
Manchester City Council,Adult Social Care,Payments for services,14.05.2019,5101032082,"1,761.00",NT&AS
Manchester City Council,Adult Social Care,Payments for services,14.05.2019,5101031925,"1,647.89",Access to Music Ltd
Manchester City Council,Adult Social Care,Payments for services,14.05.2019,5101032108,"3,250.00",Broadstones Independent Special Sch
Manchester City Council,Adult Social Care,Payments for services,14.05.2019,5101032114,"3,250.00",Broadstones Independent Special Sch
Manchester City Council,Adult Social Care,Payments for services,14.05.2019,5101032107,"3,090.90",Broadstones Independent Special Sch
Manchester City Council,Adult Social Care,Payments for services,14.05.2019,5101032113,"3,090.90",Broadstones Independent Special Sch
Manchester City Council,Adult Social Care,Payments for services,14.05.2019,5101032111,"2,280.00",Broadstones Independent Special Sch
Manchester City Council,Adult Social Care,Supporting People Payments,14.05.2019,5101032071,"10,000.00",The Depaul Trust
Manchester City Council,Adult Social Care,Supporting People Payments,14.05.2019,5101032071,"6,666.74",The Depaul Trust
Manchester City Council,Adult Social Care,Day Care Payments,14.05.2019,5101031977,"1,291.35",Diocese of Salford
Manchester City Council,Adult Social Care,Supported Accommodation,14.05.2019,1906477354,545.00,Bedspace Resource Ltd
Manchester City Council,Adult Social Care,Carer Support Payments ,14.05.2019,5101032086,"19,148.59",DH Homecare Ltd (Direct Health)
Manchester City Council,Adult Social Care,Personal needs of client,14.05.2019,5101031911,"1,104.00",YD Healthcare Ltd
Manchester City Council,Corporate Services,Grant Payments,14.05.2019,5101032104,"19,714.75",CIPFA Business Ltd
Manchester City Council,Corporate Services,Grant Payments,14.05.2019,5101031998,"6,550.81",Cleapss
Manchester City Council,Corporate Services,Collection Commission,14.05.2019,5101031820,756.00,Capacity Grid
Manchester City Council,Corporate Services,Works and associated costs for Land and Buildings,14.05.2019,5101032095,"1,103.50",Virgin Media Limited
Manchester City Council,Corporate Services,Works and associated costs for Land and Buildings,14.05.2019,5101032094,"-1,103.50",Virgin Media Limited
Manchester City Council,Corporate Services,Long Term Debtors,14.05.2019,1906477342,"1,737,217.09",Vesta Street Development Ltd
Manchester City Council,Housing General Fund,Infrastructure Fees,14.05.2019,5101030593,"3,000.00",Building Design Partnership Limited
Manchester City Council,Housing General Fund,Infrastructure Fees,14.05.2019,5101030847,605.00,Building Design Partnership Limited
Manchester City Council,Chief Executives,Rents,14.05.2019,5101031882,"1,169.00",Regus Management (UK) Ltd
Manchester City Council,Chief Executives,Rents,14.05.2019,5101032034,-561.00,Regus Management (UK) Ltd
Manchester City Council,Chief Executives,Professional fees,14.05.2019,5101031586,"1,968.91",Building Design Partnership Limited
Manchester City Council,Chief Executives,I T Provision,14.05.2019,5101030899,"3,675.00",TNP Ltd
Manchester City Council,Chief Executives,ICT Support & Maintenance,14.05.2019,5101032090,"1,010.00",IFM Europe Ltd
Manchester City Council,Chief Executives,Subsistence and Conference Expenses,14.05.2019,5101028315,"25,000.00",Oldham Borough Council
Manchester City Council,Chief Executives,Subsistence and Conference Expenses,14.05.2019,5101032016,"-25,000.00",Oldham Borough Council
Manchester City Council,Chief Executives,Advertising,14.05.2019,5101031124,949.05,TES Global Ltd
Manchester City Council,Chief Executives,Advertising,14.05.2019,5101031126,949.05,TES Global Ltd
Manchester City Council,Chief Executives,Advertising,14.05.2019,5101032105,-949.05,TES Global Ltd
Manchester City Council,Chief Executives,Advertising,14.05.2019,5101032110,-949.05,TES Global Ltd
Manchester City Council,Chief Executives,Legal Fees,14.05.2019,5101032089,800.00,Redacted Personal Information
Manchester City Council,Chief Executives,Legal Fees,14.05.2019,1906475284,"1,500.00",Redacted Personal Information
Manchester City Council,Chief Executives,Compensation Payments,14.05.2019,1906476725,"1,941.50",Russell & Russell Solicitors
Manchester City Council,Chief Executives,Compensation Payments,14.05.2019,1906476724,"2,077.15",Russell & Russell Solicitors
Manchester City Council,Chief Executives,Compensation Payments,14.05.2019,1906475275,"2,903.90",Russell & Russell Solicitors
Manchester City Council,Chief Executives,Compensation Payments,14.05.2019,1906475276,"3,055.00",Russell & Russell Solicitors
Manchester City Council,Chief Executives,Compensation Payments,14.05.2019,1906475278,"3,115.40",Russell & Russell Solicitors
Manchester City Council,Chief Executives,Compensation Payments,14.05.2019,1906475273,"3,186.60",Russell & Russell Solicitors
Manchester City Council,Chief Executives,Compensation Payments,14.05.2019,1906475277,"3,456.60",Russell & Russell Solicitors
Manchester City Council,Chief Executives,Compensation Payments,14.05.2019,1906475279,"4,845.23",Russell & Russell Solicitors
Manchester City Council,Chief Executives,Compensation Payments,14.05.2019,1906476719,513.00,Youth Support
Manchester City Council,Regeneration Finance,Internal Repairs and Maintenance for buildings,14.05.2019,5101031999,"15,130.67",Manchester Working Ltd
Manchester City Council,Regeneration Finance,Internal Repairs and Maintenance for buildings,14.05.2019,5101031995,"9,915.62",Manchester Working Ltd
Manchester City Council,Regeneration Finance,"Internal Repairs, Alterations Rechargeable",14.05.2019,5101032000,"42,087.70",Manchester Working Ltd
Manchester City Council,Regeneration Finance,"Internal Repairs, Alterations Rechargeable",14.05.2019,5101031997,"12,533.86",Manchester Working Ltd
Manchester City Council,Regeneration Finance,Preventative Maintenance Work,14.05.2019,5101031992,"25,125.58",Manchester Working Ltd
Manchester City Council,Regeneration Finance,Preventative Maintenance Work,14.05.2019,5101031993,"2,962.29",Manchester Working Ltd
Manchester City Council,Regeneration Finance,Grounds Maintenance Costs,14.05.2019,5101032032,649.17,Countrywide Grounds Maintenance Ltd
Manchester City Council,Regeneration Finance,Professional fees,14.05.2019,1906459737,"1,576.08",Associatio Of Retained
Manchester City Council,Regeneration Finance,Removal and Storage of Furniture,14.05.2019,5101032084,520.83,Restore PLC
Manchester City Council,Regeneration Finance,Third party payments relating to Voluntary Organisations,14.05.2019,5101031948,"56,328.00",Pure Innovations Ltd
Manchester City Council,Regeneration Finance,Third party payments relating to Voluntary Organisations,14.05.2019,5101031951,"-56,328.00",Pure Innovations Ltd
Manchester City Council,Highways Services,Payments to Sub-Contractors,14.05.2019,5101032100,"1,163.31",Northern Marking Limited
Manchester City Council,Highways Services,Professional fees,14.05.2019,5101031377,"1,552.00",Waterman Aspen Ltd
Manchester City Council,Highways Services,Professional fees,14.05.2019,5101031383,"1,424.00",Waterman Aspen Ltd
Manchester City Council,Highways Services,Compensation Payments,14.05.2019,1906476710,"1,500.00",Binas Solicitors Ltd
Manchester City Council,Highways Services,Legal Fees,14.05.2019,5101032091,"1,520.00",Redacted Personal Information
Manchester City Council,Highways Services,Compensation Payments,14.05.2019,1906476711,"1,671.00",Binas Solicitors Ltd
Manchester City Council,Manchester Leisure,Contract Cleaning External,15.05.2019,5101032031,"1,749.02",Manchester Working Ltd
Manchester City Council,Manchester Leisure,Travel,15.05.2019,1906480912,665.40,Diversity Travel Ltd
Manchester City Council,Manchester Leisure,Travel,15.05.2019,1906481198,562.00,Diversity Travel Ltd
Manchester City Council,Manchester Leisure,Building Materials for direct delivery,15.05.2019,5101032229,782.76,F.R.Sharrock Ltd
Manchester City Council,Manchester Leisure,Professional fees,15.05.2019,5101032269,"3,026.00",Daly Drains Ltd
Manchester City Council,Manchester Leisure,Professional fees,15.05.2019,5101032165,"116,800.00",Wythenshawe Forum Trust Ltd
Manchester City Council,Manchester Leisure,Professional fees,15.05.2019,5101032152,"-116,800.00",Wythenshawe Forum Trust Ltd
Manchester City Council,Manchester Leisure,Goods purchased for resale in Council outlets,15.05.2019,5101032206,704.00,John Wiley & Sons Ltd
Manchester City Council,Manchester Leisure,Goods purchased for resale in Council outlets,15.05.2019,5101032187,637.39,Grantham Book Services Ltd
Manchester City Council,Manchester Leisure,Goods purchased for resale in Council outlets,15.05.2019,5101032208,"1,402.17",Hachette UK Distribution
Manchester City Council,Manchester Leisure,Goods purchased for resale in Council outlets,15.05.2019,5101032205,519.36,U Studio Design Ltd
Manchester City Council,Manchester Leisure,Works and associated costs for Land and Buildings,15.05.2019,5101032297,"7,998.55",Conlon Construction Ltd
Manchester City Council,Libraries and Theatres,Subsistence and Conference Expenses,15.05.2019,5101032280,510.00,Ocean Media Group Ltd
Manchester City Council,Adult Social Care,Training and Development,15.05.2019,5101032175,750.00,University Of Salford
Manchester City Council,Adult Social Care,Training and Development,15.05.2019,5101032176,750.00,Manchester Metropolitan University
Manchester City Council,Adult Social Care,Training and Development,15.05.2019,5101032203,"1,557.00",Manchester Hospital School
Manchester City Council,Adult Social Care,Rents,15.05.2019,5101031813,"90,427.15",T15 Consultancy Ltd
Manchester City Council,Adult Social Care,Travel,15.05.2019,1906481225,702.00,Diversity Travel Ltd
Manchester City Council,Adult Social Care,Travel,15.05.2019,1906481204,514.08,Diversity Travel Ltd
Manchester City Council,Adult Social Care,Transport Coach Hire,15.05.2019,5101031909,"1,485.00",Hastings Private Hire
Manchester City Council,Adult Social Care,Transport Coach Hire,15.05.2019,5101031886,"1,218.00",Hastings Private Hire
Manchester City Council,Adult Social Care,Transport Coach Hire,15.05.2019,5101031873,"1,050.00",Hastings Private Hire
Manchester City Council,Adult Social Care,Transport Coach Hire,15.05.2019,5101032150,990.00,Hastings Private Hire
Manchester City Council,Adult Social Care,Transport Coach Hire,15.05.2019,5101031908,882.00,Hastings Private Hire
Manchester City Council,Adult Social Care,Transport Coach Hire,15.05.2019,5101032147,770.00,Hastings Private Hire
Manchester City Council,Adult Social Care,Transport Coach Hire,15.05.2019,5101032148,770.00,Hastings Private Hire
Manchester City Council,Adult Social Care,Transport Coach Hire,15.05.2019,5101031877,715.00,Hastings Private Hire
Manchester City Council,Adult Social Care,Transport Coach Hire,15.05.2019,5101031889,665.00,Hastings Private Hire
Manchester City Council,Adult Social Care,Transport Coach Hire,15.05.2019,5101031875,658.00,Hastings Private Hire
Manchester City Council,Adult Social Care,Transport Coach Hire,15.05.2019,5101032135,"1,210.00",DMC Travel
Manchester City Council,Adult Social Care,Transport Coach Hire,15.05.2019,5101032134,"1,200.00",DMC Travel
Manchester City Council,Adult Social Care,Transport Coach Hire,15.05.2019,5101032137,700.00,DMC Travel
Manchester City Council,Adult Social Care,Professional fees,15.05.2019,5101032170,"3,850.00",Horizon Care & Education Group Ltd
Manchester City Council,Adult Social Care,Professional fees,15.05.2019,5101032167,"3,675.00",Horizon Care & Education Group Ltd
Manchester City Council,Adult Social Care,Professional fees,15.05.2019,5101032161,"3,500.00",Horizon Care & Education Group Ltd
Manchester City Council,Adult Social Care,Professional fees,15.05.2019,5101032162,525.00,Horizon Care & Education Group Ltd
Manchester City Council,Adult Social Care,Professional fees,15.05.2019,1906476705,500.00,Redacted Personal Information
Manchester City Council,Adult Social Care,I T Provision,15.05.2019,5101032129,"4,262.36",CM2000 Care Management
Manchester City Council,Adult Social Care,Subsistence and Conference Expenses,15.05.2019,5101032254,"4,260.00",Hempsall Consultancies Ltd
Manchester City Council,Adult Social Care,Bed and Breakfast Accommodation Expenditure,15.05.2019,5101031651,"2,400.00",Redacted Personal Information
Manchester City Council,Adult Social Care,Third party payments to other Local Authorities,15.05.2019,5101032138,"13,012.00",Trafford M B C
Manchester City Council,Adult Social Care,Third party payments to other Local Authorities,15.05.2019,5101032140,"8,257.54",Trafford M B C
Manchester City Council,Adult Social Care,Third party payments to other Local Authorities,15.05.2019,5101032217,"7,814.00",Fairfield High School for Girls
Manchester City Council,Adult Social Care,Payments for services,15.05.2019,5101031452,"11,201.81",Carlton House Care Ltd
Manchester City Council,Adult Social Care,Payments for services,15.05.2019,5101025998,"12,012.00",National Offender Mgt Services
Manchester City Council,Adult Social Care,Supporting People Payments,15.05.2019,5101032249,578.06,Southway Housing Trust
Manchester City Council,Adult Social Care,Supporting People Payments,15.05.2019,5101032195,"1,392.05",Wythenshawe Community Housing Group
Manchester City Council,Adult Social Care,Supporting People Payments,15.05.2019,5101032194,"1,332.75",Wythenshawe Community Housing Group
Manchester City Council,Adult Social Care,Supported Accommodation,15.05.2019,5101031991,731.04,Mosscare St Vincent's Housing
Manchester City Council,Adult Social Care,Personal needs of client,15.05.2019,5101032185,-551.00,Transport for Greater Manchester
Manchester City Council,Corporate Services,Professional fees,15.05.2019,5101031271,750.00,Edmond Shipway
Manchester City Council,Corporate Services,Professional fees,15.05.2019,5101031272,750.00,Edmond Shipway
Manchester City Council,Corporate Services,Professional fees,15.05.2019,5101032182,"2,147.33",Experian Limited
Manchester City Council,Corporate Services,Professional fees,15.05.2019,5101031828,"3,612.38",Rider Levett Bucknall UK Ltd
Manchester City Council,Corporate Services,Works and associated costs for Land and Buildings,15.05.2019,5101032121,"2,804.50",Eversheds Llp
Manchester City Council,Corporate Services,Works and associated costs for Land and Buildings,15.05.2019,5101032120,"1,193.50",Eversheds Llp
Manchester City Council,Corporate Services,Works and associated costs for Land and Buildings,15.05.2019,5101032289,630.00,Eversheds Llp
Manchester City Council,Corporate Services,Legal Fees,15.05.2019,5101032212,"10,487.57",Epiq Europe Ltd
Manchester City Council,Housing General Fund,Works and associated costs for Land and Buildings,15.05.2019,5101032213,"2,272.00",Pinsent Masons LLP
Manchester City Council,Housing Revenue Account,Council Dwelling Adaptations,15.05.2019,5101031198,"2,783.00",Hoist & Shower Chair Company
Manchester City Council,Chief Executives,Rents,15.05.2019,5101031742,"24,232.00",UKfast.net Ltd
Manchester City Council,Chief Executives,Travel,15.05.2019,1906480924,520.00,Diversity Travel Ltd
Manchester City Council,Chief Executives,Publications,15.05.2019,5101032273,985.00,Thompson Reuters
Manchester City Council,Chief Executives,Postage,15.05.2019,5101032210,"59,752.97",Royal Mail Group Plc
Manchester City Council,Chief Executives,ICT Support & Maintenance,15.05.2019,5101032209,"1,010.00",IFM Europe Ltd
Manchester City Council,Chief Executives,Grant and subscriptions awarded,15.05.2019,5101032017,"13,552.08",Future Everything
Manchester City Council,Chief Executives,Advertising,15.05.2019,5101032117,949.05,TES Global Ltd
Manchester City Council,Chief Executives,Advertising,15.05.2019,5101032119,949.05,TES Global Ltd
Manchester City Council,Chief Executives,Advertising,15.05.2019,5101031127,759.05,TES Global Ltd
Manchester City Council,Chief Executives,Advertising,15.05.2019,5101032116,759.05,TES Global Ltd
Manchester City Council,Chief Executives,Advertising,15.05.2019,5101032112,-759.05,TES Global Ltd
Manchester City Council,Chief Executives,Licences Purchase,15.05.2019,5101032133,"82,943.00",Avolution (UK) Ltd
Manchester City Council,Regeneration Finance,Professional fees,15.05.2019,5101032128,"6,930.00",Mace Ltd
Manchester City Council,Highways Services,Building Materials for direct delivery,15.05.2019,5101032226,831.08,TARMAC
Manchester City Council,Highways Services,Building Materials for direct delivery,15.05.2019,5101032225,780.52,TARMAC
Manchester City Council,Highways Services,Building Materials for direct delivery,15.05.2019,5101032156,726.80,TARMAC
Manchester City Council,Highways Services,Building Materials for direct delivery,15.05.2019,5101032158,624.10,TARMAC
Manchester City Council,Highways Services,Building Materials for direct delivery,15.05.2019,5101032154,616.20,TARMAC
Manchester City Council,Highways Services,Building Materials for direct delivery,15.05.2019,5101032230,565.15,TARMAC
Manchester City Council,Highways Services,Professional fees,15.05.2019,5101031569,"3,712.50",Waterman Aspen Ltd
Manchester City Council,Manchester Leisure,Gas,16.05.2019,1906481820,"11,249.43",Total Gas & Power
Manchester City Council,Manchester Leisure,Gas,16.05.2019,1906481817,"5,315.48",Total Gas & Power
Manchester City Council,Manchester Leisure,Gas,16.05.2019,1906481818,"3,607.11",Total Gas & Power
Manchester City Council,Manchester Leisure,Gas,16.05.2019,1906481821,"2,330.88",Total Gas & Power
Manchester City Council,Manchester Leisure,Gas,16.05.2019,1906481815,"2,227.92",Total Gas & Power
Manchester City Council,Manchester Leisure,Gas,16.05.2019,1906481816,"1,411.54",Total Gas & Power
Manchester City Council,Manchester Leisure,Gas,16.05.2019,1906481799,"3,777.01",Gazprom Energy
Manchester City Council,Manchester Leisure,Gas,16.05.2019,1906481800,"3,552.58",Gazprom Energy
Manchester City Council,Manchester Leisure,Gas,16.05.2019,1906481797,"2,876.33",Gazprom Energy
Manchester City Council,Manchester Leisure,Gas,16.05.2019,1906481803,"1,567.46",Gazprom Energy
Manchester City Council,Manchester Leisure,Gas,16.05.2019,1906481804,"1,533.84",Gazprom Energy
Manchester City Council,Manchester Leisure,Gas,16.05.2019,1906481801,"1,368.23",Gazprom Energy
Manchester City Council,Manchester Leisure,Gas,16.05.2019,1906481802,"1,058.86",Gazprom Energy
Manchester City Council,Manchester Leisure,Gas,16.05.2019,1700088723,-556.68,Gazprom Energy
Manchester City Council,Manchester Leisure,Electricity,16.05.2019,1906481822,"2,112.03",Gazprom Energy
Manchester City Council,Manchester Leisure,Professional fees,16.05.2019,5101031885,"1,745.00",Sts Touring Productions Ltd
Manchester City Council,Manchester Leisure,Professional fees,16.05.2019,5101032348,"50,000.00",Nova International Ltd
Manchester City Council,Manchester Leisure,Professional fees,16.05.2019,5101032350,812.50,County Scientific Services
Manchester City Council,Manchester Leisure,Library Materials Acquisition,16.05.2019,1906476658,"2,568.15",Martin-Lavell Limited
Manchester City Council,Manchester Leisure,Library Materials Acquisition,16.05.2019,1906476686,532.62,Peters Bookselling Services
Manchester City Council,Manchester Leisure,Library Materials Acquisition,16.05.2019,1906476689,"6,958.33",Euromonitor International
Manchester City Council,Manchester Leisure,Payments for services,16.05.2019,5101032382,"10,000.00",Manchester Youth Academy
Manchester City Council,Hospitality + Trading Services,Catering Provisions,16.05.2019,1906482291,"1,396.09",Brake Bros Foodservice Ltd
Manchester City Council,Hospitality + Trading Services,Catering Provisions,16.05.2019,1906482251,824.89,Brake Bros Foodservice Ltd
Manchester City Council,Hospitality + Trading Services,Catering Provisions,16.05.2019,1906482234,691.90,Brake Bros Foodservice Ltd
Manchester City Council,Hospitality + Trading Services,Catering Provisions,16.05.2019,1906482233,612.14,Brake Bros Foodservice Ltd
Manchester City Council,Hospitality + Trading Services,Catering Provisions,16.05.2019,1906482227,836.69,RALPH LIVESEY LTD
Manchester City Council,Environment and Operations,Construction Works,16.05.2019,5101032220,"786,563.33",John Sisk & Son (Holdings) Ltd
Manchester City Council,Adult Social Care,Training and Development,16.05.2019,5101032315,750.00,University Of Salford
Manchester City Council,Adult Social Care,Training and Development,16.05.2019,5101032316,750.00,University Of Salford
Manchester City Council,Adult Social Care,Rents,16.05.2019,5101032340,"58,058.10",B & A Properties
Manchester City Council,Adult Social Care,Rents,16.05.2019,5101032448,"2,940.60",Mosscare Housing Ltd
Manchester City Council,Adult Social Care,Rents,16.05.2019,5101032427,"74,368.43",Accommodation Links Ltd
Manchester City Council,Adult Social Care,Rents,16.05.2019,5101032425,"53,321.25",MJ Rental Ltd
Manchester City Council,Adult Social Care,Rents,16.05.2019,5101032435,"128,899.50",Mack Residential Letting Ltd
Manchester City Council,Adult Social Care,Rents,16.05.2019,5101031965,"29,079.81",Housing Social Ltd
Manchester City Council,Adult Social Care,Rents,16.05.2019,5101032424,"6,076.62",Eeven Homes Ltd.
Manchester City Council,Adult Social Care,Rents,16.05.2019,5101032325,"4,968.53",AJD Property Limited
Manchester City Council,Adult Social Care,Transport Taxis,16.05.2019,1906474703,554.46,Cresta Car Hire
Manchester City Council,Adult Social Care,Transport Coach Hire,16.05.2019,5101032336,"1,024.10",Hastings Private Hire
Manchester City Council,Adult Social Care,Furniture,16.05.2019,5101032260,756.00,Back Care Solutions Ltd
Manchester City Council,Adult Social Care,"Consumable items eg Toilet rolls, soap etc",16.05.2019,5101032323,"2,981.34",Bluenuit Limited t/a
Manchester City Council,Adult Social Care,Building Materials for direct delivery,16.05.2019,5101032405,"1,120.00",Illingworth Ingham (M/cR)
Manchester City Council,Adult Social Care,Professional fees,16.05.2019,5101032242,"2,500.00",Ladybarn Primary School (Academy)
Manchester City Council,Adult Social Care,Professional fees,16.05.2019,1906442867,750.00,Redacted Personal Information
Manchester City Council,Adult Social Care,Bed and Breakfast Accommodation Expenditure,16.05.2019,5101032428,"9,030.00",Redacted Personal Information
Manchester City Council,Adult Social Care,Bed and Breakfast Accommodation Expenditure,16.05.2019,5101032338,"56,123.12",Cromwood Ltd
Manchester City Council,Adult Social Care,Bed and Breakfast Accommodation Expenditure,16.05.2019,5101032419,"25,436.00",Redacted Personal Information
Manchester City Council,Adult Social Care,Payment of School Budget Share,16.05.2019,5101032430,828.00,Meade Hill School
Manchester City Council,Adult Social Care,Third party payments to other Local Authorities,16.05.2019,5101032328,"3,256.00",Brooklands Primary School
Manchester City Council,Adult Social Care,Third party payments to other Local Authorities,16.05.2019,5101032329,"1,954.00",Brooklands Primary School
Manchester City Council,Adult Social Care,Third party payments relating to Voluntary Organisations,16.05.2019,5101032447,"13,093.00",The Shaw Centre
Manchester City Council,Adult Social Care,Payments for services,16.05.2019,5101032443,"823,698.18",The Together Trust
Manchester City Council,Adult Social Care,Payments for services,16.05.2019,5101032429,"51,234.59",The Together Trust
Manchester City Council,Adult Social Care,Payments for services,16.05.2019,5101032431,"13,200.00",The Together Trust
Manchester City Council,Adult Social Care,Payments for services,16.05.2019,5101032432,"3,000.00",The Together Trust
Manchester City Council,Adult Social Care,Payments for services,16.05.2019,5101032437,"6,311.94",Lakeside School
Manchester City Council,Adult Social Care,Payments for services,16.05.2019,5101032442,"96,860.50",Loreto College
Manchester City Council,Adult Social Care,Payments for services,16.05.2019,5101032322,"14,840.00",Time Specialist Support Ltd
Manchester City Council,Adult Social Care,Payments for services,16.05.2019,5101032321,"7,385.00",Time Specialist Support Ltd
Manchester City Council,Adult Social Care,Payments for services,16.05.2019,5101032370,"2,200.00",Kaleidoscope Project
Manchester City Council,Adult Social Care,Payments for services,16.05.2019,5101032433,"3,696.00",Radical Services Ltd
Manchester City Council,Adult Social Care,Payments for services,16.05.2019,5101032436,"2,352.00",Radical Services Ltd
Manchester City Council,Adult Social Care,Payments for services,16.05.2019,5101032439,"1,680.00",Radical Services Ltd
Manchester City Council,Adult Social Care,Payments for services,16.05.2019,5101032440,"1,008.00",Radical Services Ltd
Manchester City Council,Adult Social Care,Payments for services,16.05.2019,5101032341,876.21,Jane Lewis Health and Social Care
Manchester City Council,Adult Social Care,Supporting People Payments,16.05.2019,5101032465,851.13,The Edward Mayes Trust
Manchester City Council,Adult Social Care,Personal needs of client,16.05.2019,5101032037,"8,610.69",Prism Medical UK Carefree Division
Manchester City Council,Adult Social Care,Personal needs of client,16.05.2019,5101032179,-551.00,Transport for Greater Manchester
Manchester City Council,Corporate Services,Travel Season Ticket Loan Scheme,16.05.2019,5101032327,570.00,Stagecoach Manchester
Manchester City Council,Corporate Services,Travel Season Ticket Loan Scheme,16.05.2019,5101032327,570.00,Stagecoach Manchester
Manchester City Council,Corporate Services,Travel Season Ticket Loan Scheme,16.05.2019,5101032327,570.00,Stagecoach Manchester
Manchester City Council,Corporate Services,Travel Season Ticket Loan Scheme,16.05.2019,5101032327,570.00,Stagecoach Manchester
Manchester City Council,Corporate Services,Professional fees,16.05.2019,5101032384,"2,250.00",Acuma Solutions Ltd
Manchester City Council,Corporate Services,Professional fees,16.05.2019,5101032423,750.00,Acuma Solutions Ltd
Manchester City Council,Corporate Services,Payments to Contractors,16.05.2019,5101032309,"6,085.65",NSL Ltd
Manchester City Council,Corporate Services,Works and associated costs for Land and Buildings,16.05.2019,5101032345,665.50,Eversheds Llp
Manchester City Council,Corporate Services,Works and associated costs for Land and Buildings,16.05.2019,5101032342,661.53,Eversheds Llp
Manchester City Council,Corporate Services,Works and associated costs for Land and Buildings,16.05.2019,5101032339,-630.00,Eversheds Llp
Manchester City Council,Housing General Fund,Building Works,16.05.2019,5101032358,"78,743.84",One Manchester Limited
Manchester City Council,Housing General Fund,Building Works,16.05.2019,5101032358,"29,779.10",One Manchester Limited
Manchester City Council,Housing Revenue Account,Council Dwelling Adaptations,16.05.2019,5101032459,779.66,IG Doors Ltd
Manchester City Council,Housing Revenue Account,Council Dwelling Adaptations,16.05.2019,5101032449,"5,071.96",GTM Fire Protection Ltd
Manchester City Council,Housing Revenue Account,Council Dwelling Adaptations,16.05.2019,5101032451,"1,267.99",GTM Fire Protection Ltd
Manchester City Council,Housing Revenue Account,Council Dwelling Adaptations,16.05.2019,5101032454,"3,237.20",TP Manufacturing t/a Pendock
Manchester City Council,Chief Executives,Agency staff provision,16.05.2019,5101032326,"4,831.50",Ashberry Recruitment Ltd
Manchester City Council,Chief Executives,Landline Telephone Charges,16.05.2019,5101032456,695.00,The Loop t/a Gamma Telecom Ltd
Manchester City Council,Chief Executives,Data Links,16.05.2019,5101032455,"1,750.00",The Loop t/a Gamma Telecom Ltd
Manchester City Council,Chief Executives,Licences Purchase,16.05.2019,5101032461,"3,384.00",SAP UK & Eire User Group
Manchester City Council,Chief Executives,Vehicle Plant Furniture and Equipment,16.05.2019,5101030937,750.00,Acuma Solutions Ltd
Manchester City Council,Chief Executives,Vehicle Plant Furniture and Equipment,16.05.2019,5101032422,-750.00,Acuma Solutions Ltd
Manchester City Council,Regeneration Finance,Gas,16.05.2019,1906481806,"20,316.53",Gazprom Energy
Manchester City Council,Regeneration Finance,Gas,16.05.2019,1906481807,"14,018.09",Gazprom Energy
Manchester City Council,Regeneration Finance,Gas,16.05.2019,1906481795,611.23,Gazprom Energy
Manchester City Council,Regeneration Finance,Gas,16.05.2019,1700088725,"-1,308.67",Gazprom Energy
Manchester City Council,Regeneration Finance,Electricity,16.05.2019,1906481786,"2,886.47",Scottish & Southern Energy Plc
Manchester City Council,Regeneration Finance,Refuse Collection,16.05.2019,1906475297,"3,613.39",Shred-It Ltd
Manchester City Council,Regeneration Finance,I T Provision,16.05.2019,5101032233,520.00,NSC LegacyData Solutions Ltd
Manchester City Council,Regeneration Finance,Third party payments relating to Voluntary Organisations,16.05.2019,5101032371,"5,218.50",Proper Job Theatre company
Manchester City Council,Highways Services,Electricity,16.05.2019,1906481789,"321,215.10",Scottish & Southern Energy Plc
Manchester City Council,Highways Services,Electricity,16.05.2019,1906481788,"174,324.68",Scottish & Southern Energy Plc
Manchester City Council,Highways Services,Electricity,16.05.2019,1906481790,"126,438.59",Scottish & Southern Energy Plc
Manchester City Council,Highways Services,Electricity,16.05.2019,1700088722,"-164,782.05",Scottish & Southern Energy Plc
Manchester City Council,Highways Services,Electricity,16.05.2019,1700088721,"-251,273.09",Scottish & Southern Energy Plc
Manchester City Council,Highways Services,Building Materials for direct delivery,16.05.2019,5101032332,561.25,TARMAC
Manchester City Council,Highways Services,Building Materials for direct delivery,16.05.2019,5101032331,554.52,TARMAC
Manchester City Council,Highways Services,Payments to Sub-Contractors,16.05.2019,5101032343,-500.00,Transport for Greater Manchester
Manchester City Council,Highways Services,Professional fees,16.05.2019,5101032398,"7,578.20",Transport for Greater Manchester
Manchester City Council,Collection Fund,Ctax - Preceptor Payments,16.05.2019,1906448084,"2,744,583.00",GMCA
Manchester City Council,Collection Fund,Business Rates - Preceptor Payments,16.05.2019,1906448084,"288,585.00",GMCA
Manchester City Council,Manchester Leisure,Building Materials for direct delivery,17.05.2019,5101032123,700.00,Willfab Ltd
Manchester City Council,Manchester Leisure,Professional fees,17.05.2019,5101032004,"17,143.25",Greenwich Leisure Limited
Manchester City Council,Manchester Leisure,Special Events,17.05.2019,5101032487,"2,885.00",Clearview Event Services Limited
Manchester City Council,Manchester Leisure,Special Events,17.05.2019,5101032488,980.00,Clearview Event Services Limited
Manchester City Council,Manchester Leisure,Special Events,17.05.2019,5101032491,980.00,Clearview Event Services Limited
Manchester City Council,Manchester Leisure,Special Events,17.05.2019,5101032489,666.00,Clearview Event Services Limited
Manchester City Council,Manchester Leisure,Special Events,17.05.2019,5101032490,654.00,Clearview Event Services Limited
Manchester City Council,Manchester Leisure,Works and associated costs for Land and Buildings,17.05.2019,5101032239,"53,511.25",Laing O'Rourke Construction Ltd
Manchester City Council,Hospitality + Trading Services,Vehicle Repairs,17.05.2019,5101032083,543.32,Advanced Vehicle Technicians Ltd
Manchester City Council,Hospitality + Trading Services,Subsistence and Conference Expenses,17.05.2019,5101031804,700.00,Nabma
Manchester City Council,Hospitality + Trading Services,Goods purchased for resale in Council outlets,17.05.2019,5101032505,"1,024.40",Treasured Memories Ltd
Manchester City Council,Hospitality + Trading Services,Goods purchased for resale in Council outlets,17.05.2019,5101032506,553.80,Treasured Memories Ltd
Manchester City Council,Environment and Operations,Professional fees,17.05.2019,5101032216,595.00,Solution Talk LLP
Manchester City Council,Adult Social Care,Training and Development,17.05.2019,5101032172,750.00,Manchester Metropolitan University
Manchester City Council,Adult Social Care,Training and Development,17.05.2019,5101032180,750.00,Manchester Metropolitan University
Manchester City Council,Adult Social Care,Training and Development,17.05.2019,5101032181,750.00,Manchester Metropolitan University
Manchester City Council,Adult Social Care,Rents,17.05.2019,5101031736,"35,787.50",Commercial Real Estates Management
Manchester City Council,Adult Social Care,Rents,17.05.2019,5101031737,"7,812.50",Commercial Real Estates Management
Manchester City Council,Adult Social Care,General Office expenses,17.05.2019,1906481774,504.00,L J Roast & P S Roast
Manchester City Council,Adult Social Care,Professional fees,17.05.2019,5101032481,"2,625.00",Horizon Care & Education Group Ltd
Manchester City Council,Adult Social Care,Professional fees,17.05.2019,5101032483,"-1,750.00",Horizon Care & Education Group Ltd
Manchester City Council,Adult Social Care,I T Provision,17.05.2019,5101032299,"2,460.00",Right 2 Write Ltd
Manchester City Council,Adult Social Care,I T Provision,17.05.2019,5101032298,"2,265.00",Right 2 Write Ltd
Manchester City Council,Adult Social Care,Subsistence and Conference Expenses,17.05.2019,1906482317,720.00,Redacted Personal Information
Manchester City Council,Adult Social Care,Bed and Breakfast Accommodation Expenditure,17.05.2019,5101031815,"2,100.00",Redacted Personal Information
Manchester City Council,Adult Social Care,Bed and Breakfast Accommodation Expenditure,17.05.2019,5101031814,"1,950.00",Redacted Personal Information
Manchester City Council,Adult Social Care,Bed and Breakfast Accommodation Expenditure,17.05.2019,5101031818,"1,950.00",Redacted Personal Information
Manchester City Council,Adult Social Care,Bed and Breakfast Accommodation Expenditure,17.05.2019,5101031968,"1,785.00",Redacted Personal Information
Manchester City Council,Adult Social Care,Bed and Breakfast Accommodation Expenditure,17.05.2019,5101031816,600.00,Redacted Personal Information
Manchester City Council,Adult Social Care,Bed and Breakfast Accommodation Expenditure,17.05.2019,5101031962,"7,735.00",Redacted Personal Information
Manchester City Council,Adult Social Care,Payments for services,17.05.2019,5101032482,"1,315.50",Redacted Personal Information
Manchester City Council,Adult Social Care,Payments for services,17.05.2019,5101031610,"7,343.33",Works 4U (Support Services) Ltd
Manchester City Council,Adult Social Care,Payments for services,17.05.2019,5101031609,"8,583.18",Liverpool Progressive School
Manchester City Council,Adult Social Care,Supporting People Payments,17.05.2019,5101031923,"116,332.16",Creative Support Ltd
Manchester City Council,Adult Social Care,Carer Support Payments ,17.05.2019,5101032526,"31,312.85",Carewest Limited
Manchester City Council,Adult Social Care,Personal needs of client,17.05.2019,1906482877,"3,599.02",Staffas & Associates
Manchester City Council,Adult Social Care,Individual Budget Payment,17.05.2019,1906482878,"6,052.73",Redacted Personal Information
Manchester City Council,Corporate Services,Collection Commission,17.05.2019,5101032517,"11,389.55",Verrus (UK) T/A paybyphone
Manchester City Council,Corporate Services,Payments to Contractors,17.05.2019,5101032311,"1,161.42",NSL Ltd
Manchester City Council,Corporate Services,Works and associated costs for Land and Buildings,17.05.2019,5101032240,"4,000.00",Vodafone (Ex C&W)
Manchester City Council,Housing General Fund,Works and associated costs for Land and Buildings,17.05.2019,5101032471,837.20,Places For People Homes
Manchester City Council,Housing Revenue Account,Peaks & Plains Management Fee,17.05.2019,5101032278,"3,856.43",Cheshire Peaks & Plains
Manchester City Council,Chief Executives,Agency staff provision,17.05.2019,5101032347,"6,279.00",Medicare First
Manchester City Council,Chief Executives,Printing,17.05.2019,5101032060,"1,390.00",Allied Publicity Serv.(Manchester)
Manchester City Council,Chief Executives,Printing,17.05.2019,5101032286,"1,560.00",Browns CTP Ltd
Manchester City Council,Chief Executives,Printing,17.05.2019,5101032294,"1,140.00",Browns CTP Ltd
Manchester City Council,Chief Executives,Stationery,17.05.2019,5101032479,"2,220.00",Shaw & Sons Ltd
Manchester City Council,Chief Executives,Telecoms Maintenance,17.05.2019,5101032202,"4,505.00",Kenson Network Engineering Ltd
Manchester City Council,Chief Executives,Advertising,17.05.2019,5101032532,"1,795.50",Ocean Media Group Ltd
Manchester City Council,Chief Executives,Advertising,17.05.2019,5101032480,"1,509.00",MA Education Limited
Manchester City Council,Chief Executives,Works and associated costs for Land and Buildings,17.05.2019,5101032496,"2,000.00",The Arch Company Properties Ltd
Manchester City Council,Chief Executives,Works and associated costs for Land and Buildings,17.05.2019,5101032534,"81,432.27",P.P. O'Connor Group Ltd
Manchester City Council,Chief Executives,Legal Fees,17.05.2019,5101032131,916.67,Redacted Personal Information
Manchester City Council,Chief Executives,Compensation Payments,17.05.2019,5101032013,"1,600.00",Redacted Personal Information
Manchester City Council,Regeneration Finance,Professional fees,17.05.2019,5101032470,"21,697.87",City Football Group Limited
Manchester City Council,Regeneration Finance,Legal Fees,17.05.2019,5101032139,"2,500.00",Kings Chambers
Manchester City Council,Highways Services,Professional fees,17.05.2019,5101032392,"1,956.50",Waterman Aspen Ltd
Manchester City Council,Highways Services,Professional fees,17.05.2019,5101031382,"1,630.00",Waterman Aspen Ltd
Manchester City Council,Highways Services,Compensation Payments,17.05.2019,1906482214,"3,000.00",New LAw Solicitors
Manchester City Council,Highways Services,Compensation Payments,17.05.2019,1906482211,"3,600.00",United Solicitors
Manchester City Council,Highways Services,Compensation Payments,17.05.2019,1906481967,688.00,Department For Work & Pensions
Manchester City Council,Highways Services,Compensation Payments,17.05.2019,1906482215,"3,556.00",New LAw Solicitors
Manchester City Council,Collection Fund,Academy NNDR Debtors - Overpayments,17.05.2019,1906482745,"3,425.26",Fts Corp
Manchester City Council,Manchester Leisure,Refuse Collection,20.05.2019,5101031826,"1,067,122.73",Biffa Municipal Limited
Manchester City Council,Manchester Leisure,Refuse Collection,20.05.2019,5101031823,"87,994.56",Biffa Municipal Limited
Manchester City Council,Manchester Leisure,Professional fees,20.05.2019,5101032600,"38,463.68",The Sports Presentation Company
Manchester City Council,Manchester Leisure,Levies,20.05.2019,1906484475,"2,626,000.00",GMCA
Manchester City Council,Manchester Leisure,Payments for services,20.05.2019,5101032690,"796,742.00",Greenwich Leisure Limited
Manchester City Council,Libraries and Theatres,Works and associated costs for Land and Buildings,20.05.2019,5101032554,"9,431.55",Morrison Facilities Services Ltd
Manchester City Council,Adult Social Care,Training and Development,20.05.2019,5101032385,750.00,Manchester Metropolitan University
Manchester City Council,Adult Social Care,Internal Repairs and Maintenance for buildings,20.05.2019,5101031884,"4,070.80",Manchester School Services Limited
Manchester City Council,Adult Social Care,Gas,20.05.2019,5101031516,"13,695.76",Manchester School Services Limited
Manchester City Council,Adult Social Care,Transport and Driver Hire,20.05.2019,5101032601,"19,757.00",Ross Care
Manchester City Council,Adult Social Care,Transport and Driver Hire,20.05.2019,5101032602,"19,250.00",Ross Care
Manchester City Council,Adult Social Care,Transport Coach Hire,20.05.2019,5101031976,784.30,Cresta Car Hire
Manchester City Council,Adult Social Care,Transport Coach Hire,20.05.2019,5101031971,570.00,Cresta Car Hire
Manchester City Council,Adult Social Care,Transport Coach Hire,20.05.2019,5101032579,990.00,Exec-Coach Services
Manchester City Council,Adult Social Care,Transport Coach Hire,20.05.2019,5101032677,"7,335.76",Parkway Cabs & Cars
Manchester City Council,Adult Social Care,Professional fees,20.05.2019,5101032657,"1,687.50",Sloan Education Services Ltd
Manchester City Council,Adult Social Care,Professional fees,20.05.2019,1906482879,"1,065.00",Medical ExpertWitness Alliance LLP
Manchester City Council,Adult Social Care,Private Finance and Public Private partnership initiatives,20.05.2019,5101031518,"400,991.76",Manchester School Services Limited
Manchester City Council,Adult Social Care,Funeral and coroner related services,20.05.2019,5101032306,"3,370.00",Greater Manchester Funeral Service
Manchester City Council,Adult Social Care,Funeral and coroner related services,20.05.2019,5101032305,"1,360.00",Greater Manchester Funeral Service
Manchester City Council,Adult Social Care,Bed and Breakfast Accommodation Expenditure,20.05.2019,5101032426,"16,397.00",Redacted Personal Information
Manchester City Council,Adult Social Care,Third party payments to other Local Authorities,20.05.2019,5101032678,"10,749.00",Ladywood School
Manchester City Council,Adult Social Care,Third party payments to Health Authority,20.05.2019,5101032674,"9,673.00",Pinnacle Health Partnership LLP
Manchester City Council,Adult Social Care,Third party payments relating to Voluntary Organisations,20.05.2019,5101032607,"19,000.00",Barnardo Services Ltd (Essex)
Manchester City Council,Adult Social Care,Third party payments relating to Voluntary Organisations,20.05.2019,5101032638,"22,330.50",Man. Citizens Advice Bureaux
Manchester City Council,Adult Social Care,Third party payments relating to Voluntary Organisations,20.05.2019,5101032636,"14,886.50",Man. Citizens Advice Bureaux
Manchester City Council,Adult Social Care,Third party payments relating to Voluntary Organisations,20.05.2019,5101032596,"2,532.00",Federation of Jewish Services
Manchester City Council,Adult Social Care,Third party payments relating to Voluntary Organisations,20.05.2019,5101032362,"498,000.00","CGL - Change, Grow, Live"
Manchester City Council,Adult Social Care,Third party payments relating to Voluntary Organisations,20.05.2019,5101032362,"44,308.08","CGL - Change, Grow, Live"
Manchester City Council,Adult Social Care,Third party payments relating to Voluntary Organisations,20.05.2019,5101032087,"3,750.00",Safe Families for Children
Manchester City Council,Adult Social Care,Third party payments relating to Voluntary Organisations,20.05.2019,5101032467,"8,318.25",SSG Sustainable Living
Manchester City Council,Adult Social Care,Payments for services,20.05.2019,5101032671,"13,819.65",Oldham College Corporation
Manchester City Council,Adult Social Care,Payments for services,20.05.2019,5101032672,"9,211.75",Pure Innovations Ltd
Manchester City Council,Adult Social Care,Payments for services,20.05.2019,5101031491,"2,154.96",Jump Space Ltd
Manchester City Council,Adult Social Care,Supporting People Payments,20.05.2019,5101032639,"4,900.25",Praxis Care Group
Manchester City Council,Adult Social Care,Supporting People Payments,20.05.2019,5101032641,"4,900.25",Praxis Care Group
Manchester City Council,Adult Social Care,Supporting People Payments,20.05.2019,5101032591,"116,332.16",Creative Support Ltd
Manchester City Council,Adult Social Care,Supporting People Payments,20.05.2019,5101032673,"9,786.00",Richmond Fellowship
Manchester City Council,Adult Social Care,Supporting People Payments,20.05.2019,5101032557,851.13,The Edward Mayes Trust
Manchester City Council,Adult Social Care,Foster Payments,20.05.2019,1906472969,"1,676.00",Redacted Personal Information
Manchester City Council,Adult Social Care,Personal needs of client,20.05.2019,5101032549,"1,409.15",Prism Medical UK Carefree Division
Manchester City Council,Adult Social Care,Personal needs of client,20.05.2019,5101032550,632.62,Prism Medical UK Carefree Division
Manchester City Council,Adult Social Care,Personal needs of client,20.05.2019,5101032521,585.00,NRS Healthcare
Manchester City Council,Childrens Services,Works and associated costs for Land and Buildings,20.05.2019,5101032666,500.00,WYG Engineering Ltd
Manchester City Council,Childrens Services,Works and associated costs for Land and Buildings,20.05.2019,5101032302,"27,635.80",Laing O'Rourke Construction Ltd
Manchester City Council,Corporate Services,Travel,20.05.2019,5101031588,"1,021.60",Northern
Manchester City Council,Corporate Services,Travel Season Ticket Loan Scheme,20.05.2019,5101031588,"3,488.00",Northern
Manchester City Council,Corporate Services,Travel Season Ticket Loan Scheme,20.05.2019,5101031588,"2,692.00",Northern
Manchester City Council,Corporate Services,Travel Season Ticket Loan Scheme,20.05.2019,5101031588,"2,652.00",Northern
Manchester City Council,Corporate Services,Travel Season Ticket Loan Scheme,20.05.2019,5101031588,"1,928.00",Northern
Manchester City Council,Corporate Services,Travel Season Ticket Loan Scheme,20.05.2019,5101031588,"1,021.60",Northern
Manchester City Council,Corporate Services,Travel Season Ticket Loan Scheme,20.05.2019,5101031588,"1,021.60",Northern
Manchester City Council,Corporate Services,Travel Season Ticket Loan Scheme,20.05.2019,5101031588,"1,021.60",Northern
Manchester City Council,Corporate Services,Travel Season Ticket Loan Scheme,20.05.2019,5101031588,"1,021.60",Northern
Manchester City Council,Corporate Services,Travel Season Ticket Loan Scheme,20.05.2019,5101031588,"1,021.60",Northern
Manchester City Council,Corporate Services,Travel Season Ticket Loan Scheme,20.05.2019,5101031588,"1,021.60",Northern
Manchester City Council,Corporate Services,Travel Season Ticket Loan Scheme,20.05.2019,5101031588,"1,021.60",Northern
Manchester City Council,Corporate Services,Travel Season Ticket Loan Scheme,20.05.2019,5101031588,"1,021.60",Northern
Manchester City Council,Corporate Services,Travel Season Ticket Loan Scheme,20.05.2019,5101031588,924.00,Northern
Manchester City Council,Corporate Services,Travel Season Ticket Loan Scheme,20.05.2019,5101031588,924.00,Northern
Manchester City Council,Corporate Services,Travel Season Ticket Loan Scheme,20.05.2019,5101031588,912.00,Northern
Manchester City Council,Corporate Services,Travel Season Ticket Loan Scheme,20.05.2019,5101031588,732.00,Northern
Manchester City Council,Corporate Services,Printing,20.05.2019,5101032667,"4,647.93",Global Document Systems Ltd
Manchester City Council,Corporate Services,Professional fees,20.05.2019,5101032599,"1,500.00",Blackpool Council
Manchester City Council,Corporate Services,Professional fees,20.05.2019,5101031077,775.00,Watts Group Limited
Manchester City Council,Corporate Services,Professional fees,20.05.2019,5101032648,"1,400.00",Rider Levett Bucknall UK Ltd
Manchester City Council,Corporate Services,Postage,20.05.2019,5101032581,"11,445.96",Royal Mail Group Plc
Manchester City Council,Corporate Services,Postage,20.05.2019,5101032584,"1,520.07",Royal Mail Group Plc
Manchester City Council,Corporate Services,Works and associated costs for Land and Buildings,20.05.2019,5101032093,"3,243.00",T.I.S. Limited
Manchester City Council,Corporate Services,Works and associated costs for Land and Buildings,20.05.2019,5101032096,"1,728.00",T.I.S. Limited
Manchester City Council,Corporate Services,Works and associated costs for Land and Buildings,20.05.2019,5101032709,"110,250.36",Conlon Construction Ltd
Manchester City Council,Corporate Services,Works and associated costs for Land and Buildings,20.05.2019,5101032675,"98,739.22",ISG Construction Limited
Manchester City Council,Corporate Services,Works and associated costs for Land and Buildings,20.05.2019,5101032477,"79,593.83",ISG Construction Limited
Manchester City Council,Housing General Fund,Building Works,20.05.2019,5101032344,"33,697.30",Wythenshawe Community Housing Group
Manchester City Council,Housing General Fund,Capital Receipts,20.05.2019,1906481984,"14,860.00",Redrow Homes Lancashire
Manchester City Council,Housing Revenue Account,Council Dwelling Adaptations,20.05.2019,5101032574,"6,977.31",Rixonway Kitchens Limited
Manchester City Council,Housing Revenue Account,Council Dwelling Adaptations,20.05.2019,5101032577,"5,641.58",Rixonway Kitchens Limited
Manchester City Council,Housing Revenue Account,Council Dwelling Adaptations,20.05.2019,5101032576,"2,685.28",Rixonway Kitchens Limited
Manchester City Council,Housing Revenue Account,Council Dwelling Adaptations,20.05.2019,5101032575,"1,891.41",Rixonway Kitchens Limited
Manchester City Council,Housing Revenue Account,Council Dwelling Adaptations,20.05.2019,5101032453,"26,520.00",GTM Fire Protection Ltd
Manchester City Council,Housing Revenue Account,Council Dwelling Adaptations,20.05.2019,5101032452,"6,339.95",GTM Fire Protection Ltd
Manchester City Council,Chief Executives,Agency staff provision,20.05.2019,5101032378,"6,289.45",Michael Page International
Manchester City Council,Chief Executives,Agency staff provision,20.05.2019,5101032606,"6,532.00",Venn Group Ltd
Manchester City Council,Chief Executives,Agency staff provision,20.05.2019,5101032335,"3,953.85",Deekay Technical Recruitment Ltd
Manchester City Council,Chief Executives,Agency staff provision,20.05.2019,5101032722,"1,190.00",Redacted Personal Information
Manchester City Council,Chief Executives,Agency staff provision,20.05.2019,5101032719,"1,085.00",Redacted Personal Information
Manchester City Council,Chief Executives,Agency staff provision,20.05.2019,5101032716,630.00,Redacted Personal Information
Manchester City Council,Chief Executives,Payments to Sub-Contractors,20.05.2019,5101032295,614.12,Redacted Personal Information
Manchester City Council,Chief Executives,Payments to Sub-Contractors,20.05.2019,5101032313,667.38,Redacted Personal Information
Manchester City Council,Chief Executives,Hire of Equipment,20.05.2019,5101032645,"9,502.91",Xerox Finance Ltd
Manchester City Council,Chief Executives,Equipment Operating Lease,20.05.2019,5101032643,"8,057.11",Xerox Finance Ltd
Manchester City Council,Chief Executives,Printing,20.05.2019,5101032589,585.00,Mail Solutions
Manchester City Council,Chief Executives,I T Provision,20.05.2019,5101032590,"3,675.00",TNP Ltd
Manchester City Council,Chief Executives,Payments for services,20.05.2019,5101032629,"21,996.00",Winners Contract Hire Ltd
Manchester City Council,Chief Executives,Legal Fees,20.05.2019,1906465943,750.00,Redacted Personal Information
Manchester City Council,Chief Executives,Legal Fees,20.05.2019,1906482201,"16,850.00",Redacted Personal Information
Manchester City Council,Chief Executives,Compensation Payments,20.05.2019,1906482196,"1,850.00",Kenworthy's Chambers
Manchester City Council,Chief Executives,Compensation Payments,20.05.2019,1906482203,600.00,Redacted Personal Information
Manchester City Council,Regeneration Finance,Cleaning Equipment,20.05.2019,5101032474,975.00,Halcyon Conservation Ltd
Manchester City Council,Regeneration Finance,Security,20.05.2019,5101032613,"1,440.00",Video Receiving Centre Ltd
Manchester City Council,Regeneration Finance,Equipment,20.05.2019,5101032551,637.21,Ezitracker
Manchester City Council,Regeneration Finance,Training and Development,20.05.2019,5101032668,605.00,Ncfe
Manchester City Council,Regeneration Finance,Subsistence and Conference Expenses,20.05.2019,5101032364,"4,039.50",Tribal Education
Manchester City Council,Regeneration Finance,Grant and subscriptions awarded,20.05.2019,5101030605,"20,000.00",4CT Limited
Manchester City Council,Regeneration Finance,Subvention Payments,20.05.2019,5101032514,"245,317.00",Manchester Creative Digital Assets
Manchester City Council,Regeneration Finance,Subvention Payments,20.05.2019,5101032516,"224,711.00",Manchester Creative Digital Assets
Manchester City Council,Regeneration Finance,Subvention Payments,20.05.2019,5101032515,"65,764.00",Manchester Creative Digital Assets
Manchester City Council,Regeneration Finance,Subvention Payments,20.05.2019,5101032512,"15,537.00",Manchester Creative Digital Assets
Manchester City Council,Regeneration Finance,Third party payments to other Local Authorities,20.05.2019,5101032655,"3,937.50",Brookfield Adult Learning Centre
Manchester City Council,Regeneration Finance,Third party payments relating to Voluntary Organisations,20.05.2019,5101032650,"3,546.00",Street League
Manchester City Council,Regeneration Finance,Planning Application Fees,20.05.2019,1906482213,"4,620.00",PortalPlanQuest Ltd
Manchester City Council,Highways Services,Refuse Collection,20.05.2019,5101032548,"11,122.40",Balfour Beatty Living Places Ltd
Manchester City Council,Highways Services,Professional fees,20.05.2019,5101032597,"31,623.60",Lanes Group Plc
Manchester City Council,Highways Services,Professional fees,20.05.2019,5101032377,"2,322.75",Waterman Aspen Ltd
Manchester City Council,Highways Services,Professional fees,20.05.2019,5101032354,"2,085.50",Waterman Aspen Ltd
Manchester City Council,Highways Services,Professional fees,20.05.2019,5101032391,"2,078.25",Waterman Aspen Ltd
Manchester City Council,Highways Services,Professional fees,20.05.2019,5101032359,"1,990.00",Waterman Aspen Ltd
Manchester City Council,Highways Services,Professional fees,20.05.2019,5101032394,"1,780.00",Waterman Aspen Ltd
Manchester City Council,Highways Services,Professional fees,20.05.2019,5101032383,"1,260.00",Waterman Aspen Ltd
Manchester City Council,Highways Services,Professional fees,20.05.2019,5101032355,"1,180.00",Waterman Aspen Ltd
Manchester City Council,Highways Services,Professional fees,20.05.2019,5101032361,"1,080.00",Waterman Aspen Ltd
Manchester City Council,Highways Services,Professional fees,20.05.2019,5101032388,948.00,Waterman Aspen Ltd
Manchester City Council,Highways Services,I T Provision,20.05.2019,5101032522,"22,572.50",Buchanan computing Limited
Manchester City Council,Insurance Fund,Insurance,20.05.2019,1906465907,997.30,Weightmans LLP Solicitors
Manchester City Council,Manchester Leisure,Training and Development,21.05.2019,5101032760,"8,250.00",Serco Limited
Manchester City Council,Manchester Leisure,External repairs and maintenance for buildings,21.05.2019,5101032864,"1,995.00",Flowprotect Ltd
Manchester City Council,Manchester Leisure,Vehicle Fuel Costs,21.05.2019,5101032860,"1,165.18",Carlton Fuels Ltd
Manchester City Council,Manchester Leisure,Equipment,21.05.2019,5101032075,"-1,559.99",Nisbets
Manchester City Council,Manchester Leisure,Equipment,21.05.2019,5101032782,"1,040.00",William G.Search Ltd
Manchester City Council,Manchester Leisure,Equipment,21.05.2019,5101032784,"1,040.00",William G.Search Ltd
Manchester City Council,Manchester Leisure,Equipment,21.05.2019,5101032912,750.00,Hemingways Marketing Services Ltd
Manchester City Council,Manchester Leisure,Equipment,21.05.2019,5101032804,750.00,Willfab Ltd
Manchester City Council,Manchester Leisure,Equipment,21.05.2019,5101032866,"2,000.00",Flowprotect Ltd
Manchester City Council,Manchester Leisure,Equipment,21.05.2019,5101032865,"1,195.00",Flowprotect Ltd
Manchester City Council,Manchester Leisure,Building Materials for direct delivery,21.05.2019,5101032858,818.34,F.R.Sharrock Ltd
Manchester City Council,Manchester Leisure,Professional fees,21.05.2019,5101032917,"1,080.00",Critchlow & Kukkonen Ltd
Manchester City Council,Manchester Leisure,Special Events,21.05.2019,5101032918,553.00,2ZY Limited
Manchester City Council,Hospitality + Trading Services,Preventative Maintenance Work,21.05.2019,5101031990,610.00,Skyreach Access Solutions Ltd
